Workbook

Sheet weekly
A1: Week Ending Sat | B1: Chippewa Building Permits | C1: CV Value of Building Permits | D1: Eau Claire Building Permits | E1: Eau Claire Value of Building Permits
A2: 2001-01-06 | B2: 0 | C2: 0 | D2: 0 | E2: 0
A3: 2001-01-13 | B3: 0 | C3: 0 | D3: 3 | E3: 487828
A4: 2001-01-20 | B4: 0 | C4: 0 | D4: 0 | E4: 0
A5: 2001-01-27 | B5: 0 | C5: 0 | D5: 1 | E5: 225000
A6: 2001-02-03 | B6: 0 | C6: 0 | D6: 1 | E6: 435000
A7: 2001-02-10 | B7: 1 | C7: 43235 | D7: 0 | E7: 0
A8: 2001-02-17 | B8: 0 | C8: 0 | D8: 0 | E8: 0
A9: 2001-02-24 | B9: 0 | C9: 0 | D9: 3 | E9: 930000
A10: 2001-03-03 | B10: 0 | C10: 0 | D10: 0 | E10: 0
A11: 2001-03-10 | B11: 3 | C11: 574000 | D11: 1 | E11: 76000
A12: 2001-03-17 | B12: 0 | C12: 0 | D12: 3 | E12: 1756439
A13: 2001-03-24 | B13: 0 | C13: 0 | D13: 2 | E13: 4610000
A14: 2001-03-31 | B14: 0 | C14: 0 | D14: 2 | E14: 459450
A15: 2001-04-07 | B15: 0 | C15: 0 | D15: 1 | E15: 205000
A16: 2001-04-14 | B16: 0 | C16: 0 | D16: 3 | E16: 470000
A17: 2001-04-21 | B17: 6 | C17: 5031000 | D17: 9 | E17: 1070908
A18: 2001-04-28 | B18: 1 | C18: 1700000 | D18: 3 | E18: 334609
A19: 2001-05-05 | B19: 3 | C19: 1683000 | D19: 6 | E19: 762000
A20: 2001-05-12 | B20: 0 | C20: 0 | D20: 8 | E20: 3264500
A21: 2001-05-19 | B21: 4 | C21: 9565978 | D21: 8 | E21: 2229000
A22: 2001-05-26 | B22: 0 | C22: 0 | D22: 6 | E22: 985875
A23: 2001-06-02 | B23: 2 | C23: 220000 | D23: 12 | E23: 2582400
A24: 2001-06-09 | B24: 1 | C24: 60000 | D24: 4 | E24: 1387760
A25: 2001-06-16 | B25: 1 | C25: 160000 | D25: 4 | E25: 3544200
A26: 2001-06-23 | B26: 0 | C26: 0 | D26: 2 | E26: 206800
A27: 2001-06-30 | B27: 0 | C27: 0 | D27: 3 | E27: 811195
A28: 2001-07-07 | B28: 0 | C28: 0 | D28: 0 | E28: 0
A29: 2001-07-14 | B29: 0 | C29: 0 | D29: 4 | E29: 1016000
A30: 2001-07-21 | B30: 1 | C30: 2985000 | D30: 0 | E30: 0
A31: 2001-07-28 | B31: 0 | C31: 0 | D31: 1 | E31: 64000
A32: 2001-08-04 | B32: 3 | C32: 635000 | D32: 2 | E32: 2465000
A33: 2001-08-11 | B33: 0 | C33: 0 | D33: 3 | E33: 2694000
A34: 2001-08-18 | B34: 4 | C34: 750000 | D34: 4 | E34: 747000
A35: 2001-08-25 | B35: 0 | C35: 0 | D35: 5 | E35: 941000
A36: 2001-09-01 | B36: 2 | C36: 670000 | D36: 5 | E36: 629000
A37: 2001-09-08 | B37: 0 | C37: 0 | D37: 4 | E37: 2859602
A38: 2001-09-15 | B38: 1 | C38: 70000 | D38: 3 | E38: 959000
A39: 2001-09-22 | B39: 0 | C39: 0 | D39: 11 | E39: 2682093
A40: 2001-09-29 | B40: 5 | C40: 245000 | D40: 1 | E40: 190000
A41: 2001-10-06 | B41: 0 | C41: 0 | D41: 5 | E41: 1788000
A42: 2001-10-13 | B42: 0 | C42: 0 | D42: 6 | E42: 1095650
A43: 2001-10-20 | B43: 0 | C43: 0 | D43: 3 | E43: 355000
A44: 2001-10-27 | B44: 0 | C44: 0 | D44: 4 | E44: 792000
A45: 2001-11-03 | B45: 0 | C45: 0 | D45: 1 | E45: 100000
A46: 2001-11-10 | B46: 5 | C46: 3192000 | D46: 3 | E46: 885000
A47: 2001-11-17 | B47: 2 | C47: 296000 | D47: 0 | E47: 0
A48: 2001-11-24 | B48: 0 | C48: 0 | D48: 2 | E48: 166000
A49: 2001-12-01 | B49: 0 | C49: 0 | D49: 5 | E49: 505000
A50: 2001-12-08 | B50: 1 | C50: 120000 | D50: 2 | E50: 145000
A51: 2001-12-15 | B51: 2 | C51: 509000 | D51: 1 | E51: 175000
A52: 2001-12-22 | B52: 0 | C52: 0 | D52: 0 | E52: 0
A53: 2001-12-29 | B53: 0 | C53: 0 | D53: 3 | E53: 465000
A54: 2002-01-05 | B54: 0 | C54: 0 | D54: 0 | E54: 0
A55: 2002-01-12 | B55: 0 | C55: 0 | D55: 0 | E55: 0
A56: 2002-01-19 | B56: 1 | C56: 50000 | D56: 0 | E56: 0
A57: 2002-01-26 | B57: 0 | C57: 0 | D57: 1 | E57: 225000
A58: 2002-02-02 | B58: 0 | C58: 0 | D58: 8 | E58: 2850000
A59: 2002-02-09 | B59: 0 | C59: 0 | D59: 0 | E59: 0
A60: 2002-02-16 | B60: 1 | C60: 150000 | D60: 1 | E60: 90000
A61: 2002-02-23 | B61: 0 | C61: 0 | D61: 4 | E61: 1860000
A62: 2002-03-02 | B62: 0 | C62: 0 | D62: 1 | E62: 43000
A63: 2002-03-09 | B63: 0 | C63: 0 | D63: 0 | E63: 0
A64: 2002-03-16 | B64: 2 | C64: 287000 | D64: 2 | E64: 1109410
A65: 2002-03-23 | B65: 0 | C65: 0 | D65: 3 | E65: 229000
A66: 2002-03-30 | B66: 0 | C66: 0 | D66: 2 | E66: 600000
A67: 2002-04-06 | B67: 0 | C67: 0 | D67: 9 | E67: 5869896
A68: 2002-04-13 | B68: 0 | C68: 0 | D68: 0 | E68: 0
A69: 2002-04-20 | B69: 2 | C69: 190000 | D69: 1 | E69: 365000
A70: 2002-04-27 | B70: 0 | C70: 0 | D70: 0 | E70: 0
A71: 2002-05-04 | B71: 0 | C71: 0 | D71: 1 | E71: 1000000
A72: 2002-05-11 | B72: 2 | C72: 140000 | D72: 1 | E72: 40000
A73: 2002-05-18 | B73: 0 | C73: 0 | D73: 6 | E73: 2593000
A74: 2002-05-25 | B74: 1 | C74: 339000 | D74: 0 | E74: 0
A75: 2002-06-01 | B75: 0 | C75: 0 | D75: 4 | E75: 900000
A76: 2002-06-08 | B76: 2 | C76: 450000 | D76: 3 | E76: 5343328
A77: 2002-06-15 | B77: 0 | C77: 0 | D77: 3 | E77: 1795500
A78: 2002-06-22 | B78: 0 | C78: 0 | D78: 9 | E78: 3275000
A79: 2002-06-29 | B79: 1 | C79: 602000 | D79: 3 | E79: 1143102
A80: 2002-07-06 | B80: 0 | C80: 0 | D80: 2 | E80: 985000
A81: 2002-07-13 | B81: 1 | C81: 719000 | D81: 5 | E81: 1765000
A82: 2002-07-20 | B82: 2 | C82: 1310000 | D82: 2 | E82: 1016000
A83: 2002-07-27 | B83: 1 | C83: 40000 | D83: 2 | E83: 4650000
A84: 2002-08-03 | B84: 0 | C84: 0 | D84: 7 | E84: 2150000
A85: 2002-08-10 | B85: 0 | C85: 0 | D85: 7 | E85: 2292000
A86: 2002-08-17 | B86: 0 | C86: 0 | D86: 2 | E86: 665000
A87: 2002-08-24 | B87: 2 | C87: 675000 | D87: 2 | E87: 260000
A88: 2002-08-31 | B88: 0 | C88: 0 | D88: 0 | E88: 0
A89: 2002-09-07 | B89: 0 | C89: 0 | D89: 2 | E89: 1028700
A90: 2002-09-14 | B90: 0 | C90: 0 | D90: 5 | E90: 1625000
A91: 2002-09-21 | B91: 0 | C91: 0 | D91: 2 | E91: 155800
A92: 2002-09-28 | B92: 0 | C92: 0 | D92: 0 | E92: 0
A93: 2002-10-05 | B93: 4 | C93: 997900 | D93: 2 | E93: 460000
A94: 2002-10-12 | B94: 0 | C94: 0 | D94: 5 | E94: 1834300
A95: 2002-10-19 | B95: 0 | C95: 0 | D95: 0 | E95: 0
A96: 2002-10-26 | B96: 0 | C96: 0 | D96: 4 | E96: 861200
A97: 2002-11-02 | B97: 3 | C97: 4955000 | D97: 0 | E97: 0
A98: 2002-11-09 | B98: 0 | C98: 0 | D98: 2 | E98: 300000
A99: 2002-11-16 | B99: 0 | C99: 0 | D99: 1 | E99: 553000
A100: 2002-11-23 | B100: 0 | C100: 0 | D100: 1 | E100: 553000
A101: 2002-11-30 | B101: 1 | C101: 2650000 | D101: 1 | E101: 106800
A102: 2002-12-07 | B102: 0 | C102: 0 | D102: 3 | E102: 1050000
A103: 2002-12-14 | B103: 1 | C103: 118000 | D103: 0 | E103: 0
A104: 2002-12-21 | B104: 0 | C104: 0 | D104: 1 | E104: 75908
A105: 2002-12-28 | B105: 0 | C105: 0 | D105: 1 | E105: 488000
A106: 2003-01-04 | B106: 0 | C106: 0 | D106: 0 | E106: 0
A107: 2003-01-11 | B107: 0 | C107: 0 | D107: 0 | E107: 0
A108: 2003-01-18 | B108: 0 | C108: 0 | D108: 0 | E108: 0
A109: 2003-01-25 | B109: 0 | C109: 0 | D109: 0 | E109: 0
A110: 2003-02-01 | B110: 1 | C110: 2750000 | D110: 0 | E110: 0
A111: 2003-02-08 | B111: 0 | C111: 0 | D111: 0 | E111: 0
A112: 2003-02-15 | B112: 0 | C112: 0 | D112: 1 | E112: 250000
A113: 2003-02-22 | B113: 0 | C113: 0 | D113: 0 | E113: 0
A114: 2003-03-01 | B114: 0 | C114: 0 | D114: 0 | E114: 0
A115: 2003-03-08 | B115: 0 | C115: 0 | D115: 0 | E115: 0
A116: 2003-03-15 | B116: 0 | C116: 0 | D116: 2 | E116: 4420000
A117: 2003-03-22 | B117: 0 | C117: 0 | D117: 0 | E117: 0
A118: 2003-03-29 | B118: 0 | C118: 0 | D118: 1 | E118: 925000
A119: 2003-04-05 | B119: 1 | C119: 200000 | D119: 3 | E119: 1040000
A120: 2003-04-12 | B120: 0 | C120: 0 | D120: 0 | E120: 0
A121: 2003-04-19 | B121: 0 | C121: 0 | D121: 2 | E121: 1450000
A122: 2003-04-26 | B122: 1 | C122: 2888000 | D122: 3 | E122: 1050000
A123: 2003-05-03 | B123: 0 | C123: 0 | D123: 0 | E123: 0
A124: 2003-05-10 | B124: 0 | C124: 0 | D124: 0 | E124: 0
A125: 2003-05-17 | B125: 0 | C125: 0 | D125: 2 | E125: 1227000
A126: 2003-05-24 | B126: 0 | C126: 0 | D126: 2 | E126: 1072000
A127: 2003-05-31 | B127: 0 | C127: 0 | D127: 4 | E127: 1505000
A128: 2003-06-07 | B128: 2 | C128: 208000 | D128: 3 | E128: 707490
A129: 2003-06-14 | B129: 0 | C129: 0 | D129: 0 | E129: 0
A130: 2003-06-21 | B130: 0 | C130: 0 | D130: 1 | E130: 55000
A131: 2003-06-28 | B131: 0 | C131: 0 | D131: 2 | E131: 244000
A132: 2003-07-05 | B132: 0 | C132: 0 | D132: 1 | E132: 686487
A133: 2003-07-12 | B133: 1 | C133: 360000 | D133: 2 | E133: 760000
A134: 2003-07-19 | B134: 0 | C134: 0 | D134: 0 | E134: 0
A135: 2003-07-26 | B135: 4 | C135: 4499000 | D135: 0 | E135: 0
A136: 2003-08-02 | B136: 0 | C136: 0 | D136: 3 | E136: 360000
A137: 2003-08-09 | B137: 3 | C137: 545000 | D137: 1 | E137: 250000
A138: 2003-08-16 | B138: 0 | C138: 0 | D138: 2 | E138: 590000
A139: 2003-08-23 | B139: 0 | C139: 0 | D139: 1 | E139: 340000
A140: 2003-08-30 | B140: 0 | C140: 0 | D140: 3 | E140: 1260000
A141: 2003-09-06 | B141: 0 | C141: 0 | D141: 1 | E141: 160000
A142: 2003-09-13 | B142: 4 | C142: 2395000 | D142: 3 | E142: 410000
A143: 2003-09-20 | B143: 0 | C143: 0 | D143: 0 | E143: 0
A144: 2003-09-27 | B144: 0 | C144: 0 | D144: 8 | E144: 11570000
A145: 2003-10-04 | B145: 0 | C145: 0 | D145: 0 | E145: 0
A146: 2003-10-11 | B146: 0 | C146: 0 | D146: 1 | E146: 150000
A147: 2003-10-18 | B147: 1 | C147: 78702 | D147: 3 | E147: 1686000
A148: 2003-10-25 | B148: 0 | C148: 0 | D148: 7 | E148: 2030000
A149: 2003-11-01 | B149: 0 | C149: 0 | D149: 4 | E149: 1500000
A150: 2003-11-08 | B150: 0 | C150: 0 | D150: 4 | E150: 685000
A151: 2003-11-15 | B151: 0 | C151: 0 | D151: 1 | E151: 616000
A152: 2003-11-22 | B152: 0 | C152: 0 | D152: 0 | E152: 0
A153: 2003-11-29 | B153: 0 | C153: 0 | D153: 1 | E153: 52000
A154: 2003-12-06 | B154: 0 | C154: 0 | D154: 1 | E154: 2900000
A155: 2003-12-13 | B155: 0 | C155: 0 | D155: 1 | E155: 1300000
A156: 2003-12-20 | B156: 0 | C156: 0 | D156: 0 | E156: 0
A157: 2003-12-27 | B157: 0 | C157: 0 | D157: 0 | E157: 0
A158: 2004-01-03 | B158: 0 | C158: 0 | D158: 0 | E158: 0
A159: 2004-01-10 | B159: 1 | C159: 170000 | D159: 0 | E159: 0
A160: 2004-01-17 | B160: 0 | C160: 0 | D160: 1 | E160: 604000
A161: 2004-01-24 | B161: 0 | C161: 0 | D161: 0 | E161: 0
A162: 2004-01-31 | B162: 0 | C162: 0 | D162: 0 | E162: 0
A163: 2004-02-07 | B163: 0 | C163: 0 | D163: 0 | E163: 0
A164: 2004-02-14 | B164: 1 | C164: 765000 | D164: 0 | E164: 0
A165: 2004-02-21 | B165: 0 | C165: 0 | D165: 1 | E165: 140000
A166: 2004-02-28 | B166: 0 | C166: 0 | D166: 2 | E166: 300000
A167: 2004-03-06 | B167: 0 | C167: 0 | D167: 0 | E167: 0
A168: 2004-03-13 | B168: 1 | C168: 300000 | D168: 0 | E168: 0
A169: 2004-03-20 | B169: 0 | C169: 0 | D169: 0 | E169: 0
A170: 2004-03-27 | B170: 0 | C170: 0 | D170: 0 | E170: 0
A171: 2004-04-03 | B171: 0 | C171: 0 | D171: 3 | E171: 870000
A172: 2004-04-10 | B172: 0 | C172: 0 | D172: 3 | E172: 950000
A173: 2004-04-17 | B173: 0 | C173: 0 | D173: 0 | E173: 0
A174: 2004-04-24 | B174: 1 | C174: 280000 | D174: 4 | E174: 3875000
A175: 2004-05-01 | B175: 0 | C175: 0 | D175: 0 | E175: 0
A176: 2004-05-08 | B176: 3 | C176: 2130000 | D176: 8 | E176: 1548990
A177: 2004-05-15 | B177: 0 | C177: 0 | D177: 7 | E177: 5860000
A178: 2004-05-22 | B178: 0 | C178: 0 | D178: 0 | E178: 0
A179: 2004-05-29 | B179: 2 | C179: 2076000 | D179: 1 | E179: 500000
A180: 2004-06-05 | B180: 2 | C180: 5922000 | D180: 1 | E180: 320000
A181: 2004-06-12 | B181: 0 | C181: 0 | D181: 2 | E181: 671400
A182: 2004-06-19 | B182: 0 | C182: 0 | D182: 0 | E182: 0
A183: 2004-06-26 | B183: 2 | C183: 93000 | D183: 3 | E183: 565000
A184: 2004-07-03 | B184: 0 | C184: 0 | D184: 1 | E184: 298000
A185: 2004-07-10 | B185: 1 | C185: 660000 | D185: 2 | E185: 470000
A186: 2004-07-17 | B186: 5 | C186: 2859000 | D186: 0 | E186: 0
A187: 2004-07-24 | B187: 0 | C187: 0 | D187: 0 | E187: 0
A188: 2004-07-31 | B188: 0 | C188: 0 | D188: 1 | E188: 400000
A189: 2004-08-07 | B189: 2 | C189: 90000 | D189: 1 | E189: 210000
A190: 2004-08-14 | B190: 0 | C190: 0 | D190: 0 | E190: 0
A191: 2004-08-21 | B191: 0 | C191: 0 | D191: 0 | E191: 0
A192: 2004-08-28 | B192: 0 | C192: 0 | D192: 1 | E192: 950000
A193: 2004-09-04 | B193: 0 | C193: 0 | D193: 0 | E193: 0
A194: 2004-09-11 | B194: 2 | C194: 210000 | D194: 1 | E194: 400000
A195: 2004-09-18 | B195: 0 | C195: 0 | D195: 1 | E195: 440000
A196: 2004-09-25 | B196: 2 | C196: 370000 | D196: 2 | E196: 300000
A197: 2004-10-02 | B197: 0 | C197: 0 | D197: 2 | E197: 580000
A198: 2004-10-09 | B198: 1 | C198: 757065 | D198: 7 | E198: 5254650
A199: 2004-10-16 | B199: 0 | C199: 0 | D199: 0 | E199: 0
A200: 2004-10-23 | B200: 0 | C200: 0 | D200: 0 | E200: 0
... 638 more rows

Sheet Work details
A1: Bottom Line Newsletter
A3: Dates in the data refer to the dates of the Bottom Line issues in which the information is provided, not the dates when the activities are reported to government agencies.
A4: Bottom Line issues are dated on Fridays, and entered in the data for the following Saturdays.
A6: Data on incorporations are for about five weeks before the date in the data. (For example, data from Feb. 14 - 23 appear on April 1st.) Data on bankruptcies and building permits are for the week before.
A8: The Bottom Line gets data on incorporations from the WI Secretary of State's office; data on building permits from the county Inspectors' offices; and data on bankruptcies from the Eau Claire US Clerk of Bankruptcy office.
A13: cvcerd folder, economic indicators folder, data, folder, bldperm_bankrupt_businc folder
A14: File Name: bot_line_data.xls (w = weekly, m = monthly)
A16: Contact: Dan Ropa: Bottom Line Editor 715-834-7337
A17: -Sent directly to me by mail weekly (on Friday) (incorporations have longer lag than BP and Bank)
A19: -Count weekly Numbers
A20: -Calculate Total for Each Month (sum weekly), Use Data Timing Rule
A22: ec_wbr-----Eau Claire County Bankruptcies, weekly
A23: ch_wbr-----Chippewa County Bankruptcies, weekly
A24: ecch_wbr-----Bankruptcies (Eau Claire MSA), weekly
A25: ec_wbp-----Eau Claire Commercial County Building Permits, at least $40,000, weekly
A26: ch_wbp-----Chippewa County Commercial Building Permits, at least $40,000, weekly
A27: ecch_wbp-----Commercial Building Permits (Eau Claire MSA), at least $40,000, weekly
A28: ec_vwbp-----Value Eau Claire Commercial County Building Permits, weekly
A29: ch_vwbp-----Value Chippewa County Commercial Building Permits, weekly
A30: ecch_vwbp-----Value Commercial Building Permits (Eau Claire MSA), weekly
A31: ec_wbi-----New Business Incorporations in Eau Claire County, weekly
A32: ch_wbi-----New Business Incorporations in Chippewa County, weekly
A33: ecch_wbi-----New Business Incorporations (Eau Claire MSA), weekly
A34: ec_mbr-----Eau Claire County Bankruptcies, monthly
A35: ch_mbr-----Chippewa County Bankruptcies, monthly
A36: ecch_mbr-----Bankruptcies (Eau Claire MSA), monthly
A37: ec_mbp-----Eau Claire County Commercial Building Permits, at least $40,000, monthly
A38: ch_mbp-----Chippewa County Commercial Building Permits, at least $40,000, monthly
A39: ecch_mbp-----Commercial Building Permits (Eau Claire MSA), at least $40,000, monthly
A40: ec_vmbp_r96-----Real (96) Value Eau Claire Commercial County Building Permits , weekly
A41: ch_vmbp_r96-----Real (96) Value Chippewa County Commercial Building Permits, weekly
A42: ecch_vmbp_r96-----Real (96) Value Commercial Building Permits (Eau Claire MSA), weekly
A43: ec_mbi----- New Business Incorporations in Eau Claire County, monthly
A44: ch_mbi----- New Business Incorporations in Chippewa County, monthly
A45: ecch_mbi-----New Business Incorporations (Eau Claire MSA), monthly
A47: Data Timing if week goes into next month.
A48: If new month is 3 or less it is part of previous month.
A49: If new month is 4 or more it is part of the new month.
A51: *Calculate real $ for value
A53: Report: Page 17
A54: Web Data Folder, sales_economic_activity folder, cvcerd_bankrupt_bus-inc_data_2010-2019.xls
A56: Report: Page 18
A57: Web Data Folder, construction_building folder, cvcerd_com-ind_build_permit_data_2010-2019.xls

Sheet monthly
A1: month | B1: ch_mbr | C1: ch_mbp | D1: ch_vmbp | E1: ch_vmbp_r96 | F1: ch_mbi | G1: ec_mbr | H1: ec_mbp | I1: ec_vmbp | J1: ec_vmbp_r96 | K1: ec_mbi | L1: ecch_mbr | M1: ecch_mbp | N1: ecch_vmbp | O1: ecch_vmbp_r96 | P1: ecch_mbi | Q1: mw_u_cpi | R1: mw_u_cpi_96 | S1: base: 1996=100
A2: 2001-01-01 | B2: =SUM(weekly!#REF!) ->  | C2: =SUM(weekly!B2:B6) -> 0 | F2: =SUM(weekly!#REF!) ->  | G2: =SUM(weekly!#REF!) ->  | H2: =SUM(weekly!D2:D6) -> 5 | K2: =SUM(weekly!#REF!) ->  | L2: =SUM(weekly!#REF!) ->  | M2: =SUM(weekly!#REF!) ->  | N2: =SUM(weekly!#REF!) ->  | O2: =(N2/R2)*100 ->  | P2: =SUM(weekly!#REF!) ->  | Q2: 171.9 | R2: =(Q2/$S$2)*100 -> 112.359061 | S2: 152.9916667
A3: 2001-02-01 | B3: =SUM(weekly!#REF!) ->  | C3: =SUM(weekly!B7:B10) -> 1 | F3: =SUM(weekly!#REF!) ->  | G3: =SUM(weekly!#REF!) ->  | H3: =SUM(weekly!D7:D10) -> 3 | K3: =SUM(weekly!#REF!) ->  | L3: =SUM(weekly!#REF!) ->  | M3: =SUM(weekly!#REF!) ->  | N3: =SUM(weekly!#REF!) ->  | P3: =SUM(weekly!#REF!) ->  | Q3: 172.1 | R3: =(Q3/$S$2)*100 -> 112.489787
A4: 2001-03-01 | B4: =SUM(weekly!#REF!) ->  | C4: =SUM(weekly!B11:B14) -> 3 | F4: =SUM(weekly!#REF!) ->  | G4: =SUM(weekly!#REF!) ->  | H4: =SUM(weekly!D11:D14) -> 8 | K4: =SUM(weekly!#REF!) ->  | L4: =SUM(weekly!#REF!) ->  | M4: =SUM(weekly!#REF!) ->  | N4: =SUM(weekly!#REF!) ->  | P4: =SUM(weekly!#REF!) ->  | Q4: 171.7 | R4: 112.2283349
A5: 2001-04-01 | B5: =SUM(weekly!#REF!) ->  | C5: =SUM(weekly!B15:B18) -> 7 | F5: =SUM(weekly!#REF!) ->  | G5: =SUM(weekly!#REF!) ->  | H5: =SUM(weekly!D15:D18) -> 16 | K5: =SUM(weekly!#REF!) ->  | L5: =SUM(weekly!#REF!) ->  | M5: =SUM(weekly!#REF!) ->  | N5: =SUM(weekly!#REF!) ->  | P5: =SUM(weekly!#REF!) ->  | Q5: 172.8 | R5: 112.9473283
A6: 2001-05-01 | B6: =SUM(weekly!#REF!) ->  | C6: =SUM(weekly!B19:B23) -> 9 | F6: =SUM(weekly!#REF!) ->  | G6: =SUM(weekly!#REF!) ->  | H6: =SUM(weekly!D19:D23) -> 40 | K6: =SUM(weekly!#REF!) ->  | L6: =SUM(weekly!#REF!) ->  | M6: =SUM(weekly!#REF!) ->  | N6: =SUM(weekly!#REF!) ->  | P6: =SUM(weekly!#REF!) ->  | Q6: 174.2 | R6: 113.8624108
A7: 2001-06-01 | B7: =SUM(weekly!#REF!) ->  | C7: =SUM(weekly!B24:B27) -> 2 | F7: =SUM(weekly!#REF!) ->  | G7: =SUM(weekly!#REF!) ->  | H7: =SUM(weekly!D24:D27) -> 13 | K7: =SUM(weekly!#REF!) ->  | L7: =SUM(weekly!#REF!) ->  | M7: =SUM(weekly!#REF!) ->  | N7: =SUM(weekly!#REF!) ->  | P7: =SUM(weekly!#REF!) ->  | Q7: 173.8 | R7: 113.6009587
A8: 2001-07-01 | B8: =SUM(weekly!#REF!) ->  | C8: =SUM(weekly!B28:B31) -> 1 | F8: =SUM(weekly!#REF!) ->  | G8: =SUM(weekly!#REF!) ->  | H8: =SUM(weekly!D28:D31) -> 5 | K8: =SUM(weekly!#REF!) ->  | L8: =SUM(weekly!#REF!) ->  | M8: =SUM(weekly!#REF!) ->  | N8: =SUM(weekly!#REF!) ->  | P8: =SUM(weekly!#REF!) ->  | Q8: 172.5 | R8: 112.7512392
A9: 2001-08-01 | B9: =SUM(weekly!#REF!) ->  | C9: =SUM(weekly!B32:B36) -> 9 | F9: =SUM(weekly!#REF!) ->  | G9: =SUM(weekly!#REF!) ->  | H9: =SUM(weekly!D32:D36) -> 19 | K9: =SUM(weekly!#REF!) ->  | L9: =SUM(weekly!#REF!) ->  | M9: =SUM(weekly!#REF!) ->  | N9: =SUM(weekly!#REF!) ->  | P9: =SUM(weekly!#REF!) ->  | Q9: 173 | R9: 113.0780544
A10: 2001-09-01 | B10: =SUM(weekly!#REF!) ->  | C10: =SUM(weekly!B37:B40) -> 6 | F10: =SUM(weekly!#REF!) ->  | G10: =SUM(weekly!#REF!) ->  | H10: =SUM(weekly!D37:D40) -> 19 | K10: =SUM(weekly!#REF!) ->  | L10: =SUM(weekly!#REF!) ->  | M10: =SUM(weekly!#REF!) ->  | N10: =SUM(weekly!#REF!) ->  | P10: =SUM(weekly!#REF!) ->  | Q10: 174.6 | R10: 114.123863
A11: 2001-10-01 | B11: =SUM(weekly!#REF!) ->  | C11: =SUM(weekly!B41:B45) -> 0 | F11: =SUM(weekly!#REF!) ->  | G11: =SUM(weekly!#REF!) ->  | H11: =SUM(weekly!D41:D45) -> 19 | K11: =SUM(weekly!#REF!) ->  | L11: =SUM(weekly!#REF!) ->  | M11: =SUM(weekly!#REF!) ->  | N11: =SUM(weekly!#REF!) ->  | P11: =SUM(weekly!#REF!) ->  | Q11: 172.6 | R11: 112.8166022
A12: 2001-11-01 | B12: =SUM(weekly!#REF!) ->  | C12: =SUM(weekly!B46:B49) -> 7 | F12: =SUM(weekly!#REF!) ->  | G12: =SUM(weekly!#REF!) ->  | H12: =SUM(weekly!D46:D49) -> 10 | K12: =SUM(weekly!#REF!) ->  | L12: =SUM(weekly!#REF!) ->  | M12: =SUM(weekly!#REF!) ->  | N12: =SUM(weekly!#REF!) ->  | P12: =SUM(weekly!#REF!) ->  | Q12: 172.5 | R12: 112.7512392
A13: 2001-12-01 | B13: =SUM(weekly!#REF!) ->  | C13: =SUM(weekly!B50:B53) -> 3 | F13: =SUM(weekly!#REF!) ->  | G13: =SUM(weekly!#REF!) ->  | H13: =SUM(weekly!D50:D53) -> 6 | K13: =SUM(weekly!#REF!) ->  | L13: =SUM(weekly!#REF!) ->  | M13: =SUM(weekly!#REF!) ->  | N13: =SUM(weekly!#REF!) ->  | P13: =SUM(weekly!#REF!) ->  | Q13: 171.9 | R13: 112.359061
A14: 2002-01-01 | B14: =SUM(weekly!#REF!) ->  | C14: =SUM(weekly!B54:B58) -> 1 | D14: =SUM(weekly!C54:C58) -> 50000 | E14: =(D14/R14)*100 -> 44448.47957 | F14: =SUM(weekly!#REF!) ->  | G14: =SUM(weekly!#REF!) ->  | H14: =SUM(weekly!D54:D58) -> 9 | I14: =SUM(weekly!E54:E58) -> 3075000 | J14: =(I14/R14)*100 -> 2733581.493 | K14: =SUM(weekly!#REF!) ->  | L14: =SUM(weekly!#REF!) ->  | M14: =SUM(weekly!#REF!) ->  | N14: =SUM(weekly!#REF!) ->  | O14: =(N14/R14)*100 ->  | P14: =SUM(weekly!#REF!) ->  | Q14: 172.1 | R14: 112.489787
A15: 2002-02-01 | B15: =SUM(weekly!#REF!) ->  | C15: =SUM(weekly!B59:B62) -> 1 | D15: =SUM(weekly!C59:C62) -> 150000 | E15: =(D15/R15)*100 -> 133036.2319 | F15: =SUM(weekly!#REF!) ->  | G15: =SUM(weekly!#REF!) ->  | H15: =SUM(weekly!D59:D62) -> 6 | I15: =SUM(weekly!E59:E62) -> 1993000 | J15: =(I15/R15)*100 -> 1767608.068 | K15: =SUM(weekly!#REF!) ->  | L15: =SUM(weekly!#REF!) ->  | M15: =SUM(weekly!#REF!) ->  | N15: =SUM(weekly!#REF!) ->  | O15: =(N15/R15)*100 ->  | P15: =SUM(weekly!#REF!) ->  | Q15: 172.5 | R15: 112.7512392
A16: 2002-03-01 | B16: =SUM(weekly!#REF!) ->  | C16: =SUM(weekly!B63:B66) -> 2 | D16: =SUM(weekly!C63:C66) -> 287000 | E16: 252929.7715 | F16: =SUM(weekly!#REF!) ->  | G16: =SUM(weekly!#REF!) ->  | H16: =SUM(weekly!D63:D66) -> 7 | I16: =SUM(weekly!E63:E66) -> 1938410 | J16: 1708298.252 | K16: =SUM(weekly!#REF!) ->  | L16: =SUM(weekly!#REF!) ->  | M16: =SUM(weekly!#REF!) ->  | N16: =SUM(weekly!#REF!) ->  | P16: =SUM(weekly!#REF!) ->  | Q16: 173.6 | R16: 113.4702326
A17: 2002-04-01 | B17: =SUM(weekly!#REF!) ->  | C17: =SUM(weekly!B67:B70) -> 2 | D17: =SUM(weekly!C67:C70) -> 190000 | E17: 166390.4789 | F17: =SUM(weekly!#REF!) ->  | G17: =SUM(weekly!#REF!) ->  | H17: =SUM(weekly!D67:D70) -> 10 | I17: =SUM(weekly!E67:E70) -> 6234896 | J17: 5460143.85 | K17: =SUM(weekly!#REF!) ->  | L17: =SUM(weekly!#REF!) ->  | M17: =SUM(weekly!#REF!) ->  | N17: =SUM(weekly!#REF!) ->  | P17: =SUM(weekly!#REF!) ->  | Q17: 174.7 | R17: 114.189226
A18: 2002-05-01 | B18: =SUM(weekly!#REF!) ->  | C18: =SUM(weekly!B71:B75) -> 3 | D18: =SUM(weekly!C71:C75) -> 479000 | E18: 419239.1781 | F18: =SUM(weekly!#REF!) ->  | G18: =SUM(weekly!#REF!) ->  | H18: =SUM(weekly!D71:D75) -> 12 | I18: =SUM(weekly!E71:E75) -> 4533000 | J18: 3967455.521 | K18: =SUM(weekly!#REF!) ->  | L18: =SUM(weekly!#REF!) ->  | M18: =SUM(weekly!#REF!) ->  | N18: =SUM(weekly!#REF!) ->  | P18: =SUM(weekly!#REF!) ->  | Q18: 174.8 | R18: 114.254589
A19: 2002-06-01 | B19: =SUM(weekly!#REF!) ->  | C19: =SUM(weekly!B76:B79) -> 3 | D19: =SUM(weekly!C76:C79) -> 1052000 | E19: 918124.5484 | F19: =SUM(weekly!#REF!) ->  | G19: =SUM(weekly!#REF!) ->  | H19: =SUM(weekly!D76:D79) -> 18 | I19: =SUM(weekly!E76:E79) -> 11556930 | J19: 10086217.81 | K19: =SUM(weekly!#REF!) ->  | L19: =SUM(weekly!#REF!) ->  | M19: =SUM(weekly!#REF!) ->  | N19: =SUM(weekly!#REF!) ->  | P19: =SUM(weekly!#REF!) ->  | Q19: 175.3 | R19: 114.5814042
A20: 2002-07-01 | B20: =SUM(weekly!#REF!) ->  | C20: =SUM(weekly!B80:B84) -> 4 | D20: =SUM(weekly!C80:C84) -> 2069000 | E20: 1805703.128 | F20: =SUM(weekly!#REF!) ->  | G20: =SUM(weekly!#REF!) ->  | H20: =SUM(weekly!D80:D84) -> 18 | I20: =SUM(weekly!E80:E84) -> 10566000 | J20: 9221391.614 | K20: =SUM(weekly!#REF!) ->  | L20: =SUM(weekly!#REF!) ->  | M20: =SUM(weekly!#REF!) ->  | N20: =SUM(weekly!#REF!) ->  | P20: =SUM(weekly!#REF!) ->  | Q20: 175.3 | R20: 114.5814042
A21: 2002-08-01 | B21: =SUM(weekly!#REF!) ->  | C21: =SUM(weekly!B85:B88) -> 2 | D21: =SUM(weekly!C85:C88) -> 675000 | E21: 587425.3413 | F21: =SUM(weekly!#REF!) ->  | G21: =SUM(weekly!#REF!) ->  | H21: =SUM(weekly!D85:D88) -> 11 | I21: =SUM(weekly!E85:E88) -> 3217000 | J21: 2799625.664 | K21: =SUM(weekly!#REF!) ->  | L21: =SUM(weekly!#REF!) ->  | M21: =SUM(weekly!#REF!) ->  | N21: =SUM(weekly!#REF!) ->  | P21: =SUM(weekly!#REF!) ->  | Q21: 175.8 | R21: 114.9082194
A22: 2002-09-01 | B22: =SUM(weekly!#REF!) ->  | C22: =SUM(weekly!B89:B92) -> 0 | D22: =SUM(weekly!C89:C92) -> 0 | E22: 0 | F22: =SUM(weekly!#REF!) ->  | G22: =SUM(weekly!#REF!) ->  | H22: =SUM(weekly!D89:D92) -> 9 | I22: =SUM(weekly!E89:E92) -> 2809500 | J22: 2439444.31 | K22: =SUM(weekly!#REF!) ->  | L22: =SUM(weekly!#REF!) ->  | M22: =SUM(weekly!#REF!) ->  | N22: =SUM(weekly!#REF!) ->  | P22: =SUM(weekly!#REF!) ->  | Q22: 176.2 | R22: 115.1696716
A23: 2002-10-01 | B23: =SUM(weekly!#REF!) ->  | C23: =SUM(weekly!B93:B97) -> 7 | D23: =SUM(weekly!C93:C97) -> 5952900 | E23: 5165876.872 | F23: =SUM(weekly!#REF!) ->  | G23: =SUM(weekly!#REF!) ->  | H23: =SUM(weekly!D93:D97) -> 11 | I23: =SUM(weekly!E93:E97) -> 3155500 | J23: 2738316.53 | K23: =SUM(weekly!#REF!) ->  | L23: =SUM(weekly!#REF!) ->  | M23: =SUM(weekly!#REF!) ->  | N23: =SUM(weekly!#REF!) ->  | P23: =SUM(weekly!#REF!) ->  | Q23: 176.3 | R23: 115.2350346
A24: 2002-11-01 | B24: =SUM(weekly!#REF!) ->  | C24: =SUM(weekly!B98:B101) -> 1 | D24: =SUM(weekly!C98:C101) -> 2650000 | E24: 2302259.606 | F24: =SUM(weekly!#REF!) ->  | G24: =SUM(weekly!#REF!) ->  | H24: =SUM(weekly!D98:D101) -> 5 | I24: =SUM(weekly!E98:E101) -> 1512800 | J24: 1314286.163 | K24: =SUM(weekly!#REF!) ->  | L24: =SUM(weekly!#REF!) ->  | M24: =SUM(weekly!#REF!) ->  | N24: =SUM(weekly!#REF!) ->  | P24: =SUM(weekly!#REF!) ->  | Q24: 176.1 | R24: 115.1043085
A25: 2002-12-01 | B25: =SUM(weekly!#REF!) ->  | C25: =SUM(weekly!B102:B105) -> 1 | D25: =SUM(weekly!C102:C105) -> 118000 | E25: 102866.1918 | F25: =SUM(weekly!#REF!) ->  | G25: =SUM(weekly!#REF!) ->  | H25: =SUM(weekly!D102:D105) -> 5 | I25: =SUM(weekly!E102:E105) -> 1613908 | J25: 1406920.084 | K25: =SUM(weekly!#REF!) ->  | L25: =SUM(weekly!#REF!) ->  | M25: =SUM(weekly!#REF!) ->  | N25: =SUM(weekly!#REF!) ->  | P25: =SUM(weekly!#REF!) ->  | Q25: 175.5 | R25: 114.7121303
A26: 2003-01-01 | B26: =SUM(weekly!#REF!) ->  | C26: =SUM(weekly!B106:B110) -> 1 | D26: =SUM(weekly!C106:C110) -> 2750000 | E26: 2387781.404 | F26: =SUM(weekly!#REF!) ->  | G26: =SUM(weekly!#REF!) ->  | H26: =SUM(weekly!D106:D110) -> 0 | I26: =SUM(weekly!E106:E110) -> 0 | J26: 0 | K26: =SUM(weekly!#REF!) ->  | L26: =SUM(weekly!#REF!) ->  | M26: =SUM(weekly!#REF!) ->  | N26: =SUM(weekly!#REF!) ->  | P26: =SUM(weekly!#REF!) ->  | Q26: 176.2 | R26: 115.1696716
A27: 2003-02-01 | B27: =SUM(weekly!#REF!) ->  | C27: =SUM(weekly!B111:B114) -> 0 | D27: =SUM(weekly!C111:C114) -> 0 | E27: 0 | F27: =SUM(weekly!#REF!) ->  | G27: =SUM(weekly!#REF!) ->  | H27: =SUM(weekly!D111:D114) -> 1 | I27: =SUM(weekly!E111:E114) -> 250000 | J27: 215117.6415 | K27: =SUM(weekly!#REF!) ->  | L27: =SUM(weekly!#REF!) ->  | M27: =SUM(weekly!#REF!) ->  | N27: =SUM(weekly!#REF!) ->  | P27: =SUM(weekly!#REF!) ->  | Q27: 177.8 | R27: 116.2154801
A28: 2003-03-01 | B28: =SUM(weekly!#REF!) ->  | C28: =SUM(weekly!B115:B118) -> 0 | D28: =SUM(weekly!C115:C118) -> 0 | E28: 0 | F28: =SUM(weekly!#REF!) ->  | G28: =SUM(weekly!#REF!) ->  | H28: =SUM(weekly!D115:D118) -> 3 | I28: =SUM(weekly!E115:E118) -> 5345000 | J28: 4578613.988 | K28: =SUM(weekly!#REF!) ->  | L28: =SUM(weekly!#REF!) ->  | M28: =SUM(weekly!#REF!) ->  | N28: =SUM(weekly!#REF!) ->  | P28: =SUM(weekly!#REF!) ->  | Q28: 178.6 | R28: 116.7383844
A29: 2003-04-01 | B29: =SUM(weekly!#REF!) ->  | C29: =SUM(weekly!B119:B123) -> 2 | D29: =SUM(weekly!C119:C123) -> 3088000 | E29: 2657133.108 | F29: =SUM(weekly!#REF!) ->  | G29: =SUM(weekly!#REF!) ->  | H29: =SUM(weekly!D119:D123) -> 8 | I29: =SUM(weekly!E119:E123) -> 3540000 | J29: 3046065.804 | K29: =SUM(weekly!#REF!) ->  | L29: =SUM(weekly!#REF!) ->  | M29: =SUM(weekly!#REF!) ->  | N29: =SUM(weekly!#REF!) ->  | P29: =SUM(weekly!#REF!) ->  | Q29: 177.8 | R29: 116.2154801
A30: 2003-05-01 | B30: =SUM(weekly!#REF!) ->  | C30: =SUM(weekly!B124:B127) -> 0 | D30: =SUM(weekly!C124:C127) -> 0 | E30: 0 | F30: =SUM(weekly!#REF!) ->  | G30: =SUM(weekly!#REF!) ->  | H30: =SUM(weekly!D124:D127) -> 8 | I30: =SUM(weekly!E124:E127) -> 3804000 | J30: 3275072.032 | K30: =SUM(weekly!#REF!) ->  | L30: =SUM(weekly!#REF!) ->  | M30: =SUM(weekly!#REF!) ->  | N30: =SUM(weekly!#REF!) ->  | P30: =SUM(weekly!#REF!) ->  | Q30: 177.7 | R30: 116.1501171
A31: 2003-06-01 | B31: =SUM(weekly!#REF!) ->  | C31: =SUM(weekly!B128:B131) -> 2 | D31: =SUM(weekly!C128:C131) -> 208000 | E31: 178375.9342 | F31: =SUM(weekly!#REF!) ->  | G31: =SUM(weekly!#REF!) ->  | H31: =SUM(weekly!D128:D131) -> 6 | I31: =SUM(weekly!E128:E131) -> 1006490 | J31: 863142.2791 | K31: =SUM(weekly!#REF!) ->  | L31: =SUM(weekly!#REF!) ->  | M31: =SUM(weekly!#REF!) ->  | N31: =SUM(weekly!#REF!) ->  | P31: =SUM(weekly!#REF!) ->  | Q31: 178.4 | R31: 116.6076584
A32: 2003-07-01 | B32: =SUM(weekly!#REF!) ->  | C32: =SUM(weekly!B132:B136) -> 5 | D32: =SUM(weekly!C132:C136) -> 4859000 | E32: 4173983.764 | F32: =SUM(weekly!#REF!) ->  | G32: =SUM(weekly!#REF!) ->  | H32: =SUM(weekly!D132:D136) -> 6 | I32: =SUM(weekly!E132:E136) -> 1806487 | J32: 1551810.539 | K32: =SUM(weekly!#REF!) ->  | L32: =SUM(weekly!#REF!) ->  | M32: =SUM(weekly!#REF!) ->  | N32: =SUM(weekly!#REF!) ->  | P32: =SUM(weekly!#REF!) ->  | Q32: 178.1 | R32: 116.4115693
A33: 2003-08-01 | B33: =SUM(weekly!#REF!) ->  | C33: =SUM(weekly!B137:B140) -> 3 | D33: =SUM(weekly!C137:C140) -> 545000 | E33: 466333.6596 | F33: =SUM(weekly!#REF!) ->  | G33: =SUM(weekly!#REF!) ->  | H33: =SUM(weekly!D137:D140) -> 7 | I33: =SUM(weekly!E137:E140) -> 2440000 | J33: 2087805.742 | K33: =SUM(weekly!#REF!) ->  | L33: =SUM(weekly!#REF!) ->  | M33: =SUM(weekly!#REF!) ->  | N33: =SUM(weekly!#REF!) ->  | P33: =SUM(weekly!#REF!) ->  | Q33: 178.8 | R33: 116.8691105
A34: 2003-09-01 | B34: =SUM(weekly!#REF!) ->  | C34: =SUM(weekly!B141:B144) -> 4 | D34: =SUM(weekly!C141:C144) -> 2395000 | E34: 2041309.424 | F34: =SUM(weekly!#REF!) ->  | G34: =SUM(weekly!#REF!) ->  | H34: =SUM(weekly!D141:D144) -> 12 | I34: =SUM(weekly!E141:E144) -> 12140000 | J34: 10347180.13 | K34: =SUM(weekly!#REF!) ->  | L34: =SUM(weekly!#REF!) ->  | M34: =SUM(weekly!#REF!) ->  | N34: =SUM(weekly!#REF!) ->  | P34: =SUM(weekly!#REF!) ->  | Q34: 179.5 | R34: 117.3266518
A35: 2003-10-01 | B35: =SUM(weekly!#REF!) ->  | C35: =SUM(weekly!B145:B149) -> 1 | D35: =SUM(weekly!C145:C149) -> 78702 | E35: 67229.2024 | F35: =SUM(weekly!#REF!) ->  | G35: =SUM(weekly!#REF!) ->  | H35: =SUM(weekly!D145:D149) -> 15 | I35: =SUM(weekly!E145:E149) -> 5366000 | J35: 4583770.426 | K35: =SUM(weekly!#REF!) ->  | L35: =SUM(weekly!#REF!) ->  | M35: =SUM(weekly!#REF!) ->  | N35: =SUM(weekly!#REF!) ->  | P35: =SUM(weekly!#REF!) ->  | Q35: 179.1 | R35: 117.0651996
A36: 2003-11-01 | B36: =SUM(weekly!#REF!) ->  | C36: =SUM(weekly!B150:B153) -> 0 | D36: =SUM(weekly!C150:C153) -> 0 | E36: 0 | F36: =SUM(weekly!#REF!) ->  | G36: =SUM(weekly!#REF!) ->  | H36: =SUM(weekly!D150:D153) -> 6 | I36: =SUM(weekly!E150:E153) -> 1353000 | J36: 1157058.273 | K36: =SUM(weekly!#REF!) ->  | L36: =SUM(weekly!#REF!) ->  | M36: =SUM(weekly!#REF!) ->  | N36: =SUM(weekly!#REF!) ->  | P36: =SUM(weekly!#REF!) ->  | Q36: 178.9 | R36: 116.9344736
A37: 2003-12-01 | B37: =SUM(weekly!#REF!) ->  | C37: =SUM(weekly!B154:B158) -> 0 | D37: =SUM(weekly!C154:C158) -> 0 | E37: 0 | F37: =SUM(weekly!#REF!) ->  | G37: =SUM(weekly!#REF!) ->  | H37: =SUM(weekly!D154:D158) -> 2 | I37: =SUM(weekly!E154:E158) -> 4200000 | J37: 3601821.749 | K37: =SUM(weekly!#REF!) ->  | L37: =SUM(weekly!#REF!) ->  | M37: =SUM(weekly!#REF!) ->  | N37: =SUM(weekly!#REF!) ->  | P37: =SUM(weekly!#REF!) ->  | Q37: 178.4 | R37: 116.6076584
A38: 2004-01-01 | B38: =SUM(weekly!#REF!) ->  | C38: =SUM(weekly!B159:B162) -> 1 | D38: =SUM(weekly!C159:C162) -> 170000 | E38: 144975.3809 | F38: =SUM(weekly!#REF!) ->  | G38: =SUM(weekly!#REF!) ->  | H38: =SUM(weekly!D159:D162) -> 1 | I38: =SUM(weekly!E159:E162) -> 604000 | J38: 515089.0004 | K38: =SUM(weekly!#REF!) ->  | L38: =SUM(weekly!#REF!) ->  | M38: =SUM(weekly!#REF!) ->  | N38: =SUM(weekly!#REF!) ->  | P38: =SUM(weekly!#REF!) ->  | Q38: 179.4 | R38: 117.2612887
A39: 2004-02-01 | B39: =SUM(weekly!#REF!) ->  | C39: =SUM(weekly!B163:B166) -> 1 | D39: =SUM(weekly!C163:C166) -> 765000 | E39: 649492.9245 | F39: =SUM(weekly!#REF!) ->  | G39: =SUM(weekly!#REF!) ->  | H39: =SUM(weekly!D163:D166) -> 3 | I39: =SUM(weekly!E163:E166) -> 440000 | J39: 373564.5579 | K39: =SUM(weekly!#REF!) ->  | L39: =SUM(weekly!#REF!) ->  | M39: =SUM(weekly!#REF!) ->  | N39: =SUM(weekly!#REF!) ->  | P39: =SUM(weekly!#REF!) ->  | Q39: 180.2 | R39: 117.784193
A40: 2004-03-01 | B40: =SUM(weekly!#REF!) ->  | C40: =SUM(weekly!B167:B171) -> 1 | D40: =SUM(weekly!C167:C171) -> 300000 | E40: 253577.3481 | F40: =SUM(weekly!#REF!) ->  | G40: =SUM(weekly!#REF!) ->  | H40: =SUM(weekly!D167:D171) -> 3 | I40: =SUM(weekly!E167:E171) -> 870000 | J40: 735374.3094 | K40: =SUM(weekly!#REF!) ->  | L40: =SUM(weekly!#REF!) ->  | M40: =SUM(weekly!#REF!) ->  | N40: =SUM(weekly!#REF!) ->  | P40: =SUM(weekly!#REF!) ->  | Q40: 181 | R40: 118.3070973
A41: 2004-04-01 | B41: =SUM(weekly!#REF!) ->  | C41: =SUM(weekly!B172:B175) -> 1 | D41: =SUM(weekly!C172:C175) -> 280000 | E41: 236020.202 | F41: =SUM(weekly!#REF!) ->  | G41: =SUM(weekly!#REF!) ->  | H41: =SUM(weekly!D172:D175) -> 7 | I41: =SUM(weekly!E172:E175) -> 4825000 | J41: 4067133.838 | K41: =SUM(weekly!#REF!) ->  | L41: =SUM(weekly!#REF!) ->  | M41: =SUM(weekly!#REF!) ->  | N41: =SUM(weekly!#REF!) ->  | P41: =SUM(weekly!#REF!) ->  | Q41: 181.5 | R41: 118.6339125
A42: 2004-05-01 | B42: =SUM(weekly!#REF!) ->  | C42: =SUM(weekly!B176:B179) -> 5 | D42: =SUM(weekly!C176:C179) -> 4206000 | E42: 3518222.799 | F42: =SUM(weekly!#REF!) ->  | G42: =SUM(weekly!#REF!) ->  | H42: =SUM(weekly!D176:D179) -> 16 | I42: =SUM(weekly!E176:E179) -> 7908990 | J42: 6615689.239 | K42: =SUM(weekly!#REF!) ->  | L42: =SUM(weekly!#REF!) ->  | M42: =SUM(weekly!#REF!) ->  | N42: =SUM(weekly!#REF!) ->  | P42: =SUM(weekly!#REF!) ->  | Q42: 182.9 | R42: 119.548995
A43: 2004-06-01 | B43: =SUM(weekly!#REF!) ->  | C43: =SUM(weekly!B180:B184) -> 4 | D43: =SUM(weekly!C180:C184) -> 6015000 | E43: 5020430.306 | F43: =SUM(weekly!#REF!) ->  | G43: =SUM(weekly!#REF!) ->  | H43: =SUM(weekly!D180:D184) -> 7 | I43: =SUM(weekly!E180:E184) -> 1854400 | J43: 1547778.214 | K43: =SUM(weekly!#REF!) ->  | L43: =SUM(weekly!#REF!) ->  | M43: =SUM(weekly!#REF!) ->  | N43: =SUM(weekly!#REF!) ->  | P43: =SUM(weekly!#REF!) ->  | Q43: 183.3 | R43: 119.8104472
A44: 2004-07-01 | B44: =SUM(weekly!#REF!) ->  | C44: =SUM(weekly!B185:B188) -> 6 | D44: =SUM(weekly!C185:C188) -> 3519000 | E44: 2938742.767 | F44: =SUM(weekly!#REF!) ->  | G44: =SUM(weekly!D185:D188) -> 3 | H44: =SUM(weekly!D185:D188) -> 3 | I44: =SUM(weekly!E185:E188) -> 870000 | J44: 726543.3952 | K44: =SUM(weekly!#REF!) ->  | L44: =SUM(weekly!#REF!) ->  | M44: =SUM(weekly!#REF!) ->  | N44: =SUM(weekly!#REF!) ->  | P44: =SUM(weekly!#REF!) ->  | Q44: 183.2 | R44: 119.7450842
A45: 2004-08-01 | B45: =SUM(weekly!#REF!) ->  | C45: =SUM(weekly!B189:B192) -> 2 | D45: =SUM(weekly!C189:C192) -> 90000 | E45: 75118.65794 | F45: =SUM(weekly!#REF!) ->  | G45: =SUM(weekly!#REF!) ->  | H45: =SUM(weekly!D189:D192) -> 2 | I45: =SUM(weekly!E189:E192) -> 1160000 | J45: 968196.0356 | K45: =SUM(weekly!#REF!) ->  | L45: =SUM(weekly!#REF!) ->  | M45: =SUM(weekly!#REF!) ->  | N45: =SUM(weekly!#REF!) ->  | P45: =SUM(weekly!#REF!) ->  | Q45: 183.3 | R45: 119.8104472
A46: 2004-09-01 | B46: =SUM(weekly!#REF!) ->  | C46: =SUM(weekly!B193:B197) -> 4 | D46: =SUM(weekly!C193:C197) -> 580000 | E46: 483307.008 | F46: =SUM(weekly!#REF!) ->  | G46: =SUM(weekly!#REF!) ->  | H46: =SUM(weekly!D193:D197) -> 6 | I46: =SUM(weekly!E193:E197) -> 1720000 | J46: 1433255.265 | K46: =SUM(weekly!#REF!) ->  | L46: =SUM(weekly!#REF!) ->  | M46: =SUM(weekly!#REF!) ->  | N46: =SUM(weekly!#REF!) ->  | P46: =SUM(weekly!#REF!) ->  | Q46: 183.6 | R46: 120.0065363
A47: 2004-10-01 | B47: =SUM(weekly!#REF!) ->  | C47: =SUM(weekly!B198:B201) -> 1 | D47: =SUM(weekly!C198:C201) -> 757065 | E47: 627775.8056 | F47: =SUM(weekly!#REF!) ->  | G47: =SUM(weekly!#REF!) ->  | H47: =SUM(weekly!D198:D201) -> 7 | I47: =SUM(weekly!E198:E201) -> 5254650 | J47: 4357277.297 | K47: =SUM(weekly!#REF!) ->  | L47: =SUM(weekly!#REF!) ->  | M47: =SUM(weekly!#REF!) ->  | N47: =SUM(weekly!#REF!) ->  | P47: =SUM(weekly!#REF!) ->  | Q47: 184.5 | R47: 120.5948036
A48: 2004-11-01 | B48: =SUM(weekly!#REF!) ->  | C48: =SUM(weekly!B202:B205) -> 0 | D48: =SUM(weekly!C202:C205) -> 0 | E48: 0 | F48: =SUM(weekly!#REF!) ->  | G48: =SUM(weekly!#REF!) ->  | H48: =SUM(weekly!D202:D205) -> 13 | I48: =SUM(weekly!E202:E205) -> 4598000 | J48: 3806578.373 | K48: =SUM(weekly!#REF!) ->  | L48: =SUM(weekly!#REF!) ->  | M48: =SUM(weekly!#REF!) ->  | N48: =SUM(weekly!#REF!) ->  | P48: =SUM(weekly!#REF!) ->  | Q48: 184.8 | R48: 120.7908928
A49: 2004-12-01 | B49: =SUM(weekly!#REF!) ->  | C49: =SUM(weekly!B206:B210) -> 1 | D49: =SUM(weekly!C206:C210) -> 470000 | E49: 391219.1694 | F49: =SUM(weekly!#REF!) ->  | G49: =SUM(weekly!#REF!) ->  | H49: =SUM(weekly!D206:D210) -> 3 | I49: =SUM(weekly!E206:E210) -> 4964000 | J49: 4131940.334 | K49: =SUM(weekly!#REF!) ->  | L49: =SUM(weekly!#REF!) ->  | M49: =SUM(weekly!#REF!) ->  | N49: =SUM(weekly!#REF!) ->  | P49: =SUM(weekly!#REF!) ->  | Q49: 183.8 | R49: 120.1372624
A50: 2005-01-01 | B50: =SUM(weekly!#REF!) ->  | C50: =SUM(weekly!B211:B214) -> 2 | D50: =SUM(weekly!C211:C214) -> 630000 | E50: 523545.6274 | F50: =SUM(weekly!#REF!) ->  | G50: =SUM(weekly!#REF!) ->  | H50: =SUM(weekly!D211:D214) -> 2 | I50: =SUM(weekly!E211:E214) -> 90000 | J50: 74792.23248 | K50: =SUM(weekly!#REF!) ->  | L50: =SUM(weekly!#REF!) ->  | M50: =SUM(weekly!#REF!) ->  | N50: =SUM(weekly!#REF!) ->  | P50: =SUM(weekly!#REF!) ->  | Q50: 184.1 | R50: 120.3333515
A51: 2005-02-01 | B51: =SUM(weekly!#REF!) ->  | C51: =SUM(weekly!B215:B218) -> 0 | D51: =SUM(weekly!C215:C218) -> 0 | E51: 0 | F51: =SUM(weekly!#REF!) ->  | G51: =SUM(weekly!#REF!) ->  | H51: =SUM(weekly!D215:D218) -> 0 | I51: =SUM(weekly!E215:E218) -> 0 | J51: 0 | K51: =SUM(weekly!#REF!) ->  | L51: =SUM(weekly!#REF!) ->  | M51: =SUM(weekly!#REF!) ->  | N51: =SUM(weekly!#REF!) ->  | P51: =SUM(weekly!#REF!) ->  | Q51: 185.2 | R51: 121.0523449
A52: 2005-03-01 | B52: =SUM(weekly!#REF!) ->  | C52: =SUM(weekly!B219:B223) -> 5 | D52: =SUM(weekly!C219:C223) -> 1607900 | E52: 1320425.662 | F52: =SUM(weekly!#REF!) ->  | G52: =SUM(weekly!#REF!) ->  | H52: =SUM(weekly!D219:D223) -> 1 | I52: =SUM(weekly!E219:E223) -> 500000 | J52: 410605.654 | K52: =SUM(weekly!#REF!) ->  | L52: =SUM(weekly!#REF!) ->  | M52: =SUM(weekly!#REF!) ->  | N52: =SUM(weekly!#REF!) ->  | P52: =SUM(weekly!#REF!) ->  | Q52: 186.3 | R52: 121.7713383
A53: 2005-04-01 | B53: =SUM(weekly!#REF!) ->  | C53: =SUM(weekly!B224:B227) -> 1 | D53: =SUM(weekly!C224:C227) -> 179000 | E53: 145900.4173 | F53: =SUM(weekly!#REF!) ->  | G53: =SUM(weekly!#REF!) ->  | H53: =SUM(weekly!D224:D227) -> 9 | I53: =SUM(weekly!E224:E227) -> 2532068 | J53: 2063853.508 | K53: =SUM(weekly!#REF!) ->  | L53: =SUM(weekly!#REF!) ->  | M53: =SUM(weekly!#REF!) ->  | N53: =SUM(weekly!#REF!) ->  | P53: =SUM(weekly!#REF!) ->  | Q53: 187.7 | R53: 122.6864208
A54: 2005-05-01 | B54: =SUM(weekly!#REF!) ->  | C54: =SUM(weekly!B228:B231) -> 0 | D54: =SUM(weekly!C228:C231) -> 0 | E54: 0 | F54: =SUM(weekly!#REF!) ->  | G54: =SUM(weekly!#REF!) ->  | H54: =SUM(weekly!D228:D231) -> 4 | I54: =SUM(weekly!E228:E231) -> 2375000 | J54: 1938928.54 | K54: =SUM(weekly!#REF!) ->  | L54: =SUM(weekly!#REF!) ->  | M54: =SUM(weekly!#REF!) ->  | N54: =SUM(weekly!#REF!) ->  | P54: =SUM(weekly!#REF!) ->  | Q54: 187.4 | R54: 122.4903317
A55: 2005-06-01 | B55: =SUM(weekly!#REF!) ->  | C55: =SUM(weekly!B232:B236) -> 3 | D55: =SUM(weekly!C232:C236) -> 1628000 | E55: 1326253.639 | F55: =SUM(weekly!#REF!) ->  | G55: =SUM(weekly!#REF!) ->  | H55: =SUM(weekly!D232:D236) -> 7 | I55: =SUM(weekly!E232:E236) -> 5309710 | J55: 4325566.467 | K55: =SUM(weekly!#REF!) ->  | L55: =SUM(weekly!#REF!) ->  | M55: =SUM(weekly!#REF!) ->  | N55: =SUM(weekly!#REF!) ->  | P55: =SUM(weekly!#REF!) ->  | Q55: 187.8 | R55: 122.7517839
A56: 2005-07-01 | B56: =SUM(weekly!#REF!) ->  | C56: =SUM(weekly!B237:B240) -> 1 | D56: =SUM(weekly!C237:C240) -> 120500 | E56: 97852.95028 | F56: =SUM(weekly!#REF!) ->  | G56: =SUM(weekly!#REF!) ->  | H56: =SUM(weekly!D237:D240) -> 3 | I56: =SUM(weekly!E237:E240) -> 1833800 | J56: 1489151.371 | K56: =SUM(weekly!#REF!) ->  | L56: =SUM(weekly!#REF!) ->  | M56: =SUM(weekly!#REF!) ->  | N56: =SUM(weekly!#REF!) ->  | P56: =SUM(weekly!#REF!) ->  | Q56: 188.4 | R56: 123.1439621
A57: 2005-08-01 | B57: =SUM(weekly!#REF!) ->  | C57: =SUM(weekly!B241:B245) -> 0 | D57: =SUM(weekly!C241:C245) -> 0 | E57: 0 | F57: =SUM(weekly!#REF!) ->  | G57: =SUM(weekly!#REF!) ->  | H57: =SUM(weekly!D241:D245) -> 8 | I57: =SUM(weekly!E241:E245) -> 14847600 | J57: 11974481.13 | K57: =SUM(weekly!#REF!) ->  | L57: =SUM(weekly!#REF!) ->  | M57: =SUM(weekly!#REF!) ->  | N57: =SUM(weekly!#REF!) ->  | P57: =SUM(weekly!#REF!) ->  | Q57: 189.7 | R57: 123.9936816
A58: 2005-09-01 | B58: =SUM(weekly!#REF!) ->  | C58: =SUM(weekly!B246:B249) -> 4 | D58: =SUM(weekly!C250:C253) -> 2400000 | E58: 1907428.571 | F58: =SUM(weekly!#REF!) ->  | G58: =SUM(weekly!#REF!) ->  | H58: =SUM(weekly!D246:D249) -> 7 | I58: =SUM(weekly!E246:E249) -> 2737300 | J58: 2175501.762 | K58: =SUM(weekly!#REF!) ->  | L58: =SUM(weekly!#REF!) ->  | M58: =SUM(weekly!#REF!) ->  | N58: =SUM(weekly!#REF!) ->  | P58: =SUM(weekly!#REF!) ->  | Q58: 192.5 | R58: 125.8238466
A59: 2005-10-01 | B59: =SUM(weekly!#REF!) ->  | C59: =SUM(weekly!B250:B253) -> 1 | D59: =SUM(weekly!C247:C250) -> 4223000 | E59: 3363268.133 | F59: =SUM(weekly!#REF!) ->  | G59: =SUM(weekly!#REF!) ->  | H59: =SUM(weekly!D250:D253) -> 6 | I59: =SUM(weekly!E250:E253) -> 4488100 | J59: =(I59/R59)*100 -> 3574398.226 | K59: =SUM(weekly!#REF!) ->  | L59: =SUM(weekly!#REF!) ->  | M59: =SUM(weekly!#REF!) ->  | N59: =SUM(weekly!#REF!) ->  | P59: =SUM(weekly!#REF!) ->  | Q59: 192.1 | R59: 125.5623945
A60: 2005-11-01 | B60: =SUM(weekly!#REF!) ->  | C60: =SUM(weekly!B254:B258) -> 0 | D60: =SUM(weekly!C254:C258) -> 0 | E60: 0 | F60: =SUM(weekly!#REF!) ->  | G60: =SUM(weekly!#REF!) ->  | H60: =SUM(weekly!D254:D258) -> 9 | I60: =SUM(weekly!E254:E258) -> 1480000 | J60: 1189845.857 | K60: =SUM(weekly!#REF!) ->  | L60: =SUM(weekly!#REF!) ->  | M60: =SUM(weekly!#REF!) ->  | N60: =SUM(weekly!#REF!) ->  | P60: =SUM(weekly!#REF!) ->  | Q60: 190.3 | R60: 124.3858598
A61: 2005-12-01 | B61: =SUM(weekly!#REF!) ->  | C61: =SUM(weekly!B259:B262) -> 0 | D61: =SUM(weekly!C259:C262) -> 0 | E61: 0 | F61: =SUM(weekly!#REF!) ->  | G61: =SUM(weekly!#REF!) ->  | H61: =SUM(weekly!D259:D262) -> 2 | I61: =SUM(weekly!E259:E262) -> 950000 | J61: 766168.0724 | K61: =SUM(weekly!#REF!) ->  | L61: =SUM(weekly!#REF!) ->  | M61: =SUM(weekly!#REF!) ->  | N61: =SUM(weekly!#REF!) ->  | P61: =SUM(weekly!#REF!) ->  | Q61: 189.7 | R61: 123.9936816
A62: 2006-01-01 | B62: =SUM(weekly!#REF!) ->  | C62: =SUM(weekly!B263:B266) -> 0 | D62: =SUM(weekly!C263:C266) -> 0 | E62: 0 | F62: =SUM(weekly!#REF!) ->  | G62: =SUM(weekly!#REF!) ->  | H62: =SUM(weekly!D263:D266) -> 2 | I62: =SUM(weekly!E263:E266) -> 3750000 | J62: 3006911.688 | K62: =SUM(weekly!#REF!) ->  | L62: =SUM(weekly!#REF!) ->  | M62: =SUM(weekly!#REF!) ->  | N62: =SUM(weekly!#REF!) ->  | P62: =SUM(weekly!#REF!) ->  | Q62: 190.8 | R62: 124.712675
A63: 2006-02-01 | B63: =SUM(weekly!#REF!) ->  | C63: =SUM(weekly!B267:B270) -> 2 | D63: =SUM(weekly!C267:C270) -> 1092200 | E63: 876232.2933 | F63: =SUM(weekly!#REF!) ->  | G63: =SUM(weekly!#REF!) ->  | H63: =SUM(weekly!D267:D270) -> 17 | I63: =SUM(weekly!E267:E270) -> 4268998 | J63: 3424861.662 | K63: =SUM(weekly!#REF!) ->  | L63: =SUM(weekly!#REF!) ->  | M63: =SUM(weekly!#REF!) ->  | N63: =SUM(weekly!#REF!) ->  | P63: =SUM(weekly!#REF!) ->  | Q63: 190.7 | R63: 124.6473119
A64: 2006-03-01 | B64: =SUM(weekly!#REF!) ->  | C64: =SUM(weekly!B271:B275) -> 3 | D64: =SUM(weekly!C271:C275) -> 312850 | E64: 249288.7652 | F64: =SUM(weekly!#REF!) ->  | G64: =SUM(weekly!#REF!) ->  | H64: =SUM(weekly!#REF!) ->  | I64: =SUM(weekly!#REF!) ->  | K64: =SUM(weekly!#REF!) ->  | L64: =SUM(weekly!#REF!) ->  | M64: =SUM(weekly!#REF!) ->  | N64: =SUM(weekly!#REF!) ->  | P64: =SUM(weekly!#REF!) ->  | Q64: 192 | R64: 125.4970314
A65: 2006-04-01 | B65: =SUM(weekly!#REF!) ->  | C65: =SUM(weekly!B276:B279) -> 1 | D65: =SUM(weekly!C276:C279) -> 85000 | E65: 67379.74957 | F65: =SUM(weekly!#REF!) ->  | G65: =SUM(weekly!#REF!) ->  | H65: =SUM(weekly!D276:D279) -> 5 | I65: =SUM(weekly!E276:E279) -> 1028000 | J65: 814898.6183 | K65: =SUM(weekly!#REF!) ->  | L65: =SUM(weekly!#REF!) ->  | M65: =SUM(weekly!#REF!) ->  | N65: =SUM(weekly!#REF!) ->  | P65: =SUM(weekly!#REF!) ->  | Q65: 193 | R65: 126.1506618
A66: 2006-05-01 | B66: =SUM(weekly!#REF!) ->  | C66: =SUM(weekly!B280:B284) -> 4 | D66: =SUM(weekly!C280:C284) -> 1243493 | E66: 982665.633 | F66: =SUM(weekly!#REF!) ->  | G66: =SUM(weekly!#REF!) ->  | H66: =SUM(weekly!D280:D284) -> 17 | I66: =SUM(weekly!E280:E284) -> 2389479 | J66: 1888276.729 | K66: =SUM(weekly!#REF!) ->  | L66: =SUM(weekly!#REF!) ->  | M66: =SUM(weekly!#REF!) ->  | N66: =SUM(weekly!#REF!) ->  | P66: =SUM(weekly!#REF!) ->  | Q66: 193.6 | R66: 126.54284
A67: 2006-06-01 | B67: =SUM(weekly!#REF!) ->  | C67: =SUM(weekly!B285:B288) -> 3 | D67: =SUM(weekly!C285:C288) -> 310000 | E67: 244345.2688 | F67: =SUM(weekly!#REF!) ->  | G67: =SUM(weekly!#REF!) ->  | H67: =SUM(weekly!D285:D288) -> 4 | I67: =SUM(weekly!E285:E288) -> 8795000 | J67: 6932311.738 | K67: =SUM(weekly!#REF!) ->  | L67: =SUM(weekly!#REF!) ->  | M67: =SUM(weekly!#REF!) ->  | N67: =SUM(weekly!#REF!) ->  | P67: =SUM(weekly!#REF!) ->  | Q67: 194.1 | R67: 126.8696552
A68: 2006-07-01 | B68: =SUM(weekly!#REF!) ->  | C68: =SUM(weekly!B289:B292) -> 4 | D68: =SUM(weekly!C289:C292) -> 3950000 | E68: 3105432.083 | F68: =SUM(weekly!#REF!) ->  | G68: =SUM(weekly!#REF!) ->  | H68: =SUM(weekly!D289:D292) -> 4 | I68: =SUM(weekly!E289:E292) -> 1282750 | J68: 1008479.242 | K68: =SUM(weekly!#REF!) ->  | L68: =SUM(weekly!#REF!) ->  | M68: =SUM(weekly!#REF!) ->  | N68: =SUM(weekly!#REF!) ->  | P68: =SUM(weekly!#REF!) ->  | Q68: 194.6 | R68: 127.1964704
A69: 2006-08-01 | B69: =SUM(weekly!#REF!) ->  | C69: =SUM(weekly!B293:B297) -> 0 | D69: =SUM(weekly!C293:C297) -> 0 | E69: 0 | F69: =SUM(weekly!#REF!) ->  | G69: =SUM(weekly!#REF!) ->  | H69: =SUM(weekly!D293:D297) -> 19 | I69: =SUM(weekly!E293:E297) -> 6245798 | J69: 4897770.608 | K69: =SUM(weekly!#REF!) ->  | L69: =SUM(weekly!#REF!) ->  | M69: =SUM(weekly!#REF!) ->  | N69: =SUM(weekly!#REF!) ->  | P69: =SUM(weekly!#REF!) ->  | Q69: 195.1 | R69: 127.5232856
A70: 2006-09-01 | B70: =SUM(weekly!#REF!) ->  | C70: =SUM(weekly!B298:B301) -> 0 | D70: =SUM(weekly!C298:C301) -> 0 | E70: 0 | F70: =SUM(weekly!#REF!) ->  | G70: =SUM(weekly!#REF!) ->  | H70: =SUM(weekly!D298:D301) -> 4 | I70: =SUM(weekly!E298:E301) -> 1550000 | J70: 1224249.269 | K70: =SUM(weekly!#REF!) ->  | L70: =SUM(weekly!#REF!) ->  | M70: =SUM(weekly!#REF!) ->  | N70: =SUM(weekly!#REF!) ->  | P70: =SUM(weekly!#REF!) ->  | Q70: 193.7 | R70: 126.6082031
A71: 2006-10-01 | B71: =SUM(weekly!#REF!) ->  | C71: =SUM(weekly!B302:B305) -> 2 | D71: =SUM(weekly!C302:C305) -> 423416 | E71: 336864.8962 | F71: =SUM(weekly!#REF!) ->  | G71: =SUM(weekly!#REF!) ->  | H71: =SUM(weekly!D302:D305) -> 12 | I71: =SUM(weekly!E302:E305) -> 6092650 | J71: 4847242.215 | K71: =SUM(weekly!#REF!) ->  | L71: =SUM(weekly!#REF!) ->  | M71: =SUM(weekly!#REF!) ->  | N71: =SUM(weekly!#REF!) ->  | P71: =SUM(weekly!#REF!) ->  | Q71: 192.3 | R71: 125.6931205
A72: 2006-11-01 | B72: =SUM(weekly!#REF!) ->  | C72: =SUM(weekly!B306:B310) -> 0 | D72: =SUM(weekly!C306:C310) -> 0 | E72: 0 | F72: =SUM(weekly!#REF!) ->  | G72: =SUM(weekly!#REF!) ->  | H72: =SUM(weekly!D306:D310) -> 5 | I72: =SUM(weekly!E306:E310) -> 9138840 | J72: 7251900.223 | K72: =SUM(weekly!#REF!) ->  | L72: =SUM(weekly!#REF!) ->  | M72: =SUM(weekly!#REF!) ->  | N72: =SUM(weekly!#REF!) ->  | P72: =SUM(weekly!#REF!) ->  | Q72: 192.8 | R72: 126.0199357
A73: 2006-12-01 | B73: =SUM(weekly!#REF!) ->  | C73: =SUM(weekly!B311:B314) -> 2 | D73: =SUM(weekly!C311:C314) -> 414285 | E73: 328575.1821 | F73: =SUM(weekly!#REF!) ->  | G73: =SUM(weekly!#REF!) ->  | H73: =SUM(weekly!D311:D314) -> 1 | I73: =SUM(weekly!E311:E314) -> 200000 | J73: 158622.7752 | K73: =SUM(weekly!#REF!) ->  | L73: =SUM(weekly!#REF!) ->  | M73: =SUM(weekly!#REF!) ->  | N73: =SUM(weekly!#REF!) ->  | P73: =SUM(weekly!#REF!) ->  | Q73: 192.9 | R73: =(Q73/$S$2)*100 -> 126.0852988
A74: 2007-01-01 | B74: =SUM(weekly!#REF!) ->  | C74: =SUM(weekly!B315:B319) -> 0 | D74: =SUM(weekly!C315:C319) -> 0 | E74: =(D74/R74)*100 -> 0 | F74: =SUM(weekly!#REF!) ->  | G74: =SUM(weekly!#REF!) ->  | H74: =SUM(weekly!D315:D319) -> 1 | I74: =SUM(weekly!E315:E319) -> 127000 | J74: =(I74/R74)*100 -> 100621.1376 | K74: =SUM(weekly!#REF!) ->  | L74: =SUM(weekly!#REF!) ->  | M74: =SUM(weekly!#REF!) ->  | N74: =SUM(weekly!#REF!) ->  | O74: =(N74/R74)*100 ->  | P74: =SUM(weekly!#REF!) ->  | Q74: 193.1 | R74: 126.2160248
A75: 2007-02-01 | B75: =SUM(weekly!#REF!) ->  | C75: =SUM(weekly!B320:B323) -> 0 | D75: =SUM(weekly!C320:C323) -> 0 | E75: 0 | F75: =SUM(weekly!#REF!) ->  | G75: =SUM(weekly!#REF!) ->  | H75: =SUM(weekly!D320:D323) -> 1 | I75: =SUM(weekly!E320:E323) -> 130164 | J75: 102385.6416 | K75: =SUM(weekly!#REF!) ->  | L75: =SUM(weekly!#REF!) ->  | M75: =SUM(weekly!#REF!) ->  | N75: =SUM(weekly!#REF!) ->  | P75: =SUM(weekly!#REF!) ->  | Q75: 194.5 | R75: 127.1311074
A76: 2007-03-01 | B76: =SUM(weekly!#REF!) ->  | C76: =SUM(weekly!B324:B327) -> 1 | D76: =SUM(weekly!C324:C327) -> 400000 | E76: 311591.9891 | F76: =SUM(weekly!#REF!) ->  | G76: =SUM(weekly!#REF!) ->  | H76: =SUM(weekly!D324:D327) -> 1 | I76: =SUM(weekly!E324:E327) -> 150000 | J76: 116846.9959 | K76: =SUM(weekly!#REF!) ->  | L76: =SUM(weekly!#REF!) ->  | M76: =SUM(weekly!#REF!) ->  | N76: =SUM(weekly!#REF!) ->  | P76: =SUM(weekly!#REF!) ->  | Q76: 196.4 | R76: 128.3730051
A77: 2007-04-01 | B77: =SUM(weekly!#REF!) ->  | C77: =SUM(weekly!B328:B332) -> 2 | D77: =SUM(weekly!C328:C332) -> 342700 | E77: 265604.0738 | F77: =SUM(weekly!#REF!) ->  | G77: =SUM(weekly!#REF!) ->  | H77: =SUM(weekly!D328:D332) -> 25 | I77: =SUM(weekly!E328:E332) -> 5911417 | J77: 4581547.818 | K77: =SUM(weekly!#REF!) ->  | L77: =SUM(weekly!#REF!) ->  | M77: =SUM(weekly!#REF!) ->  | N77: =SUM(weekly!#REF!) ->  | P77: =SUM(weekly!#REF!) ->  | Q77: 197.4 | R77: 129.0266354
A78: 2007-05-01 | B78: =SUM(weekly!#REF!) ->  | C78: =SUM(weekly!B333:B336) -> 3 | D78: =SUM(weekly!C333:C336) -> 150000 | E78: 115204.5683 | F78: =SUM(weekly!#REF!) ->  | G78: =SUM(weekly!#REF!) ->  | H78: =SUM(weekly!D333:D336) -> 12 | I78: =SUM(weekly!E333:E336) -> 2243467 | J78: 1723050.981 | K78: =SUM(weekly!#REF!) ->  | L78: =SUM(weekly!#REF!) ->  | M78: =SUM(weekly!#REF!) ->  | N78: =SUM(weekly!#REF!) ->  | P78: =SUM(weekly!#REF!) ->  | Q78: 199.2 | R78: 130.2031701
A79: 2007-06-01 | B79: =SUM(weekly!#REF!) ->  | C79: =SUM(weekly!B337:B340) -> 0 | D79: =SUM(weekly!C337:C340) -> 0 | E79: 0 | F79: =SUM(weekly!#REF!) ->  | G79: =SUM(weekly!#REF!) ->  | H79: =SUM(weekly!D337:D340) -> 5 | I79: =SUM(weekly!E337:E340) -> 535583 | J79: 411137.6609 | K79: =SUM(weekly!#REF!) ->  | L79: =SUM(weekly!#REF!) ->  | M79: =SUM(weekly!#REF!) ->  | N79: =SUM(weekly!#REF!) ->  | P79: =SUM(weekly!#REF!) ->  | Q79: 199.3 | R79: 130.2685331
A80: 2007-07-01 | B80: =SUM(weekly!#REF!) ->  | C80: =SUM(weekly!B341:B345) -> 0 | D80: =SUM(weekly!C341:C345) -> 0 | E80: 0 | F80: =SUM(weekly!#REF!) ->  | G80: =SUM(weekly!#REF!) ->  | H80: =SUM(weekly!D341:D345) -> 11 | I80: =SUM(weekly!E341:E345) -> 3418389 | J80: 2628065.48 | K80: =SUM(weekly!#REF!) ->  | L80: =SUM(weekly!#REF!) ->  | M80: =SUM(weekly!#REF!) ->  | N80: =SUM(weekly!#REF!) ->  | P80: =SUM(weekly!#REF!) ->  | Q80: 199 | R80: 130.072444
A81: 2007-08-01 | B81: =SUM(weekly!#REF!) ->  | C81: =SUM(weekly!B346:B348) -> 1 | D81: =SUM(weekly!C346:C348) -> 276640 | E81: 213109.8422 | F81: =SUM(weekly!#REF!) ->  | G81: =SUM(weekly!#REF!) ->  | H81: =SUM(weekly!D346:D348) -> 4 | I81: =SUM(weekly!E346:E348) -> 1514505 | J81: 1166700.121 | K81: =SUM(weekly!#REF!) ->  | L81: =SUM(weekly!#REF!) ->  | M81: =SUM(weekly!#REF!) ->  | N81: =SUM(weekly!#REF!) ->  | P81: =SUM(weekly!#REF!) ->  | Q81: 198.6 | R81: 129.8109919
A82: 2007-09-01 | B82: =SUM(weekly!#REF!) ->  | C82: =SUM(weekly!B349:B354) -> 4 | D82: =SUM(weekly!C349:C354) -> 3715000 | E82: 2846089.342 | F82: =SUM(weekly!#REF!) ->  | G82: =SUM(weekly!#REF!) ->  | H82: =SUM(weekly!D349:D354) -> 35 | I82: =SUM(weekly!E349:E354) -> 24560135 | J82: 18815703.49 | K82: =SUM(weekly!#REF!) ->  | L82: =SUM(weekly!#REF!) ->  | M82: =SUM(weekly!#REF!) ->  | N82: =SUM(weekly!#REF!) ->  | P82: =SUM(weekly!#REF!) ->  | Q82: 199.7 | R82: 130.5299853
A83: 2007-10-01 | B83: =SUM(weekly!#REF!) ->  | C83: =SUM(weekly!B355:B358) -> 0 | D83: =SUM(weekly!C355:C358) -> 0 | E83: 0 | F83: =SUM(weekly!#REF!) ->  | G83: =SUM(weekly!#REF!) ->  | H83: =SUM(weekly!D355:D358) -> 14 | I83: =SUM(weekly!E355:E358) -> 2240882 | J83: 1718477.554 | K83: =SUM(weekly!#REF!) ->  | L83: =SUM(weekly!#REF!) ->  | M83: =SUM(weekly!#REF!) ->  | N83: =SUM(weekly!#REF!) ->  | P83: =SUM(weekly!#REF!) ->  | Q83: 199.5 | R83: 130.3992592
A84: 2007-11-01 | B84: =SUM(weekly!#REF!) ->  | C84: =SUM(weekly!B359:B362) -> 2 | D84: =SUM(weekly!C359:C362) -> 725000 | E84: 552385.2507 | F84: =SUM(weekly!#REF!) ->  | G84: =SUM(weekly!#REF!) ->  | H84: =SUM(weekly!D359:D362) -> 15 | I84: =SUM(weekly!E359:E362) -> 3950000 | J84: 3009547.228 | K84: =SUM(weekly!#REF!) ->  | L84: =SUM(weekly!#REF!) ->  | M84: =SUM(weekly!#REF!) ->  | N84: =SUM(weekly!#REF!) ->  | P84: =SUM(weekly!#REF!) ->  | Q84: 200.8 | R84: 131.2489787
A85: 2007-12-01 | B85: =SUM(weekly!#REF!) ->  | C85: =SUM(weekly!B363:B367) -> 1 | D85: =SUM(weekly!C363:C367) -> 105000 | E85: 80240.38462 | F85: =SUM(weekly!#REF!) ->  | G85: =SUM(weekly!#REF!) ->  | H85: =SUM(weekly!D363:D367) -> 10 | I85: =SUM(weekly!E363:E367) -> 2165000 | J85: 1654480.311 | K85: =SUM(weekly!#REF!) ->  | L85: =SUM(weekly!#REF!) ->  | M85: =SUM(weekly!#REF!) ->  | N85: =SUM(weekly!#REF!) ->  | P85: =SUM(weekly!#REF!) ->  | Q85: 200.2 | R85: 130.8568005
A86: 2008-01-01 | B86: =SUM(weekly!#REF!) ->  | C86: =SUM(weekly!B368:B371) -> 1 | D86: =SUM(weekly!C368:C371) -> 140000 | E86: 106349.7186 | F86: =SUM(weekly!#REF!) ->  | G86: =SUM(weekly!#REF!) ->  | H86: =SUM(weekly!D368:D371) -> 6 | I86: =SUM(weekly!E368:E371) -> 6575463 | J86: 4994990.285 | K86: =SUM(weekly!#REF!) ->  | L86: =SUM(weekly!#REF!) ->  | M86: =SUM(weekly!#REF!) ->  | N86: =SUM(weekly!#REF!) ->  | P86: =SUM(weekly!#REF!) ->  | Q86: 201.4 | R86: 131.6411569
A87: 2008-02-01 | B87: =SUM(weekly!#REF!) ->  | C87: =SUM(weekly!B372:B375) -> 2 | D87: =SUM(weekly!C372:C375) -> 1545000 | E87: 1170738.608 | F87: =SUM(weekly!#REF!) ->  | G87: =SUM(weekly!#REF!) ->  | H87: =SUM(weekly!D372:D375) -> 8 | I87: =SUM(weekly!E372:E375) -> 1556000 | J87: 1179073.964 | K87: =SUM(weekly!#REF!) ->  | L87: =SUM(weekly!#REF!) ->  | M87: =SUM(weekly!#REF!) ->  | N87: =SUM(weekly!#REF!) ->  | P87: =SUM(weekly!#REF!) ->  | Q87: 201.9 | R87: 131.9679721
A88: 2008-03-01 | B88: =SUM(weekly!#REF!) ->  | C88: =SUM(weekly!B376:B380) -> 1 | D88: =SUM(weekly!C376:C380) -> 85000 | E88: 63840.41073 | F88: =SUM(weekly!#REF!) ->  | G88: =SUM(weekly!#REF!) ->  | H88: =SUM(weekly!D376:D380) -> 11 | I88: =SUM(weekly!E376:E380) -> 10004262 | J88: 7513837.59 | K88: =SUM(weekly!#REF!) ->  | L88: =SUM(weekly!#REF!) ->  | M88: =SUM(weekly!#REF!) ->  | N88: =SUM(weekly!#REF!) ->  | P88: =SUM(weekly!#REF!) ->  | Q88: 203.7 | R88: 133.1445068
A89: 2008-04-01 | B89: =SUM(weekly!#REF!) ->  | C89: =SUM(weekly!B381:B384) -> 0 | D89: =SUM(weekly!C381:C384) -> 0 | E89: 0 | F89: =SUM(weekly!#REF!) ->  | G89: =SUM(weekly!#REF!) ->  | H89: =SUM(weekly!D381:D384) -> 17 | I89: =SUM(weekly!E381:E384) -> 11230000 | J89: 8364636.887 | K89: =SUM(weekly!#REF!) ->  | L89: =SUM(weekly!#REF!) ->  | M89: =SUM(weekly!#REF!) ->  | N89: =SUM(weekly!#REF!) ->  | P89: =SUM(weekly!#REF!) ->  | Q89: 205.4 | R89: 134.2556784
A90: 2008-05-01 | B90: =SUM(weekly!#REF!) ->  | C90: =SUM(weekly!B385:B388) -> 3 | D90: =SUM(weekly!C385:C388) -> 540000 | E90: 398723.4556 | F90: =SUM(weekly!#REF!) ->  | G90: =SUM(weekly!#REF!) ->  | H90: =SUM(weekly!D385:D388) -> 9 | I90: =SUM(weekly!E385:E388) -> 2736032 | J90: 2020222.47 | K90: =SUM(weekly!#REF!) ->  | L90: =SUM(weekly!#REF!) ->  | M90: =SUM(weekly!#REF!) ->  | N90: =SUM(weekly!#REF!) ->  | P90: =SUM(weekly!#REF!) ->  | Q90: 207.2 | R90: 135.4322131
A91: 2008-06-01 | B91: =SUM(weekly!#REF!) ->  | C91: =SUM(weekly!B389:B392) -> 0 | D91: =SUM(weekly!C389:C392) -> 0 | E91: 0 | F91: =SUM(weekly!#REF!) ->  | G91: =SUM(weekly!#REF!) ->  | H91: =SUM(weekly!D389:D392) -> 5 | I91: =SUM(weekly!E389:E392) -> 1059556 | J91: 775613.5807 | K91: =SUM(weekly!#REF!) ->  | L91: =SUM(weekly!#REF!) ->  | M91: =SUM(weekly!#REF!) ->  | N91: =SUM(weekly!#REF!) ->  | P91: =SUM(weekly!#REF!) ->  | Q91: 209 | R91: 136.6087478
A92: 2008-07-01 | B92: =SUM(weekly!#REF!) ->  | C92: =SUM(weekly!B393:B397) -> 5 | D92: =SUM(weekly!C393:C397) -> 4439500 | E92: 3232777.269 | F92: =SUM(weekly!#REF!) ->  | G92: =SUM(weekly!#REF!) ->  | H92: =SUM(weekly!D393:D397) -> 14 | I92: =SUM(weekly!E393:E397) -> 1803500 | J92: 1313281.632 | K92: =SUM(weekly!#REF!) ->  | L92: =SUM(weekly!#REF!) ->  | M92: =SUM(weekly!#REF!) ->  | N92: =SUM(weekly!#REF!) ->  | P92: =SUM(weekly!#REF!) ->  | Q92: 210.1 | R92: 137.3277412
A93: 2008-08-01 | B93: =SUM(weekly!#REF!) ->  | C93: =SUM(weekly!B398:B401) -> 1 | D93: =SUM(weekly!C398:C401) -> 181000 | E93: 132242.0805 | F93: =SUM(weekly!#REF!) ->  | G93: =SUM(weekly!#REF!) ->  | H93: =SUM(weekly!D398:D401) -> 7 | I93: =SUM(weekly!E398:E401) -> 1955000 | J93: 1428360.594 | K93: =SUM(weekly!#REF!) ->  | L93: =SUM(weekly!#REF!) ->  | M93: =SUM(weekly!#REF!) ->  | N93: =SUM(weekly!#REF!) ->  | P93: =SUM(weekly!#REF!) ->  | Q93: 209.4 | R93: 136.8701999
A94: 2008-09-01 | B94: =SUM(weekly!#REF!) ->  | C94: =SUM(weekly!B402:B405) -> 2 | D94: =SUM(weekly!C402:C405) -> 500000 | E94: 365484.1535 | F94: =SUM(weekly!#REF!) ->  | G94: =SUM(weekly!#REF!) ->  | H94: =SUM(weekly!D402:D405) -> 26 | I94: =SUM(weekly!E402:E405) -> 5129452 | J94: 3749466.845 | K94: =SUM(weekly!#REF!) ->  | L94: =SUM(weekly!#REF!) ->  | M94: =SUM(weekly!#REF!) ->  | N94: =SUM(weekly!#REF!) ->  | P94: =SUM(weekly!#REF!) ->  | Q94: 209.3 | R94: 136.8048369
A95: 2008-10-01 | B95: =SUM(weekly!#REF!) ->  | C95: =SUM(weekly!B406:B410) -> 1 | D95: =SUM(weekly!C406:C410) -> 125000 | E95: 92834.74919 | F95: =SUM(weekly!#REF!) ->  | G95: =SUM(weekly!#REF!) ->  | H95: =SUM(weekly!D406:D410) -> 25 | I95: =SUM(weekly!E406:E410) -> 11925000 | J95: 8856435.073 | K95: =SUM(weekly!#REF!) ->  | L95: =SUM(weekly!#REF!) ->  | M95: =SUM(weekly!#REF!) ->  | N95: =SUM(weekly!#REF!) ->  | P95: =SUM(weekly!#REF!) ->  | Q95: 206 | R95: 134.6478566
A96: 2008-11-01 | B96: =SUM(weekly!#REF!) ->  | C96: =SUM(weekly!B411:B414) -> 0 | D96: =SUM(weekly!C411:C414) -> 0 | E96: 0 | F96: =SUM(weekly!#REF!) ->  | G96: =SUM(weekly!#REF!) ->  | H96: =SUM(weekly!D411:D414) -> 29 | I96: =SUM(weekly!E411:E414) -> 9838883 | J96: 7462900.884 | K96: =SUM(weekly!#REF!) ->  | L96: =SUM(weekly!#REF!) ->  | M96: =SUM(weekly!#REF!) ->  | N96: =SUM(weekly!#REF!) ->  | P96: =SUM(weekly!#REF!) ->  | Q96: 201.7 | R96: 131.837246
A97: 2008-12-01 | B97: =SUM(weekly!#REF!) ->  | C97: =SUM(weekly!B415:B419) -> 0 | D97: =SUM(weekly!C415:C419) -> 0 | E97: 0 | F97: =SUM(weekly!#REF!) ->  | G97: =SUM(weekly!#REF!) ->  | H97: =SUM(weekly!D415:D419) -> 5 | I97: =SUM(weekly!E415:E419) -> 710000 | J97: 544208.8343 | K97: =SUM(weekly!#REF!) ->  | L97: =SUM(weekly!#REF!) ->  | M97: =SUM(weekly!#REF!) ->  | N97: =SUM(weekly!#REF!) ->  | P97: =SUM(weekly!#REF!) ->  | Q97: 199.6 | R97: 130.4646223
A98: 2009-01-01 | B98: =SUM(weekly!#REF!) ->  | C98: =SUM(weekly!B420:B423) -> 3 | D98: =SUM(weekly!C420:C423) -> 788000 | E98: 600385.6242 | F98: =SUM(weekly!#REF!) ->  | G98: =SUM(weekly!#REF!) ->  | H98: =SUM(weekly!D420:D423) -> 6 | I98: =SUM(weekly!E420:E423) -> 6231740 | J98: 4748029.327 | K98: =SUM(weekly!#REF!) ->  | L98: =SUM(weekly!#REF!) ->  | M98: =SUM(weekly!#REF!) ->  | N98: =SUM(weekly!#REF!) ->  | P98: =SUM(weekly!#REF!) ->  | Q98: 200.8 | R98: 131.2489787
A99: 2009-02-01 | B99: =SUM(weekly!#REF!) ->  | C99: =SUM(weekly!B424:B427) -> 1 | D99: =SUM(weekly!C424:C427) -> 48000 | E99: 36444.66501 | F99: =SUM(weekly!#REF!) ->  | G99: =SUM(weekly!#REF!) ->  | H99: =SUM(weekly!D424:D427) -> 3 | I99: =SUM(weekly!E424:E427) -> 704250 | J99: 534711.5695 | K99: =SUM(weekly!#REF!) ->  | L99: =SUM(weekly!#REF!) ->  | M99: =SUM(weekly!#REF!) ->  | N99: =SUM(weekly!#REF!) ->  | P99: =SUM(weekly!#REF!) ->  | Q99: 201.5 | R99: 131.70652
A100: 2009-03-01 | B100: =SUM(weekly!#REF!) ->  | C100: =SUM(weekly!B428:B431) -> 1 | D100: =SUM(weekly!C428:C431) -> 120000 | E100: 90877.14088 | F100: =SUM(weekly!#REF!) ->  | G100: =SUM(weekly!#REF!) ->  | H100: =SUM(weekly!D428:D431) -> 2 | I100: =SUM(weekly!E428:E431) -> 920900 | J100: 697406.3253 | K100: =SUM(weekly!#REF!) ->  | L100: =SUM(weekly!#REF!) ->  | M100: =SUM(weekly!#REF!) ->  | N100: =SUM(weekly!#REF!) ->  | P100: =SUM(weekly!#REF!) ->  | Q100: 202.02 | R100: 132.0464078
A101: 2009-04-01 | B101: =SUM(weekly!#REF!) ->  | C101: =SUM(weekly!B432:B436) -> 1 | D101: =SUM(weekly!C432:C436) -> 1400000 | E101: 1058765.859 | F101: =SUM(weekly!#REF!) ->  | G101: =SUM(weekly!#REF!) ->  | H101: =SUM(weekly!D432:D436) -> 8 | I101: =SUM(weekly!E432:E436) -> 1890697 | J101: 1429861.024 | K101: =SUM(weekly!#REF!) ->  | L101: =SUM(weekly!#REF!) ->  | M101: =SUM(weekly!#REF!) ->  | N101: =SUM(weekly!#REF!) ->  | P101: =SUM(weekly!#REF!) ->  | Q101: 202.3 | R101: 132.2294243
A102: 2009-05-01 | B102: =SUM(weekly!#REF!) ->  | C102: =SUM(weekly!B437:B440) -> 0 | D102: =SUM(weekly!C437:C440) -> 0 | E102: 0 | F102: =SUM(weekly!#REF!) ->  | G102: =SUM(weekly!#REF!) ->  | H102: =SUM(weekly!D437:D440) -> 8 | I102: =SUM(weekly!E437:E440) -> 2810956 | J102: 2116401.788 | K102: =SUM(weekly!#REF!) ->  | L102: =SUM(weekly!#REF!) ->  | M102: =SUM(weekly!#REF!) ->  | N102: =SUM(weekly!#REF!) ->  | P102: =SUM(weekly!#REF!) ->  | Q102: 203.2 | R102: 132.8176916
A103: 2009-06-01 | B103: =SUM(weekly!#REF!) ->  | C103: =SUM(weekly!B441:B444) -> 1 | D103: =SUM(weekly!C441:C444) -> 160000 | E103: 119175.5923 | F103: =SUM(weekly!#REF!) ->  | G103: =SUM(weekly!#REF!) ->  | H103: =SUM(weekly!D441:D444) -> 4 | I103: =SUM(weekly!E441:E444) -> 1089319 | J103: 811376.4817 | K103: =SUM(weekly!#REF!) ->  | L103: =SUM(weekly!#REF!) ->  | M103: =SUM(weekly!#REF!) ->  | N103: =SUM(weekly!#REF!) ->  | P103: =SUM(weekly!#REF!) ->  | Q103: 205.4 | R103: 134.2556784
A104: 2009-07-01 | B104: =SUM(weekly!#REF!) ->  | C104: =SUM(weekly!B445:B449) -> 0 | D104: =SUM(weekly!C445:C449) -> 0 | E104: 0 | F104: =SUM(weekly!#REF!) ->  | G104: =SUM(weekly!#REF!) ->  | H104: =SUM(weekly!D445:D449) -> 14 | I104: =SUM(weekly!E445:E449) -> 2553337 | J104: 1907418.375 | K104: =SUM(weekly!#REF!) ->  | L104: =SUM(weekly!#REF!) ->  | M104: =SUM(weekly!#REF!) ->  | N104: =SUM(weekly!#REF!) ->  | P104: =SUM(weekly!#REF!) ->  | Q104: 204.8 | R104: 133.8635002
A105: 2009-08-01 | B105: =SUM(weekly!#REF!) ->  | C105: =SUM(weekly!B450:B453) -> 4 | D105: =SUM(weekly!C450:C453) -> 442000 | E105: 328902.3184 | F105: =SUM(weekly!#REF!) ->  | G105: =SUM(weekly!#REF!) ->  | H105: =SUM(weekly!D450:D453) -> 10 | I105: =SUM(weekly!E450:E453) -> 2576000 | J105: 1916860.571 | K105: =SUM(weekly!#REF!) ->  | L105: =SUM(weekly!#REF!) ->  | M105: =SUM(weekly!#REF!) ->  | N105: =SUM(weekly!#REF!) ->  | P105: =SUM(weekly!#REF!) ->  | Q105: 205.6 | R105: 134.3864045
A106: 2009-09-01 | B106: =SUM(weekly!#REF!) ->  | C106: =SUM(weekly!B454:B458) -> 4 | D106: =SUM(weekly!C454:C458) -> 2216000 | E106: 1648976.329 | F106: =SUM(weekly!#REF!) ->  | G106: =SUM(weekly!#REF!) ->  | H106: =SUM(weekly!D454:D458) -> 11 | I106: =SUM(weekly!E454:E458) -> 2087159 | J106: 1553102.792 | K106: =SUM(weekly!#REF!) ->  | L106: =SUM(weekly!#REF!) ->  | M106: =SUM(weekly!#REF!) ->  | N106: =SUM(weekly!#REF!) ->  | P106: =SUM(weekly!#REF!) ->  | Q106: 205.6 | R106: 134.3864045
A107: 2009-10-01 | B107: =SUM(weekly!#REF!) ->  | C107: =SUM(weekly!B459:B462) -> 5 | D107: =SUM(weekly!C459:C462) -> 6912048 | E107: 5140912.706 | F107: =SUM(weekly!#REF!) ->  | G107: =SUM(weekly!#REF!) ->  | H107: =SUM(weekly!D459:D462) -> 20 | I107: =SUM(weekly!E459:E462) -> 1786093 | J107: 1328426.567 | K107: =SUM(weekly!#REF!) ->  | L107: =SUM(weekly!#REF!) ->  | M107: =SUM(weekly!#REF!) ->  | N107: =SUM(weekly!#REF!) ->  | P107: =SUM(weekly!#REF!) ->  | Q107: 205.7 | R107: 134.4517675
A108: 2009-11-01 | B108: =SUM(weekly!#REF!) ->  | C108: =SUM(weekly!B463:B466) -> 2 | D108: =SUM(weekly!C463:C466) -> 214000 | E108: 158778.9363 | F108: =SUM(weekly!#REF!) ->  | G108: =SUM(weekly!#REF!) ->  | H108: =SUM(weekly!D463:D466) -> 8 | I108: =SUM(weekly!E463:E466) -> 3948776 | J108: 2929824.547 | K108: =SUM(weekly!#REF!) ->  | L108: =SUM(weekly!#REF!) ->  | M108: =SUM(weekly!#REF!) ->  | N108: =SUM(weekly!#REF!) ->  | P108: =SUM(weekly!#REF!) ->  | Q108: 206.2 | R108: 134.7785827
A109: 2009-12-01 | B109: =SUM(weekly!#REF!) ->  | C109: =SUM(weekly!B467:B471) -> 0 | D109: =SUM(weekly!C467:C471) -> 0 | E109: 0 | F109: =SUM(weekly!#REF!) ->  | G109: =SUM(weekly!#REF!) ->  | H109: =SUM(weekly!D467:D471) -> 2 | I109: =SUM(weekly!E467:E471) -> 228000 | J109: 169660.0195 | K109: =SUM(weekly!#REF!) ->  | L109: =SUM(weekly!#REF!) ->  | M109: =SUM(weekly!#REF!) ->  | N109: =SUM(weekly!#REF!) ->  | P109: =SUM(weekly!#REF!) ->  | Q109: 205.6 | R109: 134.3864045
A110: 2010-01-01 | B110: =SUM(weekly!#REF!) ->  | C110: =SUM(weekly!B472:B475) -> 2 | D110: =SUM(weekly!C472:C475) -> 1850000 | E110: 1369964.101 | F110: =SUM(weekly!#REF!) ->  | G110: =SUM(weekly!#REF!) ->  | H110: =SUM(weekly!D472:D475) -> 3 | I110: =SUM(weekly!E472:E475) -> 275000 | J110: 203643.3124 | K110: =SUM(weekly!#REF!) ->  | L110: =SUM(weekly!#REF!) ->  | M110: =SUM(weekly!#REF!) ->  | N110: =SUM(weekly!#REF!) ->  | P110: =SUM(weekly!#REF!) ->  | Q110: 206.6 | R110: 135.0400349
A111: 2010-02-01 | B111: =SUM(weekly!#REF!) ->  | C111: =SUM(weekly!B476:B479) -> 0 | D111: =SUM(weekly!C476:C479) -> 0 | E111: 0 | F111: =SUM(weekly!#REF!) ->  | G111: =SUM(weekly!#REF!) ->  | H111: =SUM(weekly!D476:D479) -> 2 | I111: =SUM(weekly!E476:E479) -> 165000 | J111: 122185.9874 | K111: =SUM(weekly!#REF!) ->  | L111: =SUM(weekly!#REF!) ->  | M111: =SUM(weekly!#REF!) ->  | N111: =SUM(weekly!#REF!) ->  | P111: =SUM(weekly!#REF!) ->  | Q111: 206.6 | R111: 135.0400349
A112: 2010-03-01 | B112: =SUM(weekly!#REF!) ->  | C112: =SUM(weekly!B480:B483) -> 0 | D112: =SUM(weekly!C480:C483) -> 0 | E112: 0 | F112: =SUM(weekly!#REF!) ->  | G112: =SUM(weekly!#REF!) ->  | H112: =SUM(weekly!D480:D483) -> 8 | I112: =SUM(weekly!E480:E483) -> 944920 | J112: 697034.1643 | K112: =SUM(weekly!#REF!) ->  | L112: =SUM(weekly!#REF!) ->  | M112: =SUM(weekly!#REF!) ->  | N112: =SUM(weekly!#REF!) ->  | P112: =SUM(weekly!#REF!) ->  | Q112: 207.4 | R112: 135.5629392
A113: 2010-04-01 | B113: =SUM(weekly!#REF!) ->  | C113: =SUM(weekly!B484:B488) -> 1 | D113: =SUM(weekly!C484:C488) -> 42925 | E113: 31618.52331 | F113: =SUM(weekly!#REF!) ->  | G113: =SUM(weekly!#REF!) ->  | H113: =SUM(weekly!D484:D488) -> 8 | I113: =SUM(weekly!E484:E488) -> 4294391 | J113: 3163245.24 | K113: =SUM(weekly!#REF!) ->  | L113: =SUM(weekly!#REF!) ->  | M113: =SUM(weekly!#REF!) ->  | N113: =SUM(weekly!#REF!) ->  | P113: =SUM(weekly!#REF!) ->  | Q113: 207.7 | R113: 135.7590283
A114: 2010-05-01 | B114: =SUM(weekly!#REF!) ->  | C114: =SUM(weekly!B489:B492) -> 0 | D114: =SUM(weekly!C489:C492) -> 0 | E114: 0 | F114: =SUM(weekly!#REF!) ->  | G114: =SUM(weekly!#REF!) ->  | H114: =SUM(weekly!D489:D492) -> 15 | I114: =SUM(weekly!E489:E492) -> 2976783 | J114: =(I114/R114)*100 -> 2189533.618 | K114: =SUM(weekly!#REF!) ->  | L114: =SUM(weekly!#REF!) ->  | M114: =SUM(weekly!#REF!) ->  | N114: =SUM(weekly!#REF!) ->  | P114: =SUM(weekly!#REF!) ->  | Q114: 208 | R114: 135.9551174
A115: 2010-06-01 | B115: =SUM(weekly!#REF!) ->  | C115: =SUM(weekly!B493:B497) -> 1 | D115: =SUM(weekly!C493:C497) -> 478000 | E115: 351755.7319 | F115: =SUM(weekly!#REF!) ->  | G115: =SUM(weekly!#REF!) ->  | H115: =SUM(weekly!D493:D497) -> 30 | I115: =SUM(weekly!E493:E497) -> 13722410 | J115: 10098193.25 | K115: =SUM(weekly!#REF!) ->  | L115: =SUM(weekly!#REF!) ->  | M115: =SUM(weekly!#REF!) ->  | N115: =SUM(weekly!#REF!) ->  | P115: =SUM(weekly!#REF!) ->  | Q115: 207.9 | R115: 135.8897543
A116: 2010-07-01 | B116: =SUM(weekly!#REF!) ->  | C116: =SUM(weekly!B498:B501) -> 1 | D116: =SUM(weekly!C498:C501) -> 71000 | E116: 52172.95069 | F116: =SUM(weekly!#REF!) ->  | G116: =SUM(weekly!#REF!) ->  | H116: =SUM(weekly!D498:D501) -> 16 | I116: =SUM(weekly!E498:E501) -> 3629734 | J116: 2667238.493 | K116: =SUM(weekly!#REF!) ->  | L116: =SUM(weekly!#REF!) ->  | M116: =SUM(weekly!#REF!) ->  | N116: =SUM(weekly!#REF!) ->  | P116: =SUM(weekly!#REF!) ->  | Q116: 208.2 | R116: 136.0858435
A117: 2010-08-01 | B117: =SUM(weekly!#REF!) ->  | C117: =SUM(weekly!B502:B505) -> 2 | D117: =SUM(weekly!C502:C505) -> 279985 | E117: 205346.9405 | F117: =SUM(weekly!#REF!) ->  | G117: =SUM(weekly!#REF!) ->  | H117: =SUM(weekly!D502:D505) -> 5 | I117: =SUM(weekly!E502:E505) -> 1386330 | J117: 1016763.841 | K117: =SUM(weekly!#REF!) ->  | L117: =SUM(weekly!#REF!) ->  | M117: =SUM(weekly!#REF!) ->  | N117: =SUM(weekly!#REF!) ->  | P117: =SUM(weekly!#REF!) ->  | Q117: 208.6 | R117: 136.3472956
A118: 2010-09-01 | B118: =SUM(weekly!#REF!) ->  | C118: =SUM(weekly!B506:B510) -> 2 | D118: =SUM(weekly!C506:C510) -> 440000 | E118: 322396.2324 | F118: =SUM(weekly!#REF!) ->  | G118: =SUM(weekly!#REF!) ->  | H118: =SUM(weekly!D506:D510) -> 13 | I118: =SUM(weekly!E506:E510) -> 6867180 | J118: 5031711.272 | K118: =SUM(weekly!#REF!) ->  | L118: =SUM(weekly!#REF!) ->  | M118: =SUM(weekly!#REF!) ->  | N118: =SUM(weekly!#REF!) ->  | P118: =SUM(weekly!#REF!) ->  | Q118: 208.8 | R118: 136.4780217
A119: 2010-10-01 | B119: =SUM(weekly!#REF!) ->  | C119: =SUM(weekly!B511:B514) -> 4 | D119: =SUM(weekly!C511:C514) -> 6007000 | E119: 4403550.272 | F119: =SUM(weekly!#REF!) ->  | G119: =SUM(weekly!#REF!) ->  | H119: =SUM(weekly!D511:D514) -> 4 | I119: =SUM(weekly!E511:E514) -> 4748000 | J119: 3480615.397 | K119: =SUM(weekly!#REF!) ->  | L119: =SUM(weekly!#REF!) ->  | M119: =SUM(weekly!#REF!) ->  | N119: =SUM(weekly!#REF!) ->  | P119: =SUM(weekly!#REF!) ->  | Q119: 208.7 | R119: 136.4126586
A120: 2010-11-01 | B120: =SUM(weekly!#REF!) ->  | C120: =SUM(weekly!B515:B518) -> 0 | D120: =SUM(weekly!C515:C518) -> 0 | E120: 0 | F120: =SUM(weekly!#REF!) ->  | G120: =SUM(weekly!#REF!) ->  | H120: =SUM(weekly!D515:D518) -> 6 | I120: =SUM(weekly!E515:E518) -> 782269 | J120: 573183.1326 | K120: =SUM(weekly!#REF!) ->  | L120: =SUM(weekly!#REF!) ->  | M120: =SUM(weekly!#REF!) ->  | N120: =SUM(weekly!#REF!) ->  | P120: =SUM(weekly!#REF!) ->  | Q120: 208.8 | R120: 136.4780217
A121: 2010-12-01 | B121: =SUM(weekly!#REF!) ->  | C121: =SUM(weekly!B519:B523) -> 3 | D121: =SUM(weekly!C519:C523) -> 775000 | E121: 566500.438 | F121: =SUM(weekly!#REF!) ->  | G121: =SUM(weekly!#REF!) ->  | H121: =SUM(weekly!D519:D523) -> 8 | I121: =SUM(weekly!E519:E523) -> 2936324 | J121: 2146359.783 | K121: =SUM(weekly!#REF!) ->  | L121: =SUM(weekly!#REF!) ->  | M121: =SUM(weekly!#REF!) ->  | N121: =SUM(weekly!#REF!) ->  | P121: =SUM(weekly!#REF!) ->  | Q121: 209.3 | R121: 136.8048369
A122: 2011-01-01 | B122: =SUM(weekly!#REF!) ->  | C122: =SUM(weekly!B524:B527) -> 2 | D122: =SUM(weekly!C524:C527) -> 2200000 | E122: 1599722.75 | F122: =SUM(weekly!#REF!) ->  | G122: =SUM(weekly!#REF!) ->  | H122: =SUM(weekly!D524:D527) -> 8 | I122: =SUM(weekly!E524:E527) -> 720915 | J122: 524210.9666 | K122: =SUM(weekly!#REF!) ->  | L122: =SUM(weekly!#REF!) ->  | M122: =SUM(weekly!#REF!) ->  | N122: =SUM(weekly!#REF!) ->  | P122: =SUM(weekly!#REF!) ->  | Q122: 210.4 | R122: 137.5238303
A123: 2011-02-01 | B123: =SUM(weekly!#REF!) ->  | C123: =SUM(weekly!B528:B531) -> 1 | D123: =SUM(weekly!C528:C531) -> 175000 | E123: 126828.7147 | F123: =SUM(weekly!#REF!) ->  | G123: =SUM(weekly!#REF!) ->  | H123: =SUM(weekly!D528:D531) -> 2 | I123: =SUM(weekly!E528:E531) -> 466290 | J123: 337936.9221 | K123: =SUM(weekly!#REF!) ->  | L123: =SUM(weekly!#REF!) ->  | M123: =SUM(weekly!#REF!) ->  | N123: =SUM(weekly!#REF!) ->  | P123: =SUM(weekly!#REF!) ->  | Q123: 211.1 | R123: 137.9813715
A124: 2011-03-01 | B124: =SUM(weekly!#REF!) ->  | C124: =SUM(weekly!B532:B536) -> 2 | D124: =SUM(weekly!C532:C536) -> 178440 | E124: 128168.23 | F124: =SUM(weekly!#REF!) ->  | G124: =SUM(weekly!#REF!) ->  | H124: =SUM(weekly!D532:D536) -> 14 | I124: =SUM(weekly!E532:E536) -> 8055490 | J124: 5786022.727 | K124: =SUM(weekly!#REF!) ->  | L124: =SUM(weekly!#REF!) ->  | M124: =SUM(weekly!#REF!) ->  | N124: =SUM(weekly!#REF!) ->  | P124: =SUM(weekly!#REF!) ->  | Q124: 213 | R124: 139.2232692
A125: 2011-04-01 | B125: =SUM(weekly!#REF!) ->  | C125: =SUM(weekly!B537:B540) -> 0 | D125: =SUM(weekly!C537:C540) -> 0 | E125: 0 | F125: =SUM(weekly!#REF!) ->  | G125: =SUM(weekly!#REF!) ->  | H125: =SUM(weekly!D537:D540) -> 6 | I125: =SUM(weekly!E537:E540) -> 3233789 | J125: 2306493.094 | K125: =SUM(weekly!#REF!) ->  | L125: =SUM(weekly!#REF!) ->  | M125: =SUM(weekly!#REF!) ->  | N125: =SUM(weekly!#REF!) ->  | P125: =SUM(weekly!#REF!) ->  | Q125: 214.5 | R125: 140.2037148
A126: 2011-05-01 | B126: =SUM(weekly!#REF!) ->  | C126: =SUM(weekly!B541:B544) -> 4 | D126: =SUM(weekly!C541:C544) -> 7175846 | E126: 5084968.223 | F126: =SUM(weekly!#REF!) ->  | G126: =SUM(weekly!#REF!) ->  | H126: =SUM(weekly!D541:D544) -> 9 | I126: =SUM(weekly!E541:E544) -> 3002527 | J126: 2127659.147 | K126: =SUM(weekly!#REF!) ->  | L126: =SUM(weekly!#REF!) ->  | M126: =SUM(weekly!#REF!) ->  | N126: =SUM(weekly!#REF!) ->  | P126: =SUM(weekly!#REF!) ->  | Q126: 215.9 | R126: 141.1187973
A127: 2011-06-01 | B127: =SUM(weekly!#REF!) ->  | C127: =SUM(weekly!B545:B549) -> 2 | D127: =SUM(weekly!C545:C549) -> 208500 | E127: 147679.456 | F127: =SUM(weekly!#REF!) ->  | G127: =SUM(weekly!#REF!) ->  | H127: =SUM(weekly!D545:D549) -> 5 | I127: =SUM(weekly!E545:E549) -> 4888000 | J127: 3462144.753 | K127: =SUM(weekly!#REF!) ->  | L127: =SUM(weekly!#REF!) ->  | M127: =SUM(weekly!#REF!) ->  | N127: =SUM(weekly!#REF!) ->  | P127: =SUM(weekly!#REF!) ->  | Q127: 216 | R127: 141.1841604
A128: 2011-07-01 | B128: =SUM(weekly!#REF!) ->  | C128: =SUM(weekly!B550:B553) -> 6 | D128: =SUM(weekly!C550:C553) -> 784000 | E128: 555046.1206 | F128: =SUM(weekly!#REF!) ->  | G128: =SUM(weekly!#REF!) ->  | H128: =SUM(weekly!D550:D553) -> 12 | I128: =SUM(weekly!E550:E553) -> 2044050 | J128: 1447119.927 | K128: =SUM(weekly!#REF!) ->  | L128: =SUM(weekly!#REF!) ->  | M128: =SUM(weekly!#REF!) ->  | N128: =SUM(weekly!#REF!) ->  | P128: =SUM(weekly!#REF!) ->  | Q128: 216.1 | R128: 141.2495234
A129: 2011-08-01 | B129: =SUM(weekly!#REF!) ->  | C129: =SUM(weekly!B554:B558) -> 1 | D129: =SUM(weekly!C554:C558) -> 1100000 | E129: 776965.9895 | F129: =SUM(weekly!#REF!) ->  | G129: =SUM(weekly!#REF!) ->  | H129: =SUM(weekly!D554:D558) -> 4 | I129: =SUM(weekly!E554:E558) -> 878000 | J129: 620160.1262 | K129: =SUM(weekly!#REF!) ->  | L129: =SUM(weekly!#REF!) ->  | M129: =SUM(weekly!#REF!) ->  | N129: =SUM(weekly!#REF!) ->  | P129: =SUM(weekly!#REF!) ->  | Q129: 216.6 | R129: 141.5763386
A130: 2011-09-01 | B130: =SUM(weekly!#REF!) ->  | C130: =SUM(weekly!B559:B562) -> 4 | D130: =SUM(weekly!C559:C562) -> 2651000 | E130: 1869036.444 | F130: =SUM(weekly!#REF!) ->  | G130: =SUM(weekly!#REF!) ->  | H130: =SUM(weekly!D559:D562) -> 3 | I130: =SUM(weekly!E559:E562) -> 2719000 | J130: 1916978.533 | K130: =SUM(weekly!#REF!) ->  | L130: =SUM(weekly!#REF!) ->  | M130: =SUM(weekly!#REF!) ->  | N130: =SUM(weekly!#REF!) ->  | P130: =SUM(weekly!#REF!) ->  | Q130: 217 | R130: 141.8377907
A131: 2011-10-01 | B131: =SUM(weekly!#REF!) ->  | C131: =SUM(weekly!B563:B566) -> 2 | D131: =SUM(weekly!C563:C566) -> 81294 | E131: 57660.19726 | F131: =SUM(weekly!#REF!) ->  | G131: =SUM(weekly!#REF!) ->  | H131: =SUM(weekly!D563:D566) -> 6 | I131: =SUM(weekly!E563:E566) -> 3531950 | J131: 2505141.016 | K131: =SUM(weekly!#REF!) ->  | L131: =SUM(weekly!#REF!) ->  | M131: =SUM(weekly!#REF!) ->  | N131: =SUM(weekly!#REF!) ->  | P131: =SUM(weekly!#REF!) ->  | Q131: 215.7 | R131: 140.9880712
A132: 2011-11-01 | B132: =SUM(weekly!#REF!) ->  | C132: =SUM(weekly!B567:B571) -> 1 | D132: =SUM(weekly!C567:C571) -> 51600 | E132: 36615.81633 | F132: =SUM(weekly!#REF!) ->  | G132: =SUM(weekly!#REF!) ->  | H132: =SUM(weekly!D567:D571) -> 9 | I132: =SUM(weekly!E567:E571) -> 37070826 | J132: 26305785.97 | K132: =SUM(weekly!#REF!) ->  | L132: =SUM(weekly!#REF!) ->  | M132: =SUM(weekly!#REF!) ->  | N132: =SUM(weekly!#REF!) ->  | P132: =SUM(weekly!#REF!) ->  | Q132: 215.6 | R132: 140.9227082
A133: 2011-12-01 | B133: =SUM(weekly!#REF!) ->  | C133: =SUM(weekly!B572:B575) -> 0 | D133: =SUM(weekly!C572:C575) -> 0 | E133: 0 | F133: =SUM(weekly!#REF!) ->  | G133: =SUM(weekly!#REF!) ->  | H133: =SUM(weekly!D572:D575) -> 3 | I133: =SUM(weekly!E572:E575) -> 2015000 | J133: 1432519.555 | K133: =SUM(weekly!#REF!) ->  | L133: =SUM(weekly!#REF!) ->  | M133: =SUM(weekly!#REF!) ->  | N133: =SUM(weekly!#REF!) ->  | O133: =(N133/R133)*100 ->  | P133: =SUM(weekly!#REF!) ->  | Q133: 215.2 | R133: 140.6612561
A134: 2012-01-01 | B134: =SUM(weekly!#REF!) ->  | C134: =SUM(weekly!B576:B579) -> 2 | D134: =SUM(weekly!C576:C579) -> 1236500 | E134: 874187.5963 | F134: =SUM(weekly!#REF!) ->  | G134: =SUM(weekly!#REF!) ->  | H134: =SUM(weekly!D576:D579) -> 5 | I134: =SUM(weekly!E576:E579) -> 1356048 | J134: =(I134/R134)*100 -> 958706.3013 | K134: =SUM(weekly!#REF!) ->  | L134: =SUM(weekly!#REF!) ->  | M134: =SUM(weekly!#REF!) ->  | N134: =SUM(weekly!#REF!) ->  | P134: =SUM(weekly!#REF!) ->  | Q134: 216.4 | R134: 141.4456125
A135: 2012-02-01 | B135: =SUM(weekly!#REF!) ->  | C135: =SUM(weekly!B580:B583) -> 2 | D135: =SUM(weekly!C580:C583) -> 1222500 | E135: 862297.4297 | F135: =SUM(weekly!#REF!) ->  | G135: =SUM(weekly!#REF!) ->  | H135: =SUM(weekly!D580:D583) -> 11 | I135: =SUM(weekly!E580:E583) -> 9431000 | J135: 6652210.274 | K135: =SUM(weekly!#REF!) ->  | L135: =SUM(weekly!#REF!) ->  | M135: =SUM(weekly!#REF!) ->  | N135: =SUM(weekly!#REF!) ->  | P135: =SUM(weekly!#REF!) ->  | Q135: 216.9 | R135: 141.7724277
A136: 2012-03-01 | B136: =SUM(weekly!#REF!) ->  | C136: =SUM(weekly!B584:B588) -> 2 | D136: =SUM(weekly!C584:C588) -> 222500 | E136: 155436.739 | F136: =SUM(weekly!#REF!) ->  | G136: =SUM(weekly!#REF!) ->  | H136: =SUM(weekly!D584:D588) -> 8 | I136: =SUM(weekly!E584:E588) -> 7541000 | J136: 5268082.915 | K136: =SUM(weekly!#REF!) ->  | L136: =SUM(weekly!#REF!) ->  | M136: =SUM(weekly!#REF!) ->  | N136: =SUM(weekly!#REF!) ->  | P136: =SUM(weekly!#REF!) ->  | Q136: 219 | R136: 143.1450515
A137: 2012-04-01 | B137: =SUM(weekly!#REF!) ->  | C137: =SUM(weekly!B589:B592) -> 1 | D137: =SUM(weekly!C589:C592) -> 841000 | E137: 586444.8116 | F137: =SUM(weekly!#REF!) ->  | G137: =SUM(weekly!#REF!) ->  | H137: =SUM(weekly!D589:D592) -> 16 | I137: =SUM(weekly!E589:E592) -> 3807696 | J137: 2655176.651 | K137: =SUM(weekly!#REF!) ->  | L137: =SUM(weekly!#REF!) ->  | M137: =SUM(weekly!#REF!) ->  | N137: =SUM(weekly!#REF!) ->  | P137: =SUM(weekly!#REF!) ->  | Q137: 219.4 | R137: 143.4065036
A138: 2012-05-01 | B138: =SUM(weekly!#REF!) ->  | C138: =SUM(weekly!B593:B597) -> 2 | D138: =SUM(weekly!C593:C597) -> 270000 | E138: 188533.7745 | F138: =SUM(weekly!#REF!) ->  | G138: =SUM(weekly!#REF!) ->  | H138: =SUM(weekly!D593:D597) -> 10 | I138: =SUM(weekly!E593:E597) -> 2703000 | J138: 1887432.565 | K138: =SUM(weekly!#REF!) ->  | L138: =SUM(weekly!#REF!) ->  | M138: =SUM(weekly!#REF!) ->  | N138: =SUM(weekly!#REF!) ->  | P138: =SUM(weekly!#REF!) ->  | Q138: 219.1 | R138: 143.2104145
A139: 2012-06-01 | B139: =SUM(weekly!#REF!) ->  | C139: =SUM(weekly!B597:B601) -> 1 | D139: =SUM(weekly!C598:C601) -> 550000 | E139: 384225.6469 | F139: =SUM(weekly!#REF!) ->  | G139: =SUM(weekly!#REF!) ->  | H139: =SUM(weekly!D598:D601) -> 15 | I139: =SUM(weekly!E598:E601) -> 4161000 | J139: 2906841.667 | K139: =SUM(weekly!#REF!) ->  | L139: =SUM(weekly!#REF!) ->  | M139: =SUM(weekly!#REF!) ->  | N139: =SUM(weekly!#REF!) ->  | P139: =SUM(weekly!#REF!) ->  | Q139: 219 | R139: 143.1450515
A140: 2012-07-01 | B140: =SUM(weekly!#REF!) ->  | C140: =SUM(weekly!B602:B605) -> 0 | D140: =SUM(weekly!C602:C605) -> 0 | E140: 0 | F140: =SUM(weekly!#REF!) ->  | G140: =SUM(weekly!#REF!) ->  | H140: =SUM(weekly!D602:D605) -> 13 | I140: =SUM(weekly!E602:E605) -> 2452570 | J140: 1713345.99 | K140: =SUM(weekly!#REF!) ->  | L140: =SUM(weekly!#REF!) ->  | M140: =SUM(weekly!#REF!) ->  | N140: =SUM(weekly!#REF!) ->  | P140: =SUM(weekly!#REF!) ->  | Q140: 219 | R140: 143.1450515
A141: 2012-08-01 | B141: =SUM(weekly!#REF!) ->  | C141: =SUM(weekly!B606:B610) -> 4 | D141: =SUM(weekly!C606:C610) -> 3180000 | E141: 2206410.431 | F141: =SUM(weekly!#REF!) ->  | G141: =SUM(weekly!#REF!) ->  | H141: =SUM(weekly!D606:D610) -> 11 | I141: =SUM(weekly!E606:E610) -> 45876083 | J141: 31830650.33 | K141: =SUM(weekly!#REF!) ->  | L141: =SUM(weekly!#REF!) ->  | M141: =SUM(weekly!#REF!) ->  | N141: =SUM(weekly!#REF!) ->  | P141: =SUM(weekly!#REF!) ->  | Q141: 220.5 | R141: 144.125497
A142: 2012-09-01 | B142: =SUM(weekly!#REF!) ->  | C142: =SUM(weekly!B611:B614) -> 0 | D142: =SUM(weekly!C611:C614) -> 0 | E142: 0 | F142: =SUM(weekly!#REF!) ->  | G142: =SUM(weekly!#REF!) ->  | H142: =SUM(weekly!D611:D614) -> 3 | I142: =SUM(weekly!E611:E614) -> 782000 | J142: 541110.2819 | K142: =SUM(weekly!#REF!) ->  | L142: =SUM(weekly!#REF!) ->  | M142: =SUM(weekly!#REF!) ->  | N142: =SUM(weekly!#REF!) ->  | P142: =SUM(weekly!#REF!) ->  | Q142: 221.1 | R142: 144.5176753
A143: 2012-10-01 | B143: =SUM(weekly!#REF!) ->  | C143: =SUM(weekly!B615:B618) -> 1 | D143: =SUM(weekly!C615:C618) -> 130000 | E143: 90240.09377 | F143: =SUM(weekly!#REF!) ->  | G143: =SUM(weekly!#REF!) ->  | H143: =SUM(weekly!D615:D618) -> 5 | I143: =SUM(weekly!E615:E618) -> 2630819 | J143: 1826195.025 | K143: =SUM(weekly!#REF!) ->  | L143: =SUM(weekly!#REF!) ->  | M143: =SUM(weekly!#REF!) ->  | N143: =SUM(weekly!#REF!) ->  | P143: =SUM(weekly!#REF!) ->  | Q143: 220.4 | R143: 144.060134
A144: 2012-11-01 | B144: =SUM(weekly!#REF!) ->  | C144: =SUM(weekly!B619:B623) -> 6 | D144: =SUM(weekly!C619:C623) -> 2150000 | E144: 1498551.632 | F144: =SUM(weekly!#REF!) ->  | G144: =SUM(weekly!#REF!) ->  | H144: =SUM(weekly!D619:D623) -> 13 | I144: =SUM(weekly!E619:E623) -> 4044507 | J144: 2819024.45 | K144: =SUM(weekly!#REF!) ->  | L144: =SUM(weekly!#REF!) ->  | M144: =SUM(weekly!#REF!) ->  | N144: =SUM(weekly!#REF!) ->  | P144: =SUM(weekly!#REF!) ->  | Q144: 219.5 | R144: 143.4718667
A145: 2012-12-01 | B145: =SUM(weekly!#REF!) ->  | C145: =SUM(weekly!B624:B627) -> 0 | D145: =SUM(weekly!C624:C627) -> 0 | E145: 0 | F145: =SUM(weekly!#REF!) ->  | G145: =SUM(weekly!#REF!) ->  | H145: =SUM(weekly!D624:D627) -> 6 | I145: =SUM(weekly!E624:E627) -> 947680 | J145: 662041.7473 | K145: =SUM(weekly!#REF!) ->  | L145: =SUM(weekly!#REF!) ->  | M145: =SUM(weekly!#REF!) ->  | N145: =SUM(weekly!#REF!) ->  | P145: =SUM(weekly!#REF!) ->  | Q145: 219 | R145: 143.1450515
A146: 2013-01-01 | B146: =SUM(weekly!#REF!) ->  | C146: =SUM(weekly!B628:B631) -> 1 | D146: =SUM(weekly!C628:C631) -> 90000 | E146: 62787.2777 | F146: =SUM(weekly!#REF!) ->  | G146: =SUM(weekly!#REF!) ->  | H146: =SUM(weekly!D628:D631) -> 9 | I146: =SUM(weekly!E628:E631) -> 9626145 | J146: 6715549.326 | K146: =SUM(weekly!#REF!) ->  | L146: =SUM(weekly!#REF!) ->  | M146: =SUM(weekly!#REF!) ->  | N146: =SUM(weekly!#REF!) ->  | P146: =SUM(weekly!#REF!) ->  | Q146: 219.3 | R146: 143.3411406
A147: 2013-02-01 | B147: =SUM(weekly!#REF!) ->  | C147: =SUM(weekly!B632:B635) -> 0 | D147: =SUM(weekly!C632:C635) -> 0 | E147: 0 | F147: =SUM(weekly!#REF!) ->  | G147: =SUM(weekly!#REF!) ->  | H147: =SUM(weekly!D632:D635) -> 7 | I147: =SUM(weekly!E632:E635) -> 7559062 | J147: 5218743.203 | K147: =SUM(weekly!#REF!) ->  | L147: =SUM(weekly!#REF!) ->  | M147: =SUM(weekly!#REF!) ->  | N147: =SUM(weekly!#REF!) ->  | P147: =SUM(weekly!#REF!) ->  | Q147: 221.6 | R147: 144.8444904
A148: 2013-03-01 | B148: =SUM(weekly!#REF!) ->  | C148: =SUM(weekly!B636:B640) -> 0 | D148: =SUM(weekly!C636:C640) -> 0 | E148: 0 | F148: =SUM(weekly!#REF!) ->  | G148: =SUM(weekly!#REF!) ->  | H148: =SUM(weekly!D636:D640) -> 6 | I148: =SUM(weekly!E636:E640) -> 4658750 | J148: 3209139.699 | K148: =SUM(weekly!#REF!) ->  | L148: =SUM(weekly!#REF!) ->  | M148: =SUM(weekly!#REF!) ->  | N148: =SUM(weekly!#REF!) ->  | P148: =SUM(weekly!#REF!) ->  | Q148: 222.1 | R148: 145.1713056
A149: 2013-04-01 | B149: =SUM(weekly!#REF!) ->  | C149: =SUM(weekly!B641:B644) -> 3 | D149: =SUM(weekly!C641:C644) -> 1062850 | E149: 732794.9208 | F149: =SUM(weekly!#REF!) ->  | G149: =SUM(weekly!#REF!) ->  | H149: =SUM(weekly!D641:D644) -> 10 | I149: =SUM(weekly!E641:E644) -> 49654051 | J149: 34234592.25 | K149: =SUM(weekly!#REF!) ->  | L149: =SUM(weekly!#REF!) ->  | M149: =SUM(weekly!#REF!) ->  | N149: =SUM(weekly!#REF!) ->  | P149: =SUM(weekly!#REF!) ->  | Q149: 221.9 | R149: 145.0405796
A150: 2013-05-01 | B150: =SUM(weekly!#REF!) ->  | C150: =SUM(weekly!B645:B649) -> 3 | D150: =SUM(weekly!C645:C649) -> 1310000 | E150: 898337.4421 | F150: =SUM(weekly!#REF!) ->  | G150: =SUM(weekly!#REF!) ->  | H150: =SUM(weekly!D645:D649) -> 5 | I150: =SUM(weekly!E645:E649) -> 1097537 | J150: 752640.1383 | K150: =SUM(weekly!#REF!) ->  | L150: =SUM(weekly!#REF!) ->  | M150: =SUM(weekly!#REF!) ->  | N150: =SUM(weekly!#REF!) ->  | P150: =SUM(weekly!#REF!) ->  | Q150: 223.1 | R150: 145.824936
A151: 2013-06-01 | B151: =SUM(weekly!#REF!) ->  | C151: =SUM(weekly!B650:B653) -> 9 | D151: =SUM(weekly!C650:C653) -> 1518833 | E151: 1038287.721 | F151: =SUM(weekly!#REF!) ->  | G151: =SUM(weekly!#REF!) ->  | H151: =SUM(weekly!D650:D653) -> 12 | I151: =SUM(weekly!E650:E653) -> 3407403 | J151: 2329330.938 | K151: =SUM(weekly!#REF!) ->  | L151: =SUM(weekly!#REF!) ->  | M151: =SUM(weekly!#REF!) ->  | N151: =SUM(weekly!#REF!) ->  | P151: =SUM(weekly!#REF!) ->  | Q151: 223.8 | R151: 146.2824773
A152: 2013-07-01 | B152: =SUM(weekly!#REF!) ->  | C152: =SUM(weekly!B654:B657) -> 4 | D152: =SUM(weekly!C654:C657) -> 657000 | E152: 450944.4818 | F152: =SUM(weekly!#REF!) ->  | G152: =SUM(weekly!#REF!) ->  | H152: =SUM(weekly!D654:D657) -> 4 | I152: =SUM(weekly!E654:E657) -> 470000 | J152: 322593.4649 | K152: =SUM(weekly!#REF!) ->  | L152: =SUM(weekly!#REF!) ->  | M152: =SUM(weekly!#REF!) ->  | N152: =SUM(weekly!#REF!) ->  | P152: =SUM(weekly!#REF!) ->  | Q152: 222.9 | R152: 145.6942099
A153: 2013-08-01 | B153: =SUM(weekly!#REF!) ->  | C153: =SUM(weekly!B658:B662) -> 11 | D153: =SUM(weekly!C658:C662) -> 7099450 | E153: 4870657.793 | F153: =SUM(weekly!#REF!) ->  | G153: =SUM(weekly!#REF!) ->  | H153: =SUM(weekly!D658:D662) -> 18 | I153: =SUM(weekly!E658:E662) -> 13567150 | J153: 9307896.37 | K153: =SUM(weekly!#REF!) ->  | L153: =SUM(weekly!#REF!) ->  | M153: =SUM(weekly!#REF!) ->  | N153: =SUM(weekly!#REF!) ->  | P153: =SUM(weekly!#REF!) ->  | Q153: 223 | R153: 145.759573
A154: 2013-09-01 | B154: =SUM(weekly!#REF!) ->  | C154: =SUM(weekly!B663:B666) -> 1 | D154: =SUM(weekly!C663:C666) -> 106803 | E154: =(D154/R154)*100 -> 73174.96182 | F154: =SUM(weekly!#REF!) ->  | G154: =SUM(weekly!#REF!) ->  | H154: =SUM(weekly!D663:D666) -> 6 | I154: =SUM(weekly!E663:E666) -> 740000 | J154: 507003.2841 | K154: =SUM(weekly!#REF!) ->  | L154: =SUM(weekly!#REF!) ->  | M154: =SUM(weekly!#REF!) ->  | N154: =SUM(weekly!#REF!) ->  | P154: =SUM(weekly!#REF!) ->  | Q154: 223.3 | R154: 145.9556621
A155: 2013-10-01 | B155: =SUM(weekly!#REF!) ->  | C155: =SUM(weekly!B667:B670) -> 5 | D155: =SUM(weekly!C667:C670) -> 1645000 | E155: 1132634.076 | F155: =SUM(weekly!#REF!) ->  | G155: =SUM(weekly!#REF!) ->  | H155: =SUM(weekly!D667:D670) -> 7 | I155: =SUM(weekly!E667:E670) -> 1501279 | J155: 1033677.661 | K155: =SUM(weekly!#REF!) ->  | L155: =SUM(weekly!#REF!) ->  | M155: =SUM(weekly!#REF!) ->  | N155: =SUM(weekly!#REF!) ->  | P155: =SUM(weekly!#REF!) ->  | Q155: 222.2 | R155: 145.2366687
A156: 2013-11-01 | B156: =SUM(weekly!#REF!) ->  | C156: =SUM(weekly!B671:B675) -> 3 | D156: =SUM(weekly!C671:C675) -> 4908000 | E156: 3386933.243 | F156: =SUM(weekly!#REF!) ->  | G156: =SUM(weekly!#REF!) ->  | H156: =SUM(weekly!D671:D675) -> 8 | I156: =SUM(weekly!E671:E675) -> 5410800 | J156: 3733907.578 | K156: =SUM(weekly!#REF!) ->  | L156: =SUM(weekly!#REF!) ->  | M156: =SUM(weekly!#REF!) ->  | N156: =SUM(weekly!#REF!) ->  | P156: =SUM(weekly!#REF!) ->  | Q156: 221.7 | R156: 144.9098535
A157: 2013-12-01 | B157: =SUM(weekly!#REF!) ->  | C157: =SUM(weekly!B676:B679) -> 3 | D157: =SUM(weekly!C676:C679) -> 485906 | E157: 336073.9999 | F157: =SUM(weekly!#REF!) ->  | G157: =SUM(weekly!#REF!) ->  | H157: =SUM(weekly!D676:D679) -> 7 | I157: =SUM(weekly!E676:E679) -> 11186000 | J157: 7736730.485 | K157: =SUM(weekly!#REF!) ->  | L157: =SUM(weekly!#REF!) ->  | M157: =SUM(weekly!#REF!) ->  | N157: =SUM(weekly!#REF!) ->  | P157: =SUM(weekly!#REF!) ->  | Q157: 221.2 | R157: 144.5830383
A158: 2014-01-01 | B158: =SUM(weekly!#REF!) ->  | C158: =SUM(weekly!B680:B684) -> 0 | D158: =SUM(weekly!C680:C684) -> 0 | E158: 0 | F158: =SUM(weekly!#REF!) ->  | G158: =SUM(weekly!#REF!) ->  | H158: =SUM(weekly!D680:D684) -> 4 | I158: =SUM(weekly!E680:E684) -> 650000 | J158: 447545.3795 | K158: =SUM(weekly!#REF!) ->  | L158: =SUM(weekly!#REF!) ->  | M158: =SUM(weekly!#REF!) ->  | N158: =SUM(weekly!#REF!) ->  | P158: =SUM(weekly!#REF!) ->  | Q158: 222.2 | R158: 145.2366687
A159: 2014-02-01 | B159: =SUM(weekly!#REF!) ->  | C159: =SUM(weekly!B685:B688) -> 8 | D159: =SUM(weekly!C685:C688) -> 3440000 | E159: 2354771.066 | F159: =SUM(weekly!#REF!) ->  | G159: =SUM(weekly!#REF!) ->  | H159: =SUM(weekly!D685:D688) -> 10 | I159: =SUM(weekly!E685:E688) -> 3468223 | J159: 2374090.457 | K159: =SUM(weekly!#REF!) ->  | L159: =SUM(weekly!#REF!) ->  | M159: =SUM(weekly!#REF!) ->  | N159: =SUM(weekly!#REF!) ->  | P159: =SUM(weekly!#REF!) ->  | Q159: 223.5 | R159: 146.0863881
A160: 2014-03-01 | B160: =SUM(weekly!#REF!) ->  | C160: =SUM(weekly!B689:B692) -> 0 | D160: =SUM(weekly!C689:C692) -> 0 | E160: 0 | F160: =SUM(weekly!#REF!) ->  | G160: =SUM(weekly!#REF!) ->  | H160: =SUM(weekly!D689:D692) -> 6 | I160: =SUM(weekly!E689:E692) -> 2120855 | J160: 1438905.283 | K160: =SUM(weekly!#REF!) ->  | L160: =SUM(weekly!#REF!) ->  | M160: =SUM(weekly!#REF!) ->  | N160: =SUM(weekly!#REF!) ->  | P160: =SUM(weekly!#REF!) ->  | Q160: 225.5 | R160: 147.3936489
A161: 2014-04-01 | B161: =SUM(weekly!#REF!) ->  | C161: =SUM(weekly!B693:B696) -> 8 | D161: =SUM(weekly!C693:C696) -> 10961000 | E161: 7413535.183 | F161: =SUM(weekly!#REF!) ->  | G161: =SUM(weekly!#REF!) ->  | H161: =SUM(weekly!D693:D696) -> 3 | I161: =SUM(weekly!E693:E696) -> 1440000 | J161: 973952.2546 | K161: =SUM(weekly!#REF!) ->  | L161: =SUM(weekly!#REF!) ->  | M161: =SUM(weekly!#REF!) ->  | N161: =SUM(weekly!#REF!) ->  | P161: =SUM(weekly!#REF!) ->  | Q161: 226.2 | R161: 147.8511902
A162: 2014-05-01 | B162: =SUM(weekly!#REF!) ->  | C162: =SUM(weekly!B697:B701) -> 5 | D162: =SUM(weekly!C697:C701) -> 1722664 | E162: 1163076.948 | F162: =SUM(weekly!#REF!) ->  | G162: =SUM(weekly!#REF!) ->  | H162: =SUM(weekly!D697:D701) -> 4 | I162: =SUM(weekly!E697:E701) -> 491256 | J162: 331677.2913 | K162: =SUM(weekly!#REF!) ->  | L162: =SUM(weekly!#REF!) ->  | M162: =SUM(weekly!#REF!) ->  | N162: =SUM(weekly!#REF!) ->  | P162: =SUM(weekly!#REF!) ->  | Q162: 226.6 | R162: 148.1126423
A163: 2014-06-01 | B163: =SUM(weekly!#REF!) ->  | C163: =SUM(weekly!B702:B705) -> 7 | D163: =SUM(weekly!C702:C705) -> 1985000 | E163: 1334307.813 | F163: =SUM(weekly!#REF!) ->  | G163: =SUM(weekly!#REF!) ->  | H163: =SUM(weekly!D702:D705) -> 6 | I163: =SUM(weekly!E702:E705) -> 2661500 | J163: 1789047.983 | K163: =SUM(weekly!#REF!) ->  | L163: =SUM(weekly!#REF!) ->  | M163: =SUM(weekly!#REF!) ->  | N163: =SUM(weekly!#REF!) ->  | P163: =SUM(weekly!#REF!) ->  | Q163: 227.6 | R163: 148.7662727
A164: 2014-07-01 | B164: =SUM(weekly!#REF!) ->  | C164: =SUM(weekly!B706:B709) -> 2 | D164: =SUM(weekly!C706:C709) -> 1149640 | E164: 774825.2849 | F164: =SUM(weekly!#REF!) ->  | G164: =SUM(weekly!#REF!) ->  | H164: =SUM(weekly!D706:D709) -> 10 | I164: =SUM(weekly!E706:E709) -> 2639714 | J164: 1779093.588 | K164: =SUM(weekly!#REF!) ->  | L164: =SUM(weekly!#REF!) ->  | M164: =SUM(weekly!#REF!) ->  | N164: =SUM(weekly!#REF!) ->  | P164: =SUM(weekly!#REF!) ->  | Q164: 227 | R164: 148.3740944
A165: 2014-08-01 | B165: =SUM(weekly!#REF!) ->  | C165: =SUM(weekly!B710:B714) -> 8 | D165: =SUM(weekly!C710:C714) -> 6356000 | E165: 4291328.479 | F165: =SUM(weekly!#REF!) ->  | G165: =SUM(weekly!#REF!) ->  | H165: =SUM(weekly!D710:D714) -> 12 | I165: =SUM(weekly!E710:E714) -> 2892497 | J165: 1952903.517 | K165: =SUM(weekly!#REF!) ->  | L165: =SUM(weekly!#REF!) ->  | M165: =SUM(weekly!#REF!) ->  | N165: =SUM(weekly!#REF!) ->  | P165: =F165+K165 ->  | Q165: 226.6 | R165: 148.1126423
A166: 2014-09-01 | B166: =SUM(weekly!#REF!) ->  | C166: =SUM(weekly!B715:B718) -> 1 | D166: =SUM(weekly!C715:C718) -> 2000000 | E166: 1348538.269 | F166: =SUM(weekly!#REF!) ->  | G166: =SUM(weekly!#REF!) ->  | H166: =SUM(weekly!D715:D718) -> 8 | I166: =SUM(weekly!E715:E718) -> 25371661 | J166: 17107327.91 | K166: =SUM(weekly!#REF!) ->  | L166: =SUM(weekly!#REF!) ->  | M166: =SUM(weekly!#REF!) ->  | N166: =SUM(weekly!#REF!) ->  | P166: =F166+K166 ->  | Q166: 226.9 | R166: 148.3087314
A167: 2014-10-01 | B167: =SUM(weekly!#REF!) ->  | C167: =SUM(weekly!B718:B722) -> 0 | D167: =SUM(weekly!C718:C722) -> 0 | E167: 0 | F167: =SUM(weekly!#REF!) ->  | G167: =SUM(weekly!#REF!) ->  | H167: =SUM(weekly!D718:D722) -> 8 | I167: =SUM(weekly!E718:E722) -> 2764900 | J167: 1873368.73 | K167: =SUM(weekly!#REF!) ->  | L167: =SUM(weekly!#REF!) ->  | M167: =SUM(weekly!#REF!) ->  | N167: =SUM(weekly!#REF!) ->  | P167: =K167+F167 ->  | Q167: 225.8 | R167: 147.589738
A168: 2014-11-01 | B168: =SUM(weekly!#REF!) ->  | C168: =SUM(weekly!B723:B727) -> 0 | D168: =SUM(weekly!C723:C727) -> 0 | E168: 0 | F168: =SUM(weekly!#REF!) ->  | G168: =SUM(weekly!#REF!) ->  | H168: =SUM(weekly!D723:D727) -> 12 | I168: =SUM(weekly!E723:E727) -> 5863378 | J168: 3990426.924 | K168: =SUM(weekly!#REF!) ->  | L168: =B168+G168 ->  | M168: =C168+H168 -> 12 | N168: 5863378 | O168: 3990426.924 | P168: =K168+F168 ->  | Q168: 224.8 | R168: 146.9361076
A169: 2014-12-01 | B169: =SUM(weekly!#REF!) ->  | C169: =SUM(weekly!B728:B732) -> 0 | D169: =SUM(weekly!C728:C732) -> 0 | E169: 0 | G169: =SUM(weekly!#REF!) ->  | H169: =SUM(weekly!D728:D732) -> 4 | I169: =SUM(weekly!E728:E732) -> 620880 | J169: 426344.1023 | L169: =B169+G169 ->  | M169: 4 | N169: 620880 | O169: 426344.1023 | Q169: 222.8 | R169: 145.6288469
A170: 2015-01-01 | B170: =SUM(weekly!#REF!) ->  | C170: =SUM(weekly!B733:B735) -> 4 | D170: =SUM(weekly!C733:C735) -> 4932948
A171: 2015-02-01
A172: 2015-03-01
A173: 2015-04-01
A174: 2015-05-01
A175: 2015-06-01
A176: 2015-07-01
A177: 2015-08-01
A178: 2015-09-01
A179: 2015-10-01
A180: 2015-11-01
A181: 2015-12-01

Sheet mnth-mnth
A1: ecch_mbi | B1: jan | C1: feb | D1: mar | E1: apr | F1: may | G1: jun | H1: jul | I1: aug | J1: sep | K1: oct | L1: nov | M1: dec | N1: ytd_total
A2: 2003 | B2: 51 | C2: 39 | D2: 46 | E2: 45 | F2: 44 | G2: 47 | H2: 44 | I2: 39 | J2: 33 | K2: 52 | L2: 45 | M2: 63 | N2: =SUM(B2:M2) -> 548 | O2: =SUM(B2:M2) -> 548
A3: 2004 | B3: 62 | C3: 36 | D3: 85 | E3: 58 | F3: 67 | G3: 75 | H3: 40 | I3: 32 | J3: 43 | K3: 40 | L3: 42 | M3: 70 | N3: 650 | O3: 650
A4: 2005 | B4: 49 | C4: 65 | D4: 80 | E4: 44 | F4: 75 | G4: 84 | H4: 53 | I4: 56 | J4: 39 | K4: 57 | L4: 64 | M4: 46 | N4: 712 | O4: 712
A5: 2006 | B5: 66 | C5: 63 | D5: 79 | E5: 80 | F5: 64 | G5: 60 | H5: 55 | I5: 59 | J5: 69 | K5: 32 | L5: 64 | M5: 57 | N5: 748 | O5: 748
A6: 2007 | B6: 72 | C6: 65 | D6: 63 | E6: 87 | F6: 59 | G6: 57 | H6: 63 | I6: 45 | J6: 107 | K6: 59 | L6: 54 | M6: 63 | N6: 794 | O6: 794
A7: 2008 | B7: 68 | C7: 53 | D7: 87 | E7: 82 | F7: 75 | G7: 19 | H7: 76 | I7: 43 | J7: 39 | K7: 70 | L7: 45 | M7: 72 | N7: 729 | O7: 729
A8: 2009 | B8: 47 | C8: 48 | D8: 60 | E8: 67 | F8: 49 | G8: 39 | H8: 58 | I8: 47 | J8: 67 | K8: 58 | L8: 73 | M8: 52 | N8: 665 | O8: 665
A9: 2010 | B9: 35 | C9: 50 | D9: 65 | E9: 81 | F9: 46 | G9: 59 | H9: 43 | I9: 44 | J9: 65 | K9: 62 | L9: 58 | M9: 81 | N9: =SUM(B9:M9) -> 689 | O9: =SUM(B9:M9) -> 689
A10: 2011 | B10: 53 | C10: 56 | D10: 98 | E10: 69 | F10: 69 | G10: 72 | H10: 52 | I10: 65 | J10: 55 | K10: 45 | L10: 68 | M10: 99 | N10: =SUM(B10:M10) -> 801 | O10: 801
A11: 2012 | B11: 72 | C11: 85 | D11: 93 | E11: 64 | F11: 91 | G11: 53 | H11: 58 | I11: 50 | J11: 64 | K11: 82 | L11: 77 | M11: 81 | N11: =SUM(B11:M11) -> 870 | O11: 870
A12: 2013 | B12: 77 | C12: 74 | D12: 67 | E12: 74 | F12: 97 | G12: 66 | H12: 77 | I12: 94 | J12: 42 | K12: 59 | L12: 78 | M12: 59 | N12: =SUM(B12:L12) -> 805 | O12: 864
A13: 2014 | B13: 89 | C13: 70 | D13: 98 | E13: 86 | F13: 88 | G13: 65 | H13: 83 | I13: 103 | J13: =43 -> 43 | K13: 92 | L13: 62 | N13: =SUM(B13:L13) -> 879 | O13: 879
A14: 2015 | N14: =SUM(B14:B14) -> 0 | O14: 0
B15: jan-dec | C15: feb-jan | D15: mar-feb | E15: apr-mar | F15: may-apr | G15: jun-may | H15: jul-jun | I15: aug-jul | J15: sep-aug | K15: oct-sep | L15: nov-oct | M15: dec-nov
A16: change_04 | B16: =B3-M2 -> -1 | C16: =C3-B3 -> -26 | D16: 49 | E16: -27 | F16: 9 | G16: 8 | H16: -35 | I16: -8 | J16: 11 | K16: -3 | L16: 2 | M16: 28
A17: %change_04 | B17: =(B16/M2)*100 -> -1.587301587 | C17: =(C16/B3)*100 -> -41.93548387 | D17: 136.1111111 | E17: -31.76470588 | F17: 15.51724138 | G17: 11.94029851 | H17: -46.66666667 | I17: -20 | J17: 34.375 | K17: -6.976744186 | L17: 5 | M17: 66.66666667
B18: jan | C18: feb | D18: mar | E18: apr | F18: may | G18: jun | H18: jul | I18: aug | J18: sep | K18: oct | L18: nov | M18: dec | N18: ytd_total
A19: chg_prv_04-03 | B19: =B3-B2 -> 11 | C19: -3 | D19: 39 | E19: 13 | F19: 23 | G19: 28 | H19: -4 | I19: -7 | J19: 10 | K19: -12 | L19: -3 | M19: 7 | N19: =O3-O2 -> 102
A20: %chg_prv_04-03 | B20: =(B19/B2)*100 -> 21.56862745 | C20: -7.692307692 | D20: 84.7826087 | E20: 28.88888889 | F20: 52.27272727 | G20: 59.57446809 | H20: -9.090909091 | I20: -17.94871795 | J20: 30.3030303 | K20: -23.07692308 | L20: -6.666666667 | M20: 11.11111111 | N20: =(N19/O2)*100 -> 18.61313869
B22: jan-dec | C22: feb-jan | D22: mar-feb | E22: apr-mar | F22: may-apr | G22: jun-may | H22: jul-jun | I22: aug-jul | J22: sep-aug | K22: oct-sep | L22: nov-oct | M22: dec-nov
A23: change_05 | B23: =B4-M3 -> -21 | C23: =C4-B4 -> 16 | D23: 15 | E23: -36 | F23: 31 | G23: 9 | H23: -31 | I23: 3 | J23: -17 | K23: 18 | L23: 7 | M23: -18
A24: %change_05 | B24: =(B23/M3)*100 -> -30 | C24: =(C23/B4)*100 -> 32.65306122 | D24: 23.07692308 | E24: -45 | F24: 70.45454545 | G24: 12 | H24: -36.9047619 | I24: 5.660377358 | J24: -30.35714286 | K24: 46.15384615 | L24: 12.28070175 | M24: -28.125
B25: jan | C25: feb | D25: mar | E25: apr | F25: may | G25: jun | H25: jul | I25: aug | J25: sep | K25: oct | L25: nov | M25: dec | N25: ytd_total
A26: chg_prv_05-04 | B26: =B4-B3 -> -13 | C26: 29 | D26: -5 | E26: -14 | F26: 8 | G26: 9 | H26: 13 | I26: 24 | J26: -4 | K26: 17 | L26: 22 | M26: -24 | N26: =O4-O3 -> 62
A27: %chg_prv_05-04 | B27: =(B26/B3)*100 -> -20.96774194 | C27: 80.55555556 | D27: -5.882352941 | E27: -24.13793103 | F27: 11.94029851 | G27: 12 | H27: 32.5 | I27: 75 | J27: -9.302325581 | K27: 42.5 | L27: 52.38095238 | M27: -34.28571429 | N27: =(N26/O3)*100 -> 9.538461538
B29: jan-dec | C29: feb-jan | D29: mar-feb | E29: apr-mar | F29: may-apr | G29: jun-may | H29: jul-jun | I29: aug-jul | J29: sep-aug | K29: oct-sep | L29: nov-oct | M29: dec-nov
A30: change_06 | B30: =B5-M4 -> 20 | C30: =C5-B5 -> -3 | D30: 16 | E30: 1 | F30: -16 | G30: -4 | H30: -5 | I30: 4 | J30: 10 | K30: -37 | L30: 32 | M30: -7
A31: %change_06 | B31: =(B30/M4)*100 -> 43.47826087 | C31: =(C30/B5)*100 -> -4.545454545 | D31: 25.3968254 | E31: 1.265822785 | F31: -20 | G31: -6.25 | H31: -8.333333333 | I31: 7.272727273 | J31: 16.94915254 | K31: -53.62318841 | L31: 100 | M31: -10.9375
B32: jan | C32: feb | D32: mar | E32: apr | F32: may | G32: jun | H32: jul | I32: aug | J32: sep | K32: oct | L32: nov | M32: dec | N32: ytd_total
A33: chg_prv_06-05 | B33: =B5-B4 -> 17 | C33: -2 | D33: -1 | E33: 36 | F33: -11 | G33: -24 | H33: 2 | I33: 3 | J33: 30 | K33: -25 | L33: 0 | M33: 11 | N33: =O5-O4 -> 36
A34: %chg_prv_06-05 | B34: =(B33/B4)*100 -> 34.69387755 | C34: -3.076923077 | D34: -1.25 | E34: 81.81818182 | F34: -14.66666667 | G34: -28.57142857 | H34: 3.773584906 | I34: 5.357142857 | J34: 76.92307692 | K34: -43.85964912 | L34: 0 | M34: 23.91304348 | N34: =(N33/O4)*100 -> 5.056179775
B36: jan-dec | C36: feb-jan | D36: mar-feb | E36: apr-mar | F36: may-apr | G36: jun-may | H36: jul-jun | I36: aug-jul | J36: sep-aug | K36: oct-sep | L36: nov-oct | M36: dec-nov
A37: change_07 | B37: =B6-M5 -> 15 | C37: =C6-B6 -> -7 | D37: -2 | E37: 24 | F37: -28 | G37: -2 | H37: 6 | I37: -18 | J37: 62 | K37: -48 | L37: -5 | M37: 9
A38: %change_07 | B38: =(B37/M5)*100 -> 26.31578947 | C38: =(C37/B6)*100 -> -9.722222222 | D38: -3.076923077 | E38: 38.0952381 | F38: -32.18390805 | G38: -3.389830508 | H38: 10.52631579 | I38: -28.57142857 | J38: 137.7777778 | K38: -44.85981308 | L38: -8.474576271 | M38: 16.66666667
B39: jan | C39: feb | D39: mar | E39: apr | F39: may | G39: jun | H39: jul | I39: aug | J39: sep | K39: oct | L39: nov | M39: dec | N39: ytd_total
A40: chg_prv_07-06 | B40: =B6-B5 -> 6 | C40: 2 | D40: -16 | E40: 7 | F40: -5 | G40: -3 | H40: 8 | I40: -14 | J40: 38 | K40: 27 | L40: -10 | M40: 6 | N40: =O6-O5 -> 46
A41: %chg_prv_07-06 | B41: =(B40/B5)*100 -> 9.090909091 | C41: 3.174603175 | D41: -20.25316456 | E41: 8.75 | F41: -7.8125 | G41: -5 | H41: 14.54545455 | I41: -23.72881356 | J41: 55.07246377 | K41: 84.375 | L41: -15.625 | M41: 10.52631579 | N41: =(N40/O5)*100 -> 6.14973262
B43: jan-dec | C43: feb-jan | D43: mar-feb | E43: apr-mar | F43: may-apr | G43: jun-may | H43: jul-jun | I43: aug-jul | J43: sep-aug | K43: oct-sep | L43: nov-oct | M43: dec-nov
A44: change_08 | B44: =B7-M6 -> 5 | C44: =C7-B7 -> -15 | D44: 34 | E44: -5 | F44: -7 | G44: -56 | H44: 57 | I44: -33 | J44: -4 | K44: 31 | L44: -25 | M44: 27
A45: %change_08 | B45: =(B44/M6)*100 -> 7.936507937 | C45: =-(C44/B7)*100 -> 22.05882353 | D45: -64.1509434 | E45: 5.747126437 | F45: 8.536585366 | G45: 74.66666667 | H45: -300 | I45: 43.42105263 | J45: 9.302325581 | K45: -79.48717949 | L45: 35.71428571 | M45: -60
B46: jan | C46: feb | D46: mar | E46: apr | F46: may | G46: jun | H46: jul | I46: aug | J46: sep | K46: oct | L46: nov | M46: dec | N46: ytd_total
A47: chg_prv_08-07 | B47: =B7-B6 -> -4 | C47: -12 | D47: 24 | E47: -5 | F47: 16 | G47: -38 | H47: 13 | I47: -2 | J47: -68 | K47: 11 | L47: -9 | M47: 9 | N47: =O7-O6 -> -65
A48: %chg_prv_08-07 | B48: =(B47/B6)*100 -> -5.555555556 | C48: -18.46153846 | D48: 38.0952381 | E48: -5.747126437 | F48: 27.11864407 | G48: -66.66666667 | H48: 20.63492063 | I48: -4.444444444 | J48: -63.55140187 | K48: 18.6440678 | L48: -16.66666667 | M48: 14.28571429 | N48: =(N47/O6)*100 -> -8.186397985
B50: jan-dec | C50: feb-jan | D50: mar-feb | E50: apr-mar | F50: may-apr | G50: jun-may | H50: jul-jun | I50: aug-jul | J50: sep-aug | K50: oct-sep | L50: nov-oct | M50: dec-nov
A51: change_09 | B51: =B8-M7 -> -25 | C51: =C8-B8 -> 1 | D51: 12 | E51: 7 | F51: -18 | G51: -10 | H51: 19 | I51: -11 | J51: 20 | K51: -9 | L51: 15 | M51: -21
A52: %change_09 | B52: =(B51/M7)*100 -> -34.72222222 | C52: =(C51/B8)*100 -> 2.127659574 | D52: 25 | E52: 11.66666667 | F52: -26.86567164 | G52: -20.40816327 | H52: 48.71794872 | I52: -18.96551724 | J52: 42.55319149 | K52: -13.43283582 | L52: 25.86206897 | M52: -28.76712329
B53: jan | C53: feb | D53: mar | E53: apr | F53: may | G53: jun | H53: jul | I53: aug | J53: sep | K53: oct | L53: nov | M53: dec | N53: ytd_total
A54: chg_prv_09-08 | B54: =B8-B7 -> -21 | C54: -5 | D54: -27 | E54: -15 | F54: -26 | G54: 20 | H54: -18 | I54: 4 | J54: 28 | K54: -12 | L54: 28 | M54: -20 | N54: =O8-O7 -> -64
A55: %chg_prv_09-08 | B55: =(B54/B7)*100 -> -30.88235294 | C55: -9.433962264 | D55: -31.03448276 | E55: -18.29268293 | F55: -34.66666667 | G55: 105.2631579 | H55: -23.68421053 | I55: 9.302325581 | J55: 71.79487179 | K55: -17.14285714 | L55: 62.22222222 | M55: -27.77777778 | N55: =(N54/O7)*100 -> -8.77914952
B57: jan-dec | C57: feb-jan | D57: mar-feb | E57: apr-mar | F57: may-apr | G57: jun-may | H57: jul-jun | I57: aug-jul | J57: sep-aug | K57: oct-sep | L57: nov-oct | M57: dec-nov
A58: change_10 | B58: =B9-M8 -> -17 | C58: =C9-B9 -> 15 | D58: 15 | E58: 16 | F58: -35 | G58: 13 | H58: -16 | I58: 1 | J58: 21 | K58: -3 | L58: -4 | M58: 23
A59: %change_10 | B59: =(B58/M8)*100 -> -32.69230769 | C59: =(C58/B9)*100 -> 42.85714286 | D59: 30 | E59: 24.61538462 | F59: -43.20987654 | G59: 28.26086957 | H59: -27.11864407 | I59: 2.325581395 | J59: 47.72727273 | K59: -4.615384615 | L59: -6.451612903 | M59: 39.65517241
B60: jan | C60: feb | D60: mar | E60: apr | F60: may | G60: jun | H60: jul | I60: aug | J60: sep | K60: oct | L60: nov | M60: dec | N60: ytd_total
A61: chg_prv_10-09 | B61: =B9-B8 -> -12 | C61: 2 | D61: 5 | E61: 14 | F61: -3 | G61: 20 | H61: -15 | I61: -3 | J61: -2 | K61: 4 | L61: -15 | M61: 29 | N61: =O9-O8 -> 24
A62: %chg_prv_10-09 | B62: =(B61/B8)*100 -> -25.53191489 | C62: 4.166666667 | D62: 8.333333333 | E62: 20.89552239 | F62: -6.12244898 | G62: 51.28205128 | H62: -25.86206897 | I62: -6.382978723 | J62: -2.985074627 | K62: 6.896551724 | L62: -20.54794521 | M62: 55.76923077 | N62: =(N61/O8)*100 -> 3.609022556
B64: jan-dec | C64: feb-jan | D64: mar-feb | E64: apr-mar | F64: may-apr | G64: jun-may | H64: jul-jun | I64: aug-jul | J64: sep-aug | K64: oct-sep | L64: nov-oct | M64: dec-nov
A65: change_11 | B65: =B10-M9 -> -28 | C65: =C10-B10 -> 3 | D65: 42 | E65: -29 | F65: 0 | G65: 3 | H65: -20 | I65: 13 | J65: -10 | K65: -10 | L65: 23 | M65: 31
A66: %change_11 | B66: =(B65/M9)*100 -> -34.56790123 | C66: =(C65/B10)*100 -> 5.660377358 | D66: 75 | E66: -29.59183673 | F66: 0 | G66: 4.347826087 | H66: -27.77777778 | I66: 25 | J66: -15.38461538 | K66: -18.18181818 | L66: 51.11111111 | M66: 45.58823529
B67: jan | C67: feb | D67: mar | E67: apr | F67: may | G67: jun | H67: jul | I67: aug | J67: sep | K67: oct | L67: nov | M67: dec | N67: ytd_total
A68: chg_prv_11-10 | B68: =B10-B9 -> 18 | C68: 6 | D68: 33 | E68: -12 | F68: 23 | G68: 13 | H68: 9 | I68: 21 | J68: -10 | K68: -17 | L68: 10 | M68: 18 | N68: =O10-O9 -> 112
A69: %chg_prv_11-10 | B69: =(B68/B9)*100 -> 51.42857143 | C69: 12 | D69: 50.76923077 | E69: -14.81481481 | F69: 50 | G69: 22.03389831 | H69: 20.93023256 | I69: 47.72727273 | J69: -15.38461538 | K69: -27.41935484 | L69: 17.24137931 | M69: 22.22222222 | N69: =(N68/O9)*100 -> 16.25544267
B71: jan-dec | C71: feb-jan | D71: mar-feb | E71: apr-mar | F71: may-apr | G71: jun-may | H71: jul-jun | I71: aug-jul | J71: sep-aug | K71: oct-sep | L71: nov-oct | M71: dec-nov
A72: change_12 | B72: =B11-M10 -> -27 | C72: =C11-B11 -> 13 | D72: 8 | E72: -29 | F72: 27 | G72: -38 | H72: 5 | I72: -8 | J72: 14 | K72: 18 | L72: -5 | M72: 4
A73: %change_12 | B73: =(B72/M10)*100 -> -27.27272727 | C73: =(C72/B11)*100 -> 18.05555556 | D73: 9.411764706 | E73: -31.1827957 | F73: 42.1875 | G73: -41.75824176 | H73: 9.433962264 | I73: -13.79310345 | J73: 28 | K73: 28.125 | L73: -6.097560976 | M73: 5.194805195
B74: jan | C74: feb | D74: mar | E74: apr | F74: may | G74: jun | H74: jul | I74: aug | J74: sep | K74: oct | L74: nov | M74: dec | N74: ytd_total
A75: chg_prv_12-11 | B75: =B11-B10 -> 19 | C75: 29 | D75: -5 | E75: -5 | F75: 22 | G75: -19 | H75: 6 | I75: -15 | J75: 9 | K75: 37 | L75: 9 | M75: -18 | N75: =O11-O10 -> 69
A76: %chg_prv_12-11 | B76: =(B75/B10)*100 -> 35.8490566 | C76: 51.78571429 | D76: -5.102040816 | E76: -7.246376812 | F76: 31.88405797 | G76: -26.38888889 | H76: 11.53846154 | I76: -23.07692308 | J76: 16.36363636 | K76: 82.22222222 | L76: 13.23529412 | M76: -18.18181818 | N76: =(N75/O10)*100 -> 8.61423221
B78: jan-dec | C78: feb-jan | D78: mar-feb | E78: apr-mar | F78: may-apr | G78: jun-may | H78: jul-jun | I78: aug-jul | J78: sep-aug | K78: oct-sep | L78: nov-oct | M78: dec-nov
A79: change_13 | B79: =B12-M11 -> -4 | C79: =C12-B12 -> -3 | D79: -7 | E79: 7 | F79: 23 | G79: -31 | H79: 11 | I79: 17 | J79: -52 | K79: 17 | L79: 19 | M79: -19
A80: %change_13 | B80: =(B79/M11)*100 -> -4.938271605 | C80: =(C79/B12)*100 -> -3.896103896 | D80: -9.459459459 | E80: 10.44776119 | F80: 31.08108108 | G80: -31.95876289 | H80: 16.66666667 | I80: 22.07792208 | J80: -55.31914894 | K80: 40.47619048 | L80: 32.20338983 | M80: -24.35897436
B81: jan | C81: feb | D81: mar | E81: apr | F81: may | G81: jun | H81: jul | I81: aug | J81: sep | K81: oct | L81: nov | M81: dec | N81: ytd_total
A82: chg_prv_13-12 | B82: =B12-B11 -> 5 | C82: -11 | D82: -26 | E82: 10 | F82: 6 | G82: 13 | H82: 19 | I82: 44 | J82: -22 | K82: -23 | L82: 1 | M82: -22 | N82: =O12-O11 -> -6
A83: %chg_prv_13-12 | B83: =(B82/B11)*100 -> 6.944444444 | C83: -12.94117647 | D83: -27.95698925 | E83: 15.625 | F83: 6.593406593 | G83: 24.52830189 | H83: 32.75862069 | I83: 88 | J83: -34.375 | K83: -28.04878049 | L83: 1.298701299 | M83: -27.16049383 | N83: =(N82/O11)*100 -> -0.6896551724
B85: jan-dec | C85: feb-jan | D85: mar-feb | E85: apr-mar | F85: may-apr | G85: jun-may | H85: jul-jun | I85: aug-jul | J85: sep-aug | K85: oct-sep | L85: nov-oct | M85: dec-nov
A86: change_14 | B86: =B13-M12 -> 30 | C86: =C13-B13 -> -19 | D86: 28 | E86: -12 | F86: 2 | G86: -23 | H86: 18 | I86: 20 | J86: =J13-I13 -> -60 | K86: 49 | L86: -30
A87: %change_14 | B87: =(B86/M12)*100 -> 50.84745763 | C87: =(C86/B13)*100 -> -21.34831461 | D87: 40 | E87: -12.24489796 | F87: 2.325581395 | G87: -26.13636364 | H87: 27.69230769 | I87: 24.09638554 | J87: =(J86/I13)*100 -> -58.25242718 | K87: 113.9534884 | L87: -32.60869565
B88: jan | C88: feb | D88: mar | E88: apr | F88: may | G88: jun | H88: jul | I88: aug | J88: sep | K88: oct | L88: nov | M88: dec | N88: ytd_total
A89: chg_prv_14-13 | B89: =B13-B12 -> 12 | C89: -4 | D89: 31 | E89: 12 | F89: -9 | G89: -1 | H89: 6 | I89: 9 | J89: 1 | K89: 33 | L89: -16 | N89: =O13-O12 -> 15
A90: %chg_prv_14-13 | B90: =(B89/B12)*100 -> 15.58441558 | C90: -5.405405405 | D90: 46.26865672 | E90: 16.21621622 | F90: -9.278350515 | G90: -1.515151515 | H90: 7.792207792 | I90: 9.574468085 | J90: 2.380952381 | K90: 55.93220339 | L90: -20.51282051 | N90: =(N89/O12)*100 -> 1.736111111
B92: jan-dec | C92: feb-jan | D92: mar-feb | E92: apr-mar | F92: may-apr | G92: jun-may | H92: jul-jun | I92: aug-jul | J92: sep-aug | K92: oct-sep | L92: nov-oct | M92: dec-nov
A93: change_15
A94: %change_15
B95: jan | C95: feb | D95: mar | E95: apr | F95: may | G95: jun | H95: jul | I95: aug | J95: sep | K95: oct | L95: nov | M95: dec | N95: ytd_total
A96: chg_prv_15-14 | N96: =N14-N13 -> -879
A97: %chg_prv_15-14 | N97: =(N96/N13)*100 -> -100
A99: ecch_mbr | B99: jan | C99: feb | D99: mar | E99: apr | F99: may | G99: jun | H99: jul | I99: aug | J99: sep | K99: oct | L99: nov | M99: dec | N99: ytd_total
A100: 2003 | B100: 36 | C100: 43 | D100: 40 | E100: 60 | F100: 24 | G100: 32 | H100: 42 | I100: 39 | J100: 31 | K100: 46 | L100: 49 | M100: 44 | N100: =SUM(B100:M100) -> 486 | O100: =SUM(B100:M100) -> 486
A101: 2004 | B101: 35 | C101: 29 | D101: 44 | E101: 33 | F101: 27 | G101: 28 | H101: 33 | I101: 32 | J101: 29 | K101: 34 | L101: 25 | M101: 26 | N101: 375 | O101: 375
A102: 2005 | B102: 31 | C102: 32 | D102: 64 | E102: 60 | F102: 54 | G102: 60 | H102: 37 | I102: 49 | J102: 98 | K102: 249 | L102: 0 | M102: 6 | N102: 740 | O102: 740
A103: 2006 | B103: 0 | C103: 6 | D103: 8 | E103: 12 | F103: 16 | G103: 8 | H103: 13 | I103: 23 | J103: 12 | K103: 17 | L103: 17 | M103: 13 | N103: 145 | O103: 145
A104: 2007 | B104: 16 | C104: 25 | D104: 26 | E104: 38 | F104: 14 | G104: 13 | H104: 43 | I104: 7 | J104: 26 | K104: 28 | L104: 27 | M104: 20 | N104: 283 | O104: 283
A105: 2008 | B105: 33 | C105: 35 | D105: 39 | E105: 41 | F105: 33 | G105: 32 | H105: 45 | I105: 41 | J105: 33 | K105: 41 | L105: 23 | M105: 20 | N105: 416 | O105: 416
A106: 2009 | B106: 39 | C106: 39 | D106: 45 | E106: 77 | F106: 42 | G106: 23 | H106: 49 | I106: 19 | J106: 67 | K106: 33 | L106: 34 | M106: 32 | N106: =SUM(B106:M106) -> 499 | O106: =SUM(B106:M106) -> 499
A107: 2010 | B107: 37 | C107: 38 | D107: 49 | E107: 60 | F107: 33 | G107: 57 | H107: 33 | I107: 45 | J107: 40 | K107: 38 | L107: 26 | M107: 46 | N107: 502 | O107: 502
A108: 2011 | B108: 31 | C108: 42 | D108: 72 | E108: 33 | F108: 49 | G108: 40 | H108: 36 | I108: 31 | J108: 27 | K108: 24 | L108: 33 | M108: 29 | N108: 447 | O108: 447
A109: 2012 | B109: 19 | C109: 27 | D109: 55 | E109: 22 | F109: 49 | G109: 37 | H109: 23 | I109: 35 | J109: 27 | K109: 25 | L109: 30 | M109: 25 | N109: 374 | O109: 374
A110: 2013 | B110: 16 | C110: 26 | D110: 49 | E110: 43 | F110: 41 | G110: 31 | H110: 26 | I110: 36 | J110: 19 | K110: 16 | L110: 30 | M110: 19 | N110: 352 | O110: 352
A111: 2014 | B111: 37 | C111: 17 | D111: 27 | E111: 30 | F111: 39 | G111: 34 | H111: 26 | I111: 17 | J111: 34 | K111: 33 | L111: 25 | M111: 19 | N111: 338 | O111: 338
A112: 2015 | N112: =SUM(B112:B112) -> 0 | O112: =SUM(B112:M112) -> 0
N113: =SUM(B113:B113) -> 0 | O113: =SUM(B113:M113) -> 0
B114: jan-dec | C114: feb-jan | D114: mar-feb | E114: apr-mar | F114: may-apr | G114: jun-may | H114: jul-jun | I114: aug-jul | J114: sep-aug | K114: oct-sep | L114: nov-oct | M114: dec-nov
A115: change_04 | B115: =B101-M100 -> -9 | C115: =C101-B101 -> -6 | D115: 15 | E115: -11 | F115: -6 | G115: 1 | H115: 5 | I115: -1 | J115: -3 | K115: 5 | L115: -9 | M115: 1
A116: %change_04 | B116: =(B115/M100)*100 -> -20.45454545 | C116: =(C115/B101)*100 -> -17.14285714 | D116: 51.72413793 | E116: -25 | F116: -18.18181818 | G116: 3.703703704 | H116: 17.85714286 | I116: -3.03030303 | J116: -9.375 | K116: 17.24137931 | L116: -26.47058824 | M116: 4
B117: jan | C117: feb | D117: mar | E117: apr | F117: may | G117: jun | H117: jul | I117: aug | J117: sep | K117: oct | L117: nov | M117: dec | N117: ytd_total
A118: chg_prv_04-03 | B118: =B101-B100 -> -1 | C118: -14 | D118: 4 | E118: -27 | F118: 3 | G118: -4 | H118: -9 | I118: -7 | J118: =J101-J100 -> -2 | K118: =K101-K100 -> -12 | L118: =L101-L100 -> -24 | M118: =M101-M100 -> -18 | N118: =O101-O100 -> -111
A119: %chg_prv_04-03 | B119: =(B118/B100)*100 -> -2.777777778 | C119: -32.55813953 | D119: 10 | E119: -45 | F119: 12.5 | G119: -12.5 | H119: -21.42857143 | I119: -17.94871795 | J119: -6.451612903 | K119: -26.08695652 | L119: -48.97959184 | M119: -40.90909091 | N119: =(N118/O100)*100 -> -22.83950617
B121: jan-dec | C121: feb-jan | D121: mar-feb | E121: apr-mar | F121: may-apr | G121: jun-may | H121: jul-jun | I121: aug-jul | J121: sep-aug | K121: oct-sep | L121: nov-oct | M121: dec-nov
A122: change_05 | B122: =B102-M101 -> 5 | C122: =C102-B102 -> 1 | D122: 32 | E122: -4 | F122: -6 | G122: 6 | H122: -23 | I122: 12 | J122: 49 | K122: 151 | L122: -249 | M122: 6
A123: %change_05 | B123: =(B122/M101)*100 -> 19.23076923 | C123: =(C122/B102)*100 -> 3.225806452 | D123: 100 | E123: -6.25 | F123: -10 | G123: 11.11111111 | H123: -38.33333333 | I123: 32.43243243 | J123: 100 | K123: 154.0816327 | L123: -100
B124: jan | C124: feb | D124: mar | E124: apr | F124: may | G124: jun | H124: jul | I124: aug | J124: sep | K124: oct | L124: nov | M124: dec | N124: ytd_total
A125: chg_prv_05-04 | B125: =B102-B101 -> -4 | C125: 3 | D125: 20 | E125: 27 | F125: 27 | G125: 32 | H125: 4 | I125: 17 | J125: =J102-J101 -> 69 | K125: =K102-K101 -> 215 | L125: =L102-L101 -> -25 | M125: =M102-M101 -> -20 | N125: =O102-O101 -> 365
A126: %chg_prv_05-04 | B126: =(B125/B101)*100 -> -11.42857143 | C126: 10.34482759 | D126: 45.45454545 | E126: 81.81818182 | F126: 100 | G126: 114.2857143 | H126: 12.12121212 | I126: 53.125 | J126: 237.9310345 | K126: 632.3529412 | L126: -100 | M126: -76.92307692 | N126: =(N125/O101)*100 -> 97.33333333
B128: jan-dec | C128: feb-jan | D128: mar-feb | E128: apr-mar | F128: may-apr | G128: jun-may | H128: jul-jun | I128: aug-jul | J128: sep-aug | K128: oct-sep | L128: nov-oct | M128: dec-nov
A129: change_06 | B129: =B103-M102 -> -6 | C129: =C103-B103 -> 6 | D129: 2 | E129: 4 | F129: 4 | G129: -8 | H129: 5 | I129: 10 | J129: -11 | K129: 5 | L129: =L103-K103 -> 0 | M129: =M103-L103 -> -4
A130: %change_06 | B130: =(B129/M102)*100 -> -100 | C130: =(C129/B103)*100 ->  | D130: 33.33333333 | E130: 50 | F130: 33.33333333 | G130: -50 | H130: 62.5 | I130: 76.92307692 | J130: -47.82608696 | K130: 41.66666667 | L130: =(L129/K103)*100 -> 0 | M130: =(M129/L103)*100 -> -23.52941176
B131: jan | C131: feb | D131: mar | E131: apr | F131: may | G131: jun | H131: jul | I131: aug | J131: sep | K131: oct | L131: nov | M131: dec | N131: ytd_total
A132: chg_prv_06-05 | B132: =B103-B102 -> -31 | C132: -26 | D132: -56 | E132: -48 | F132: -38 | G132: -52 | H132: =H103-H102 -> -24 | I132: -26 | J132: -86 | K132: -232 | L132: 17 | M132: 7 | N132: =O103-O102 -> -595
A133: %chg_prv_06-05 | B133: =(B132/B102)*100 -> -100 | C133: -81.25 | D133: -87.5 | E133: -80 | F133: -70.37037037 | G133: -86.66666667 | H133: -64.86486486 | I133: -53.06122449 | J133: -87.75510204 | K133: -93.17269076 | L133: =(L132/L102)*100 ->  | M133: =(M132/M102)*100 -> 116.6666667 | N133: =(N132/O102)*100 -> -80.40540541
B135: jan-dec | C135: feb-jan | D135: mar-feb | E135: apr-mar | F135: may-apr | G135: jun-may | H135: jul-jun | I135: aug-jul | J135: sep-aug | K135: oct-sep | L135: nov-oct | M135: dec-nov
A136: change_07 | B136: =B104-M103 -> 3 | C136: =C104-B104 -> 9 | D136: 1 | E136: 12 | F136: -24 | G136: -1 | H136: 30 | I136: -36 | J136: 19 | K136: =K104-J104 -> 2 | L136: =L104-K104 -> -1 | M136: =M104-L104 -> -7
A137: %change_07 | B137: =(B136/M103)*100 -> 23.07692308 | C137: =(C136/B104)*100 -> 56.25 | D137: 4 | E137: 46.15384615 | F137: -63.15789474 | G137: -7.142857143 | H137: 230.7692308 | I137: -83.72093023 | J137: 271.4285714 | K137: =(K136/J104)*100 -> 7.692307692 | L137: =(L136/K104)*100 -> -3.571428571 | M137: =(M136/L104)*100 -> -25.92592593
B138: jan | C138: feb | D138: mar | E138: apr | F138: may | G138: jun | H138: jul | I138: aug | J138: sep | K138: oct | L138: nov | M138: dec | N138: ytd_total
A139: chg_prv_07-06 | B139: =B104-B103 -> 16 | C139: 19 | D139: 18 | E139: 26 | F139: -2 | G139: 5 | H139: =H104-H103 -> 30 | I139: -16 | J139: 14 | K139: 11 | L139: 10 | M139: 7 | N139: =O104-O103 -> 138
A140: %chg_prv_07-06 | B140: =(B139/B103)*100 ->  | C140: 316.6666667 | D140: 225 | E140: 216.6666667 | F140: -12.5 | G140: 62.5 | H140: =(H139/H103)*100 -> 230.7692308 | I140: -69.56521739 | J140: 116.6666667 | K140: 64.70588235 | L140: 58.82352941 | M140: 53.84615385 | N140: =(N139/O103)*100 -> 95.17241379
B142: jan-dec | C142: feb-jan | D142: mar-feb | E142: apr-mar | F142: may-apr | G142: jun-may | H142: jul-jun | I142: aug-jul | J142: sep-aug | K142: oct-sep | L142: nov-oct | M142: dec-nov
A143: change_08 | B143: =B105-M104 -> 13 | C143: =C105-B105 -> 2 | D143: 4 | E143: 2 | F143: -8 | G143: -1 | H143: 13 | I143: =I105-H105 -> -4 | J143: =J105-I105 -> -8 | K143: =K105-J105 -> 8 | L143: =L105-K105 -> -18 | M143: =M105-L105 -> -3
A144: %change_08 | B144: =(B143/M104)*100 -> 65 | C144: =(C143/B105)*100 -> 6.060606061 | D144: 11.42857143 | E144: 5.128205128 | F144: -19.51219512 | G144: -3.03030303 | H144: 40.625 | I144: -8.888888889 | J144: -19.51219512 | K144: =(K143/J105)*100 -> 24.24242424 | L144: =(L143/K105)*100 -> -43.90243902 | M144: =(M143/L105)*100 -> -13.04347826
B145: jan | C145: feb | D145: mar | E145: apr | F145: may | G145: jun | H145: jul | I145: aug | J145: sep | K145: oct | L145: nov | M145: dec | N145: ytd_total
A146: chg_prv_08-07 | B146: =B105-B104 -> 17 | C146: 10 | D146: 13 | E146: 3 | F146: 19 | G146: 19 | H146: =H105-H104 -> 2 | I146: 34 | J146: 7 | K146: 13 | L146: -4 | M146: 0 | N146: =O105-O104 -> 133
A147: %chg_prv_08-07 | B147: =(B146/B104)*100 -> 106.25 | C147: 40 | D147: 50 | E147: 7.894736842 | F147: 135.7142857 | G147: 146.1538462 | H147: 4.651162791 | I147: =(I146/I104)*100 -> 485.7142857 | J147: =(J146/J104)*100 -> 26.92307692 | K147: =(K146/K104)*100 -> 46.42857143 | L147: =(L146/L104)*100 -> -14.81481481 | M147: =(M146/M104)*100 -> 0 | N147: =(N146/O104)*100 -> 46.99646643
B149: jan-dec | C149: feb-jan | D149: mar-feb | E149: apr-mar | F149: may-apr | G149: jun-may | H149: jul-jun | I149: aug-jul | J149: sep-aug | K149: oct-sep | L149: nov-oct | M149: dec-nov
A150: change_09 | B150: =B106-M105 -> 19 | C150: =C106-B106 -> 0 | D150: 6 | E150: 32 | F150: -35 | G150: -19 | H150: 26 | I150: -30 | J150: 48 | K150: -34 | L150: 1 | M150: -2
A151: %change_09 | B151: =(B150/M105)*100 -> 95 | C151: =(C150/B106)*100 -> 0 | D151: 15.38461538 | E151: 71.11111111 | F151: -45.45454545 | G151: -45.23809524 | H151: 113.0434783 | I151: -61.2244898 | J151: 252.6315789 | K151: -50.74626866 | L151: 3.03030303 | M151: -5.882352941
B152: jan | C152: feb | D152: mar | E152: apr | F152: may | G152: jun | H152: jul | I152: aug | J152: sep | K152: oct | L152: nov | M152: dec | N152: ytd_total
A153: chg_prv_09-08 | B153: =B106-B105 -> 6 | C153: 4 | D153: 6 | E153: 36 | F153: 9 | G153: -9 | H153: 4 | I153: -22 | J153: 34 | K153: -8 | L153: 11 | M153: 12 | N153: =O106-O105 -> 83
A154: %chg_prv_09-08 | B154: =(B153/B105)*100 -> 18.18181818 | C154: 11.42857143 | D154: 15.38461538 | E154: 87.80487805 | F154: 27.27272727 | G154: -28.125 | H154: 8.888888889 | I154: -53.65853659 | J154: 103.030303 | K154: -19.51219512 | L154: 47.82608696 | M154: 60 | N154: =(N153/O105)*100 -> 19.95192308
B156: jan-dec | C156: feb-jan | D156: mar-feb | E156: apr-mar | F156: may-apr | G156: jun-may | H156: jul-jun | I156: aug-jul | J156: sep-aug | K156: oct-sep | L156: nov-oct | M156: dec-nov
A157: change_10 | B157: =B107-M106 -> 5 | C157: =C107-B107 -> 1 | D157: 11 | E157: 11 | F157: -27 | G157: 24 | H157: -24 | I157: 12 | J157: -5 | K157: -2 | L157: -12 | M157: 20
A158: %change_10 | B158: =(B157/M106)*100 -> 15.625 | C158: =(C157/B107)*100 -> 2.702702703 | D158: 28.94736842 | E158: 22.44897959 | F158: -45 | G158: 72.72727273 | H158: -42.10526316 | I158: 36.36363636 | J158: -11.11111111 | K158: -5 | L158: -31.57894737 | M158: 76.92307692
B159: jan | C159: feb | D159: mar | E159: apr | F159: may | G159: jun | H159: jul | I159: aug | J159: sep | K159: oct | L159: nov | M159: dec | N159: ytd_total
A160: chg_prv_10-09 | B160: =B107-B106 -> -2 | C160: -1 | D160: 4 | E160: -17 | F160: -9 | G160: 34 | H160: =H107-H106 -> -16 | I160: 26 | J160: -27 | K160: 5 | L160: -8 | M160: 14 | N160: =O107-O106 -> 3
A161: %chg_prv_10-09 | B161: =(B160/B106)*100 -> -5.128205128 | C161: -2.564102564 | D161: 8.888888889 | E161: -22.07792208 | F161: -21.42857143 | G161: 147.826087 | H161: =(H160/H106)*100 -> -32.65306122 | I161: 136.8421053 | J161: -40.29850746 | K161: 15.15151515 | L161: -23.52941176 | M161: 43.75 | N161: =(N160/O106)*100 -> 0.6012024048
B163: jan-dec | C163: feb-jan | D163: mar-feb | E163: apr-mar | F163: may-apr | G163: jun-may | H163: jul-jun | I163: aug-jul | J163: sep-aug | K163: oct-sep | L163: nov-oct | M163: dec-nov
A164: change_11 | B164: =B108-M107 -> -15 | C164: =C108-B108 -> 11 | D164: 30 | E164: -39 | F164: 16 | G164: -9 | H164: -4 | I164: -5 | J164: -4 | K164: -3 | L164: 9 | M164: -4
A165: %change_11 | B165: =(B164/M107)*100 -> -32.60869565 | C165: =(C164/B108)*100 -> 35.48387097 | D165: 71.42857143 | E165: -54.16666667 | F165: 48.48484848 | G165: -18.36734694 | H165: -10 | I165: -13.88888889 | J165: -12.90322581 | K165: -11.11111111 | L165: 37.5 | M165: -12.12121212
B166: jan | C166: feb | D166: mar | E166: apr | F166: may | G166: jun | H166: jul | I166: aug | J166: sep | K166: oct | L166: nov | M166: dec | N166: ytd_total
A167: chg_prv_11-10 | B167: =B108-B107 -> -6 | C167: 4 | D167: 23 | E167: -27 | F167: 16 | G167: -17 | H167: =H108-H107 -> 3 | I167: -14 | J167: -13 | K167: -14 | L167: 7 | M167: -17 | N167: =O108-O107 -> -55
A168: %chg_prv_11-10 | B168: =(B167/B107)*100 -> -16.21621622 | C168: 10.52631579 | D168: 46.93877551 | E168: -45 | F168: 48.48484848 | G168: -29.8245614 | H168: =(H167/H107)*100 -> 9.090909091 | I168: -31.11111111 | J168: -32.5 | K168: -36.84210526 | L168: 26.92307692 | M168: -36.95652174 | N168: =(N167/O107) -> -0.109561753
B170: jan-dec | C170: feb-jan | D170: mar-feb | E170: apr-mar | F170: may-apr | G170: jun-may | H170: jul-jun | I170: aug-jul | J170: sep-aug | K170: oct-sep | L170: nov-oct | M170: dec-nov
A171: change_12 | B171: =B109-M108 -> -10 | C171: =C109-B109 -> 8 | D171: 28 | E171: -33 | F171: 27 | G171: -12 | H171: -14 | I171: =I109-H109 -> 12 | J171: -8 | K171: -2 | L171: 5 | M171: -5
A172: %change_12 | B172: =(B171/M108)*100 -> -34.48275862 | C172: =(C171/B109)*100 -> 42.10526316 | D172: 103.7037037 | E172: -60 | F172: 122.7272727 | G172: -24.48979592 | H172: -37.83783784 | I172: 52.17391304 | J172: -22.85714286 | K172: -7.407407407 | L172: 20 | M172: -16.66666667
B173: jan | C173: feb | D173: mar | E173: apr | F173: may | G173: jun | H173: jul | I173: aug | J173: sep | K173: oct | L173: nov | M173: dec | N173: ytd_total
A174: chg_prv_12-11 | B174: =B109-B108 -> -12 | C174: -15 | D174: -17 | E174: -11 | F174: 0 | G174: -3 | H174: =H109-H108 -> -13 | I174: 4 | J174: =J109-J108 -> 0 | K174: =K109-K108 -> 1 | L174: =L109-L108 -> -3 | M174: =M109-M108 -> -4 | N174: =O109-O108 -> -73
A175: %chg_prv_12-11 | B175: =(B174/B108)*100 -> -38.70967742 | C175: -35.71428571 | D175: -23.61111111 | E175: -33.33333333 | F175: 0 | G175: -7.5 | H175: -36.11111111 | I175: 12.90322581 | J175: 0 | K175: 4.166666667 | L175: -9.090909091 | M175: -13.79310345 | N175: =(N174/O108)*100 -> -16.3310962
B177: jan-dec | C177: feb-jan | D177: mar-feb | E177: apr-mar | F177: may-apr | G177: jun-may | H177: jul-jun | I177: aug-jul | J177: sep-aug | K177: oct-sep | L177: nov-oct | M177: dec-nov
A178: change_13 | B178: =B110-M109 -> -9 | C178: =C110-B110 -> 10 | D178: 23 | E178: -6 | F178: -2 | G178: -10 | H178: -5 | I178: =I110-H110 -> 10 | J178: -17 | K178: -3 | L178: 14 | M178: -11
A179: %change_13 | B179: =(B178/M109)*100 -> -36 | C179: =(C178/B110)*100 -> 62.5 | D179: 88.46153846 | E179: -12.24489796 | F179: -4.651162791 | G179: -24.3902439 | H179: -16.12903226 | I179: 38.46153846 | J179: -47.22222222 | K179: -15.78947368 | L179: 87.5 | M179: -36.66666667
B180: jan | C180: feb | D180: mar | E180: apr | F180: may | G180: jun | H180: jul | I180: aug | J180: sep | K180: oct | L180: nov | M180: dec | N180: ytd_total
A181: chg_prv_13-12 | B181: =B110-B109 -> -3 | C181: -1 | D181: -6 | E181: 21 | F181: -8 | G181: -6 | H181: =H110-H109 -> 3 | I181: 1 | J181: =J110-J109 -> -8 | K181: -9 | L181: =L110-L109 -> 0 | M181: -6 | N181: =O110-O109 -> -22
A182: %chg_prv_13-12 | B182: =(B181/B109)*100 -> -15.78947368 | C182: -3.703703704 | D182: -10.90909091 | E182: 95.45454545 | F182: -16.32653061 | G182: -16.21621622 | H182: 13.04347826 | I182: =(I181/I109)*100 -> 2.857142857 | J182: -29.62962963 | K182: =(K181/K109)*100 -> -36 | L182: 0 | M182: =(M181/M109)*100 -> -24 | N182: =(N181/O109)*100 -> -5.882352941
B184: jan-dec | C184: feb-jan | D184: mar-feb | E184: apr-mar | F184: may-apr | G184: jun-may | H184: jul-jun | I184: aug-jul | J184: sep-aug | K184: oct-sep | L184: nov-oct | M184: dec-nov
A185: change_14 | B185: =B111-M110 -> 18 | C185: =C111-B111 -> -20 | D185: 10 | E185: 3 | F185: 9 | G185: -5 | H185: -8 | I185: -9 | J185: 17 | K185: -1 | L185: -8 | M185: -6
A186: %change_14 | B186: =(B185/M110)*100 -> 94.73684211 | C186: =(C185/B111)*100 -> -54.05405405 | D186: 58.82352941 | E186: 11.11111111 | F186: 30 | G186: -12.82051282 | H186: -23.52941176 | I186: -34.61538462 | J186: 100 | K186: -2.941176471 | L186: -24.24242424 | M186: -24
B187: jan | C187: feb | D187: mar | E187: apr | F187: may | G187: jun | H187: jul | I187: aug | J187: sep | K187: oct | L187: nov | M187: dec | N187: ytd_total
A188: chg_prv_14-13 | B188: =B111-B110 -> 21 | C188: -9 | D188: -22 | E188: -13 | F188: -2 | G188: 3 | H188: =H111-H110 -> 0 | I188: -19 | J188: =J111-J110 -> 15 | K188: 17 | L188: =L111-L110 -> -5 | M188: 0 | N188: =O111-O110 -> -14
A189: %chg_prv_14-13 | B189: =(B188/B110)*100 -> 131.25 | C189: -34.61538462 | D189: -44.89795918 | E189: -30.23255814 | F189: -4.87804878 | G189: 9.677419355 | H189: 0 | I189: =(I188/I110)*100 -> -52.77777778 | J189: 78.94736842 | K189: =(K188/K110)*100 -> 106.25 | L189: -16.66666667 | M189: =(M188/M110)*100 -> 0 | N189: =(N188/O110)*100 -> -3.977272727
B191: jan-dec | C191: feb-jan | D191: mar-feb | E191: apr-mar | F191: may-apr | G191: jun-may | H191: jul-jun | I191: aug-jul | J191: sep-aug | K191: oct-sep | L191: nov-oct | M191: dec-nov
A192: change_15
A193: %change_15
B194: jan | C194: feb | D194: mar | E194: apr | F194: may | G194: jun | H194: jul | I194: aug | J194: sep | K194: oct | L194: nov | M194: dec | N194: ytd_total
A195: chg_prv_15-14 | N195: =N112-N111 -> -338
A196: %chg_prv_15-14 | N196: =(N195/N111)*100 -> -100
A198: ecch_mbp | B198: jan | C198: feb | D198: mar | E198: apr | F198: may | G198: jun | H198: jul | I198: aug | J198: sep | K198: oct | L198: nov | M198: dec | N198: ytd_total
A199: 2003 | B199: 1 | C199: 1 | D199: 3 | E199: 10 | F199: 8 | G199: 8 | H199: 11 | I199: 10 | J199: 16 | K199: 16 | L199: 6 | M199: 2 | N199: =SUM(B199:M199) -> 92 | O199: =SUM(B199:M199) -> 92
A200: 2004 | B200: 2 | C200: 4 | D200: 4 | E200: 8 | F200: 21 | G200: 11 | H200: 9 | I200: 4 | J200: 10 | K200: 8 | L200: 13 | M200: 4 | N200: 98 | O200: 98
A201: 2005 | B201: 4 | C201: 0 | D201: 6 | E201: 10 | F201: 4 | G201: 10 | H201: 4 | I201: 8 | J201: 11 | K201: 7 | L201: 9 | M201: 2 | N201: 75 | O201: 75
A202: 2006 | B202: 2 | C202: 19 | D202: 5 | E202: 6 | F202: 21 | G202: 7 | H202: 8 | I202: 19 | J202: 4 | K202: 14 | L202: 5 | M202: 3 | N202: 113 | O202: 113
A203: 2007 | B203: 1 | C203: 1 | D203: 2 | E203: 27 | F203: 15 | G203: 5 | H203: 11 | I203: 5 | J203: 39 | K203: 14 | L203: 17 | M203: 11 | N203: 148 | O203: 148
A204: 2008 | B204: 7 | C204: 10 | D204: 12 | E204: 17 | F204: 12 | G204: 5 | H204: 19 | I204: 8 | J204: 28 | K204: 26 | L204: 29 | M204: 5 | N204: 178 | O204: 178
A205: 2009 | B205: 9 | C205: 4 | D205: 3 | E205: 9 | F205: 8 | G205: 5 | H205: 14 | I205: 14 | J205: 15 | K205: 25 | L205: 10 | M205: 2 | N205: =SUM(B205:M205) -> 118 | O205: =SUM(B205:M205) -> 118
A206: 2010 | B206: 5 | C206: 2 | D206: 8 | E206: 9 | F206: 12 | G206: 31 | H206: 17 | I206: 7 | J206: 15 | K206: 8 | L206: 6 | M206: 11 | N206: 131 | O206: 131
A207: 2011 | B207: 10 | C207: 3 | D207: 16 | E207: 6 | F207: 13 | G207: 7 | H207: 18 | I207: 5 | J207: 7 | K207: 8 | L207: 10 | M207: 3 | N207: 106 | O207: 106
A208: 2012 | B208: 7 | C208: 13 | D208: 10 | E208: 17 | F208: 12 | G208: 16 | H208: 13 | I208: 15 | J208: 3 | K208: 6 | L208: 19 | M208: 6 | N208: 137 | O208: 137
A209: 2013 | B209: 10 | C209: 7 | D209: 6 | E209: 13 | F209: 8 | G209: 21 | H209: 8 | I209: 29 | J209: 7 | K209: 12 | L209: 11 | M209: 10 | N209: 142 | O209: 142
A210: 2014 | B210: 4 | C210: 18 | D210: 6 | E210: 11 | F210: 9 | G210: 13 | H210: 12 | I210: 20 | J210: 9 | K210: 8 | L210: 12 | M210: 4 | N210: 126 | O210: 126
A211: 2015 | N211: =SUM(B211:B211) -> 0 | O211: =SUM(B211:M211) -> 0
B213: jan-dec | C213: feb-jan | D213: mar-feb | E213: apr-mar | F213: may-apr | G213: jun-may | H213: jul-jun | I213: aug-jul | J213: sep-aug | K213: oct-sep | L213: nov-oct | M213: dec-nov
A214: change_04 | B214: =B200-M199 -> 0 | C214: =C200-B200 -> 2 | D214: 0 | E214: 4 | F214: 13 | G214: -10 | H214: -2 | I214: -5 | J214: 6 | K214: -2 | L214: 5 | M214: -9
A215: %change_04 | B215: =(B214/M199)*100 -> 0 | C215: =(C214/B200)*100 -> 100 | D215: 0 | E215: 100 | F215: 162.5 | G215: -47.61904762 | H215: -18.18181818 | I215: -55.55555556 | J215: 150 | K215: -20 | L215: 62.5 | M215: -69.23076923
B216: jan | C216: feb | D216: mar | E216: apr | F216: may | G216: jun | H216: jul | I216: aug | J216: sep | K216: oct | L216: nov | M216: dec | N216: ytd_total
A217: chg_prv_04-03 | B217: =B200-B199 -> 1 | C217: 3 | D217: 1 | E217: -2 | F217: 13 | G217: 3 | H217: -2 | I217: -6 | J217: =J200-J199 -> -6 | K217: =K200-K199 -> -8 | L217: =L200-L199 -> 7 | M217: =M200-M199 -> 2 | N217: =O200-O199 -> 6
A218: %chg_prv_04-03 | B218: =(B217/B199)*100 -> 100 | C218: 300 | D218: 33.33333333 | E218: -20 | F218: 162.5 | G218: 37.5 | H218: -18.18181818 | I218: -60 | J218: -37.5 | K218: -50 | L218: 116.6666667 | M218: 100 | N218: =(N217/O199)*100 -> 6.52173913
B220: jan-dec | C220: feb-jan | D220: mar-feb | E220: apr-mar | F220: may-apr | G220: jun-may | H220: jul-jun | I220: aug-jul | J220: sep-aug | K220: oct-sep | L220: nov-oct | M220: dec-nov
A221: change_05 | B221: =B201-M200 -> 0 | C221: =C201-B201 -> -4 | D221: 6 | E221: 4 | F221: -6 | G221: 6 | H221: -6 | I221: 4 | J221: 3 | K221: -4 | L221: 2 | M221: -7
A222: %change_05 | B222: =(B221/M200)*100 -> 0 | C222: =(C221/B201)*100 -> -100 | E222: 66.66666667 | F222: -60 | G222: 150 | H222: -60 | I222: 100 | J222: 37.5 | K222: -36.36363636 | L222: 28.57142857 | M222: -77.77777778
B223: jan | C223: feb | D223: mar | E223: apr | F223: may | G223: jun | H223: jul | I223: aug | J223: sep | K223: oct | L223: nov | M223: dec | N223: ytd_total
A224: chg_prv_05-04 | B224: =B201-B200 -> 2 | C224: -4 | D224: 2 | E224: 2 | F224: -17 | G224: -1 | H224: -5 | I224: 4 | J224: =J201-J200 -> 1 | K224: =K201-K200 -> -1 | L224: =L201-L200 -> -4 | M224: =M201-M200 -> -2 | N224: =O201-O200 -> -23
A225: %chg_prv_05-04 | B225: =(B224/B200)*100 -> 100 | C225: -100 | D225: 50 | E225: 25 | F225: -80.95238095 | G225: -9.090909091 | H225: -55.55555556 | I225: 100 | J225: 10 | K225: =(K224/K200)*100 -> -12.5 | L225: =(L224/L200)*100 -> -30.76923077 | M225: =(M224/M200)*100 -> -50 | N225: =(N224/O200)*100 -> -23.46938776
B227: jan-dec | C227: feb-jan | D227: mar-feb | E227: apr-mar | F227: may-apr | G227: jun-may | H227: jul-jun | I227: aug-jul | J227: sep-aug | K227: oct-sep | L227: nov-oct | M227: dec-nov
... 145 more rows

Sheet graphs

Sheet explanations
A2: When The Bottom Line gives multiple weeks of data:
A3: a) The data does not exceed one, individual, month | B3: sarah?
A4: -Fill the cells green and list the amount in the latest week covered | C4: jimmy?
A5: b) The data overlaps two months
A6: -Divide the data up by approximatly the same amount of days covered for each month
A7: -If there is an odd number and equal time for each month, the extra is deposited in the later week/month
A8: -fill the cells pink
